Workbook

Sheet MATRIZ DE INDICADORES
D2: MACROPROCESO ESTRATÉGICO | S2: CÓDIGO: ESGr027
D3: PROCESO GESTIÓN SISTEMAS INTEGRADOS - CALIDAD | S3: VERSIÓN: 8
D4: MATRIZ DE MEDICIÓN Y SEGUIMIENTO A LOS PROCESOS DE GESTIÓN | S4: VIGENCIA: 2023-07-28
S5: PÁGINA: 1 de 15
Q7: FECHA DE ACTUALIZACIÓN: | S7: AÑO | T7: MES | U7: DÍA
S8: 2024 | T8: 12 | U8: 10
B10: ALINEACIÓN DE LOS INDICADORES CON LOS DOCUMENTOS ESTRATÉGICOS Y LOS OBJETIVOS DE CALIDAD
B12: PROCESO GESTIÓN | C12: FRENTES DEL PLAN ESTRATÉGICO | D12: LINEAMIENTOS DE LA POLÍTICA DE CALIDAD | E12: OBJETIVOS DE CALIDAD | F12: OBJETIVO GENERAL DEL PROCESO | G12: OBJETIVOS ESPECIFICOS | H12: NOMBRE INDICADOR | I12: FÓRMULA | J12: TIPO DE INDICADOR | K12: SEGUIMIENTO MEDICIÓN | L12: META | M12: ACTIVIDAD | N12: RESPONSABLE DE LA ACTIVIDAD | O12: ¿QUÉ RECURSOS SE REQUIEREN? | P12: FECHA EJECUCIÓN DE ACTIVIDADES | Q12: EVIDENCIA | R12: ¿CUÁNDO FINALIZARÁ? | S12: RESULTADO | T12: NIVEL OBTENIDO | U12: ACCESO
B13: Sistemas Integrados de Gestion - Sistema de Gestión de Seguridad de la Información | C13: Frente Estratégico VI: Gobierno Universitario Digital | D13: La Universidad guía su comportamiento y mejora continua a través del cumplimiento de requisitos definidos en buenas prácticas administrativas que soportan su quehacer diario redundando en la calidad de los procesos y logrando la acreditación de los programas y la acreditación institucional. | E13: Instituir un Gobierno Universitario Digital, caracterizado por el autocontrol, el control social, las buenas prácticas y el control social universitario | F13: Establecer y mantener los roles y responsabilidades del Sistema de Gestión de Seguridad de la Información - SGSI, teniendo en cuenta los diferentes niveles jerárquicos en la institución, desde la Alta Dirección asignando los recursos necesarios y suficientes, para la implementación, mantenimiento y mejora continua del SGSI. | G13: Dar cumplimiento a los requisitos legales y normativos en materia de seguridad y privacidad de la información que vinculen las actividades del Sistema de Gestión de Seguridad de la Información – SGSI. | H13: Seguimiento al Cronograma de Actividades anual del SGSI | I13: Actividades realizadas/actividades programadas *100 | J13: Eficacia | K13: Trimestral | L13: 0.9 | M13: Seguimiento a las actividades propuestas en el cronograma de actividades anual del Sistema de Gestión de Seguridad de la Información -SGSI | N13: Sistema de Gestión de Seguridad de la Información -SGSI | O13: Talento humano: apoyo en las actividades que corresponda | P13: 2024/01/11 - 2024/12/10 | Q13: Indicador No. 1 | R13: Diciembre 2024
G14: Implementar y mantener el ESG-SSI-PL01 – Plan Institucional de Sensibilización Entrenamiento en Seguridad y Privacidad de la Información a la comunidad académica en general y a los funcionarios administrativos y docentes en particular, para la apropiación y fortalecimiento en lo referente a las políticas, procedimientos, manuales, instructivos y guías en materia de seguridad y privacidad de la información. | H14: Participación de los funcionarios, administrativos y docentes en las Jornadas de Sensibilización del SGSI | I14: Número de funcionarios (administrativos y docentes) que asistieron a las Jornadas de Sensibilización/Total de funcionarios activos con corte a Junio 30* 100 | J14: Eficacia | K14: Anual | L14: 0.5 | M14: Evaluar el nivel de participación de los funcionarios administrativos y docentes en las Jornadas de Seguridad y Privacidad de la Información que realiza el Sistema de Gestión de Seguridad de la Información - SGSI | N14: Sistema de Gestión de Seguridad de la Información -SGSI | O14: Talento humano: apoyo en las actividades que corresponda Comunicaciones: medios de difusión | P14: 2023/07/23 - 2023/11/15 | Q14: Indicador No. 2 | R14: Diciembre 2024
H15: Percepcion del conocimiento de las jornadas de sensibilizacion en seguridad y privacidad de la información | I15: Nro. de evaluaciones aprobadas/No. de evaluaciones presentadas por los participantes en las sensibilizaciones | J15: Eficiencia | K15: Anual | L15: 0.7 | M15: Evaluar el nivel de percepción del conocimiento de los funcionarios administrativos y docentes en las Jornadas de Seguridad y Privacidad de la Información que realiza el Sistema de Gestión de Seguridad de la Información - SGSI | N15: Sistema de Gestión de Seguridad de la Información -SGSI | O15: Talento Humano que apoye las actividades que correspondan | P15: 2023/07/23 - 2023/11/15 | Q15: Indicador No. 3 | R15: Diciembre 2024
G16: Definir e implementar la gestión de incidentes que involucre las actividades de prevención, identificación y gestión de los eventos y/o incidentes que atenten con la confidencialidad, integridad y disponibilidad de los activos de información, de acuerdo a los recursos proporcionados por la institución, propendiendo la mejora continua del SGSI. | H16: Gestión de eventos y/o incidentes de seguridad y privacidad de la informacion en la Universidad de Cundinamarca | I16: Numero de eventos y/o incidentes atendidos / Número total de eventos y/o incidentes que fueron reportados por (Estudiantes, administrativos y docentes)*100 | J16: Eficacia | K16: Semestral | L16: 0.8 | M16: Seguimiento a la gestión de los eventos y/o incidentes de seguridad y privacidad de la información reportados en la Universidad de Cundinamarca | N16: Sistema de Gestión de Seguridad de la Información -SGSI | O16: Talento humano: apoyo en las actividades que corresponda | P16: 2024/02/02 - 2024/12/20 | Q16: Indicador No. 4 | R16: Diciembre 2024
G17: Evaluar el nivel de implementación y cumplimiento de los controles administrativos, jurídicos y técnicos de seguridad de la información, establecidos en la Norma ISO 27001:2013 en Anexo A, el Modelo de Seguridad y Privacidad de la Información – MSPI y la Ley de Protección de Datos Personales en la UNIVERSIDAD DE CUNDINAMARCA. | H17: Porcentaje de Implementacion de los controles del anexo A de la Norma ISO 27001-2013 | I17: Numero de controles que se implementaron / Numero de controles según la Norma ISO 27001-2013*100 | J17: Eficiencia | K17: Semestral | L17: 0.5 | M17: Evaluar el nivel de implementación y cumplimiento de los controles establecidos en el anexo A de la Norma ISO 27001:2013 | N17: Sistema de Gestión de Seguridad de la Información -SGSI | O17: Talento humano: apoyo en las actividades que corresponda | P17: 2024/02/02 - 2024/12/20 | Q17: Indicador No. 5 | R17: Diciembre 2024
F18: Fijar, adoptar y comunicar un “Lineamiento Institucional de Tratamiento de los datos personales” de los titulares de la Universidad de Cundinamarca, en desarrollo de las actividades de carácter académico, laboral y comercial, garantizando la protección de derechos como la privacidad, intimidad, el buen nombre y la imagen de nuestros interesados. | G18: Dar cumplimiento a los requisitos legales y normativos en materia de privacidad de la información que vinculen las actividades de recolección, almacenamiento, uso, circulación o supresión, de los datos personales de los titulares de la Universidad de Cundinamarca. | H18: Seguimiento a la gestión de Autorizaciones "Aprobadas" para el Tratamiento de Datos Personales | I18: Numero de Autorizaciones para el Tratamiento de Datos Personales aprobadas que cumplen con los requisitos establecidos./Total de autorizaciones gestionadas (según muestra)de estudiantes activos | J18: Eficiencia | K18: Semestral | L18: 0.9 | M18: Seguimiento a la gestión de autorizaciones para el tratamiento de datos personales de los titulares de la Universidad de Cundinamarca, que gestionaron y aprobaron su autorización | N18: Sistema de Gestión de Seguridad de la Información -SGSI | O18: Oficina de Admisiones y Registro: Gestores encargados de la revisión a autorizaciones | P18: 2024/02/02 - 2024/11/22 | Q18: Indicador No. 6 | R18: Diciembre 2024
H19: Seguimiento a las Autorizaciones "Rechazadas" para el Tratamiento de Datos Personales | I19: Titulares que gestionaron su autorizacion rechazada / Total de Titulares rechazados durante el semestre | J19: Eficiencia | K19: Semestral | L19: 0.7 | M19: Seguimiento a la gestión de autorizaciones para el tratamiento de datos personales de los titulares que gestionaron su autorización rechazada en la Universidad de Cundinamarca | N19: Sistema de Gestión de Seguridad de la Información -SGSI | O19: Oficina de Admisiones y Registro: gestores encargados de la revisión a las autorizaciones | P19: 2024/02/02 - 2024/11/22 | Q19: Indicador No. 7 | R19: Diciembre 2024
H20: Seguimiento a las Autorizaciones "No Gestionadas" para el Tratamiento de Datos Personales | I20: Estudiantes que nunca han gestionado la autorizacion / Total de estudiantes activos durante el semestre | J20: Eficacia | K20: Semestral | L20: 0.01 | M20: Seguimiento a la gestión de autorizaciones para el tratamiento de datos personales de los titulares que recién ingresaron a la institución gestionaron su autorización | N20: Sistema de Gestión de Seguridad de la Información -SGSI | O20: Oficina de Admisiones y Registro: gestores encargados de la revisión a las autorizaciones | P20: 2024/02/02 - 2024/11/22 | Q20: Indicador No. 8 | R20: Diciembre 2024
H21: Gestión de cumplimiento en la implementación de la Ley de Protección de datos a través de lo indicado en la Guía de Responsabilidad Demostrada | I21: ∑Estado de cumplimiento de la guía de responsabilidad demostrada / Nro. Total de controles de PDP implementados *100 | J21: Eficacia | K21: Anual | L21: 0.9 | M21: Evaluar el nivel de implementación de la Guía del principio de responsabilidad demostrada (Accountability) | N21: Sistema de Gestión de Seguridad de la Información -SGSI | O21: Talento humano: apoyo en las actividades que corresponda | P21: 2023/02/02 - 2023/12/20 | Q21: Indicador No. 9 | R21: Diciembre 2025
J88: Diagonal 18 No. 20-23 Fusagasugá - Cundinamarca Teléfono (601) 8281483 Linea Gratuita 018000180414 www.ucundinamarca.edu.co E-mail: Info@ucundinamarca.edu.co NIT: 890.680.062-2
Q89: Documento controlado por el Sistema de Gestion de la Calidad Asegúrese que corresponde a la última versión consultando el Portal Institucional

Sheet SGSI -1 (2022)
B2: REGRESAR
E5: MACROPROCESO ESTRATÉGICO | M5: CÓDIGO: ESGr027
E6: PROCESO GESTIÓN SISTEMAS INTEGRADOS - CALIDAD | M6: VERSIÓN: 8
E7: MATRIZ DE MEDICIÓN Y SEGUIMIENTO A LOS PROCESOS DE GESTIÓN | M7: VIGENCIA: 2023-07-28
M8: PÁGINA: 2 de 15
C10: FICHA DE INDICADOR
C12: MACROPROCESO | E12: Estratégico | I12: NOMBRE DEL INDICADOR | K12: Seguimiento al Cronograma de Actividades anual del SGSI
C13: PROCESO GESTIÓN | E13: Sistemas Integrados
C14: RESPONSABLE DE MEDICIÓN | E14: Sistema de Gestión de Seguridad de la Información - SGSI
C16: 1. COMPORTAMIENTO DE INDICADOR
C17: CLASIFICACIÓN DE LA MEDICIÓN | E17: 1 | H17: TIPO DE INDICADOR | J17: Eficacia | L17: META | N17: 0.9
C18: FORMULA | E18: NUMERADOR | G18: Actividades realizadas *100 | L18: UNIDAD DE MEDIDA | N18: Porcentual
E19: DENOMINADOR | G19: Actividades programadas
C20: TENDENCIA | E20: Positiva | H20: NIVEL DE SEGREGACIÓN * | J20: No Aplica | L20: ESCALA
L21: Deficiente | M21: Aceptable | N21: Bueno | O21: Excelente
L22: 0 - 60% | M22: 61% - 80% | N22: 81% - 90% | O22: 91% - En adelante
C23: ORIGEN DE DATOS NUMERADOR | E23: Seguimiento al Cronograma de Actividades del SGSI | H23: FRECUENCIA DE LA MEDICIÓN | J23: TRIMESTRAL | L23: FRECUENCIA DE RESULTADO | N23: ANUAL
C24: ORIGEN DE DATOS DENOMINADOR | E24: Cronograma de Actividades anual del SGSI
C26: RESULTADOS
J27: ANÁLISIS DE DATOS
J28: I TRIMESTRE En el primer trimestre, se establecieron siete (7) actividades para realizar en particular, de las 27 que se plantearon en el cronograma a nivel general. Las actividades No. 1, 2, 3 y 4 se realizaron y están documentadas en el Acta de la Comisión de Gestión del 27 de enero de 2022, la actividad No. 6 se realiza y queda documentada en el Informe entregado por la firma Wexler SAS quien realizo la Auditoria Interna I del SGSI, el 1 de abril de 2022, La actividad No. 7 se documenta mediante la solicitud No. 1162 realizada en el Sistemas de Gestión de la Calidad – SGC, se modificaron 8 procedimientos y se inactivo 1 procedimiento), La actividad No. 8 se documenta y se entrega informe del resultado del Registro de las Bases de datos de la Universidad, con corte a 31 de marzo de 2022, en la sesión ordinaria de la Comisión Gestión del 19 de mayo de 2022. II TRIMESTRE En el segundo trimestre, se establecieron diez (10) actividades para realizar en particular, de las 27 que se plantearon en el cronograma a nivel general. La actividad No. 4 se realizó y esta documentada en el Acta de la Comisión de Gestión del 19 de mayo de 2022, La actividad No. 5 está documentada así: seguimiento y soporte a los riesgos No. 30 y 31 que forma parte de la “Matriz de Riesgos Anticorrupción”. La actividad No. 7 se documenta mediante la solicitud No. 1180 realizada en el Sistemas de Gestión de la Calidad – SGC, se modificó la caracterización y se inactivo un procedimiento y la solicitud No. 1195 se construye un manual y se modifica un procedimiento. La actividad 11, se documenta con la medición de indicadores del SGSI y su respectiva publicación. La actividad 10 quedó pendiento por realizar ya que se deben articular los planes producto de la auditoría interna I del SGSI. III TRIMESTRE En el tercer trimestre se establecieron siete (7)actividades para realizar, en particular la activiadad ventiuno (21) se proyectó y desarrolla cronograma de actividades denominado “JORNADA DE SENSIBILIZACIÓN EN SEGURIDAD Y PRIVACIDAD DE LA INFORMACIÓN 2022”, el cual contiene el diseño de las estrategias, realización de las jornadas y visualización de las evidencias. IV TRIMESTRE En el tercer trimestre se establecieron dos (2) actividades para realizar
J34: ACCIÓN FORMULADA
J35: Para la vigencia 2023, se debe continuar con la gestión para la actualización de resoluciones referente a Seguridad de la Información y Protección de Datos Personales, ademas continuar con el seguimiento de los planes de mejoramiento asignados al SGSI.
J41: RESPONSABLE
J42: =E14 -> Sistema de Gestión de Seguridad de la Información - SGSI
C45: PERIODO DE EVALUACIÓN
C46: MES | D46: =IF(J23="MENSUAL","ENERO",IF(J23="TRIMESTRAL","MARZO",IF(J23="SEMESTRAL","JUNIO",IF(J23="ANUAL",YEAR(TODAY()),"")))) -> MARZO | E46: =IF(J23="MENSUAL","FEBRERO",IF(J23="TRIMESTRAL","JUNIO",IF(J23="SEMESTRAL","DICIEMBRE",""))) -> JUNIO | F46: =IF(J23="MENSUAL","MARZO",IF(J23="TRIMESTRAL","SEPTIEMBRE","")) -> SEPTIEMBRE | G46: =IF(J23="MENSUAL","ABRIL",IF(J23="TRIMESTRAL","DICIEMBRE","")) -> DICIEMBRE | H46: =IF(J23="MENSUAL","MAYO","") ->  | I46: =IF(J23="MENSUAL","JUNIO","") ->  | J46: =IF(J23="MENSUAL","JULIO","") ->  | K46: =IF(J23="MENSUAL","AGOSTO","") ->  | L46: =IF(J23="MENSUAL","SEPTIEMBRE","") ->  | M46: =IF(J23="MENSUAL","OCTUBRE","") ->  | N46: =IF(J23="MENSUAL","NOVIEMBRE","") ->  | O46: =IF(J23="MENSUAL","DICIEMBRE","") -> 
C47: =G18 -> Actividades realizadas *100 | D47: 7 | E47: 17 | F47: 24 | G47: 26
C48: =G19 -> Actividades programadas | D48: 27 | E48: 27 | F48: 27 | G48: 27
C49: VALOR | D49: =IFERROR(IF($E$17=1,D47/D48,IF($E$17=2,D47,"")),"") -> 0.2592592593 | E49: =IFERROR(IF($E$17=1,E47/E48,IF($E$17=2,E47,"")),"") -> 0.6296296296 | F49: =IFERROR(IF($E$17=1,F47/F48,IF($E$17=2,F47,"")),"") -> 0.8888888889 | G49: 0.962962963
C50: META PONDERADA | D50: =IF(AND(N23="ANUAL",J23="MENSUAL"),N17/12,IF(AND(N23="ANUAL",J23="TRIMESTRAL"),N17/4,IF(AND(N23="ANUAL",J23="SEMESTRAL"),N17/2,IF(AND(N23="ANUAL",J23="ANUAL"),N17,IF(AND(N23="SEMESTRAL",J23="MENSUAL"),N17/6,IF(AND(N23="SEMESTRAL",J23="TRIMESTRAL"),N17/2,IF(AND(N23="SEMESTRAL",J23="SEMESTRAL"),N17,IF(AND(N23="SEMESTRAL",J23="ANUAL"),"REVISAR FRECUENCIAS",IF(AND(N23="TRIMESTRAL",J23="MENSUAL"),N17/3,IF(AND(N23="TRIMESTRAL",J23="TRIMESTRAL"),N17,IF(AND(N23="TRIMESTRAL",J23="SEMESTRAL"),"REVISAR FRECUENCIAS",IF(AND(N23="TRIMESTRAL",J23="ANUAL"),"REVISAR FRECUENCIAS",IF(AND(N23="MENSUAL",J23="MENSUAL"),N17,IF(AND(N23="MENSUAL",J23="TRIMESTRAL"),"REVISAR FRECUENCIAS",IF(AND(N23="MENSUAL",J23="SEMESTRAL"),"REVISAR FRECUENCIAS",IF(AND(N23="MENSUAL",J23="ANUAL"),"REVISAR FRECUENCIAS","")))))))))))))))) -> 0.225 | E50: =IF(AND(N23="ANUAL",J23="MENSUAL"),N17/12+D50,IF(AND(N23="ANUAL",J23="TRIMESTRAL"),N17/4+D50,IF(AND(N23="ANUAL",J23="SEMESTRAL"),N17/2+D50,IF(AND(N23="SEMESTRAL",J23="MENSUAL"),N17/6+D50,IF(AND(N23="SEMESTRAL",J23="TRIMESTRAL"),N17/2+D50,IF(AND(N23="SEMESTRAL",J23="SEMESTRAL"),N17,IF(AND(N23="TRIMESTRAL",J23="MENSUAL"),N17/3+D50,IF(AND(N23="TRIMESTRAL",J23="TRIMESTRAL"),N17,IF(AND(N23="MENSUAL",J23="MENSUAL"),N17,""))))))))) -> 0.45 | F50: =IF(AND(N23="ANUAL",J23="MENSUAL"),N17/12+E50,IF(AND(N23="ANUAL",J23="TRIMESTRAL"),N17/4+E50,IF(AND(N23="SEMESTRAL",J23="MENSUAL"),N17/6+E50,IF(AND(N23="SEMESTRAL",J23="TRIMESTRAL"),N17/2,IF(AND(N23="TRIMESTRAL",J23="MENSUAL"),N17/3+E50,IF(AND(N23="TRIMESTRAL",J23="TRIMESTRAL"),N17,IF(AND(N23="MENSUAL",J23="MENSUAL"),N17,""))))))) -> 0.675 | G50: =IF(AND(N23="ANUAL",J23="MENSUAL"),N17/12+F50,IF(AND(N23="ANUAL",J23="TRIMESTRAL"),N17/4+F50,IF(AND(N23="SEMESTRAL",J23="MENSUAL"),N17/6+F50,IF(AND(N23="SEMESTRAL",J23="TRIMESTRAL"),N17/2+F50,IF(AND(N23="TRIMESTRAL",J23="MENSUAL"),N17/3,IF(AND(N23="TRIMESTRAL",J23="TRIMESTRAL"),N17,IF(AND(N23="MENSUAL",J23="MENSUAL"),N17,""))))))) -> 0.9 | H50: =IF(AND($N$23="ANUAL",$J$23="MENSUAL"),$N$17/12+G50,IF(AND(N23="SEMESTRAL",J23="MENSUAL"),N17/6+G50,IF(AND(N23="TRIMESTRAL",J23="MENSUAL"),N17/3+G50,IF(AND(N23="MENSUAL",J23="MENSUAL"),N17,"")))) ->  | I50: =IF(AND($N$23="ANUAL",$J$23="MENSUAL"),$N$17/12+H50,IF(AND(N23="SEMESTRAL",J23="MENSUAL"),N17/6+H50,IF(AND(N23="TRIMESTRAL",J23="MENSUAL"),N17/3+H50,IF(AND(N23="MENSUAL",J23="MENSUAL"),N17,"")))) ->  | J50: =IF(AND($N$23="ANUAL",$J$23="MENSUAL"),$N$17/12+I50,IF(AND(N23="SEMESTRAL",J23="MENSUAL"),N17/6,IF(AND(N23="TRIMESTRAL",J23="MENSUAL"),N17/3,IF(AND(N23="MENSUAL",J23="MENSUAL"),N17,"")))) ->  | K50: =IF(AND($N$23="ANUAL",$J$23="MENSUAL"),$N$17/12+J50,IF(AND(N23="SEMESTRAL",J23="MENSUAL"),N17/6+J50,IF(AND(N23="TRIMESTRAL",J23="MENSUAL"),N17/3+J50,IF(AND(N23="MENSUAL",J23="MENSUAL"),N17,"")))) ->  | L50: =IF(AND($N$23="ANUAL",$J$23="MENSUAL"),$N$17/12+K50,IF(AND(N23="SEMESTRAL",J23="MENSUAL"),N17/6+K50,IF(AND(N23="TRIMESTRAL",J23="MENSUAL"),N17/3+K50,IF(AND(N23="MENSUAL",J23="MENSUAL"),N17,"")))) ->  | M50: =IF(AND($N$23="ANUAL",$J$23="MENSUAL"),$N$17/12+L50,IF(AND(N23="SEMESTRAL",J23="MENSUAL"),N17/6+L50,IF(AND(N23="TRIMESTRAL",J23="MENSUAL"),N17/3,IF(AND(N23="MENSUAL",J23="MENSUAL"),N17,"")))) ->  | N50: =IF(AND($N$23="ANUAL",$J$23="MENSUAL"),$N$17/12+M50,IF(AND(N23="SEMESTRAL",J23="MENSUAL"),N17/6+M50,IF(AND(N23="TRIMESTRAL",J23="MENSUAL"),N17/3+M50,IF(AND(N23="MENSUAL",J23="MENSUAL"),N17,"")))) ->  | O50: =IF(AND($N$23="ANUAL",$J$23="MENSUAL"),$N$17/12+N50,IF(AND(N23="SEMESTRAL",J23="MENSUAL"),N17/6+N50,IF(AND(N23="TRIMESTRAL",J23="MENSUAL"),N17/3+N50,IF(AND(N23="MENSUAL",J23="MENSUAL"),N17,"")))) -> 
C52: NIVEL DE SEGREGACIÓN *
C53: UNIDAD SEGREGADA (Ej. Facultad, Programa Académico, Área) | G53: RESULTADO | K53: ANALISIS DE DATOS SEGREGADO
G72: Estratégico | J72: Eficacia
G73: Misional | J73: Eficiencia
G74: Apoyo | J74: Acreditación
G75: Seguimiento, Medición, Análisis y Evaluación | J75: Positiva
G76: Direccionamiento Estratégico | J76: Negativa
G77: Planeación Institucional | J77: Por Unidad Regional
G78: Proyectos Especiales y Relaciones Interinstitucionales | J78: Por Facultad
G79: Sistemas Integrados | J79: Por Programa Académico
G80: Autoevaluación y Acreditación | J80: Por área
G81: Comunicaciones | J81: Por Laboratorio
G82: Formación y Aprendizaje | J82: Otros
G83: Ciencia, Tecnología e Innovación | J83: No Aplica
G84: Interacción Social Universitaria
G85: Bienestar Universitario
G86: Admisiones y Registro
G87: Graduados
G88: Dialogando con el Mundo
G89: Talento Humano
G90: Jurídica
G91: Financiera
G92: Sistemas y Tecnología
G93: Bienes y Servicios
G94: Documental
G95: Apoyo Académico
G96: Control Interno
G97: Control Disciplinario
G98: Servicio de Atención al Ciudadano

Sheet SGSI - 2 (2022)
B2: REGRESAR
E5: MACROPROCESO ESTRATÉGICO | M5: CÓDIGO: ESGr027
E6: PROCESO GESTIÓN SISTEMAS INTEGRADOS - CALIDAD | M6: VERSIÓN: 8
E7: MATRIZ DE MEDICIÓN Y SEGUIMIENTO A LOS PROCESOS DE GESTIÓN | M7: VIGENCIA: 2023-07-28
M8: PÁGINA: 3 de 15
C10: FICHA DE INDICADOR
C12: MACROPROCESO | E12: Estratégico | I12: NOMBRE DEL INDICADOR | K12: Participación de los funcionarios, administrativos y docentes en las Jornadas de Sensibilización del SGSI
C13: PROCESO GESTIÓN | E13: Sistemas Integrados
C14: RESPONSABLE DE MEDICIÓN | E14: Sistema de Gestión de Seguridad de la Información - SGSI
C16: 1. COMPORTAMIENTO DE INDICADOR
C17: CLASIFICACIÓN DE LA MEDICIÓN | E17: 1 | H17: TIPO DE INDICADOR | J17: Eficacia | L17: META | N17: 0.5
C18: FORMULA | E18: NUMERADOR | G18: Número de funcionarios (administrativos y docentes) que asistieron a las Jornadas de Sensibilización *100 | L18: UNIDAD DE MEDIDA | N18: Porcentual
E19: DENOMINADOR | G19: Total de funcionarios activos con corte a septiembre 25 de 2022
C20: TENDENCIA | E20: Positiva | H20: NIVEL DE SEGREGACIÓN * | J20: No Aplica | L20: ESCALA
L21: Deficiente | M21: Aceptable | N21: Bueno | O21: Excelente
L22: 0 - 30% | M22: 31% - 40% | N22: 41% - 50% | O22: 51% - En adelante
C23: ORIGEN DE DATOS NUMERADOR | E23: Listado de asistencia | H23: FRECUENCIA DE LA MEDICIÓN | J23: ANUAL | L23: FRECUENCIA DE RESULTADO | N23: ANUAL
C24: ORIGEN DE DATOS DENOMINADOR | E24: Base de Datos del personal administrativo y docente a corte de 25 de septiembre de 2022
C26: RESULTADOS
J27: ANÁLISIS DE DATOS
J28: Atendiendo lo aprobado por la Comisión de Gestión en sesión ordinaria el día 25 de agosto de 2022, se aprueba la realización de doce (12) jornadas de sensibilización en Seguridad y Privacidad de la Información, para el personal administrativo y docente de la Universidad de Cundinamarca, en todas las modalidades de contratación, empezando el 06 de septiembre de 2022, articulado al ESG-SSI-PL01 Plan Institucional de Sensibilización y Entrenamiento de Seguridad y Privacidad de la Información. La estrategia de invitación a las jornadas, fue por medio de correo electrónico institucional enviado al Rector, Vicerrectores, Directores y/o jefes de área, Directores administrativos de seccionales y extensiones, Decanos, Directores y/o coordinadores de programas y sus equipos de trabajo de sede, seccionales, extensiones, oficina de Bogotá, las unidades agroambientales y el Centro Académico Deportivo. Con corte al día 30 de octubre de 2022, se relaciona a continuación, el total de funcionarios administrativos y docentes (excepto docentes hora catedra) que asistieron a las jornadas de sensibilización de las cuales se realizaron 12 sesiones que correspondieron a los días 6, 7, 9, 12, 19, 21, 26, 28 de septiembre y 5, 10, 20, y 25 de octubre de 2022 dejando una participación de (646), frente al total de funcionarios administrativos y docentes activos en la institución (1443), por lo cual el indicador de eficacia es del 45%. Teniendo en cuenta que el resultado obtenido en la medición es inferior a la meta propuesta, se pretende crear una estrategia que sea aprobada por la comision de gestión, la cual permita que los funcionarios (administrativos y docentes) asistan a las jornadas sensibilización.
J34: ACCIÓN FORMULADA
J35: Para la vigencia 2023, los funcionarios, administrativos y docentes de la Universidad de Cundinamarca que no asistan a las Jornadas de Sensibilización en Seguridad y Privacidad de la Información se presentará un informe a la Comisión de Gestión y ellos tomaran las acciones pertinentes.
J41: RESPONSABLE
J42: =E14 -> Sistema de Gestión de Seguridad de la Información - SGSI
C45: PERIODO DE EVALUACIÓN
C46: MES | D46: 2022 | E46: =IF(J23="MENSUAL","FEBRERO",IF(J23="TRIMESTRAL","JUNIO",IF(J23="SEMESTRAL","DICIEMBRE",""))) ->  | F46: =IF(J23="MENSUAL","MARZO",IF(J23="TRIMESTRAL","SEPTIEMBRE","")) ->  | G46: =IF(J23="MENSUAL","ABRIL",IF(J23="TRIMESTRAL","DICIEMBRE","")) ->  | H46: =IF(J23="MENSUAL","MAYO","") ->  | I46: =IF(J23="MENSUAL","JUNIO","") ->  | J46: =IF(J23="MENSUAL","JULIO","") ->  | K46: =IF(J23="MENSUAL","AGOSTO","") ->  | L46: =IF(J23="MENSUAL","SEPTIEMBRE","") ->  | M46: =IF(J23="MENSUAL","OCTUBRE","") ->  | N46: =IF(J23="MENSUAL","NOVIEMBRE","") ->  | O46: =IF(J23="MENSUAL","DICIEMBRE","") -> 
C47: =G18 -> Número de funcionarios (administrativos y docentes) que asistieron a las Jornadas de Sensibilización *100 | D47: 646
C48: =G19 -> Total de funcionarios activos con corte a septiembre 25 de 2022 | D48: 1443
C49: VALOR | D49: =IFERROR(IF($E$17=1,D47/D48,IF($E$17=2,D47,"")),"") -> 0.4476784477 | E49: =IFERROR(IF($E$17=1,E47/E48,IF($E$17=2,E47,"")),"") -> 
C50: META PONDERADA | D50: =IF(AND(N23="ANUAL",J23="MENSUAL"),N17/12,IF(AND(N23="ANUAL",J23="TRIMESTRAL"),N17/4,IF(AND(N23="ANUAL",J23="SEMESTRAL"),N17/2,IF(AND(N23="ANUAL",J23="ANUAL"),N17,IF(AND(N23="SEMESTRAL",J23="MENSUAL"),N17/6,IF(AND(N23="SEMESTRAL",J23="TRIMESTRAL"),N17/2,IF(AND(N23="SEMESTRAL",J23="SEMESTRAL"),N17,IF(AND(N23="SEMESTRAL",J23="ANUAL"),"REVISAR FRECUENCIAS",IF(AND(N23="TRIMESTRAL",J23="MENSUAL"),N17/3,IF(AND(N23="TRIMESTRAL",J23="TRIMESTRAL"),N17,IF(AND(N23="TRIMESTRAL",J23="SEMESTRAL"),"REVISAR FRECUENCIAS",IF(AND(N23="TRIMESTRAL",J23="ANUAL"),"REVISAR FRECUENCIAS",IF(AND(N23="MENSUAL",J23="MENSUAL"),N17,IF(AND(N23="MENSUAL",J23="TRIMESTRAL"),"REVISAR FRECUENCIAS",IF(AND(N23="MENSUAL",J23="SEMESTRAL"),"REVISAR FRECUENCIAS",IF(AND(N23="MENSUAL",J23="ANUAL"),"REVISAR FRECUENCIAS","")))))))))))))))) -> 0.5 | E50: =IF(AND(N23="ANUAL",J23="MENSUAL"),N17/12+D50,IF(AND(N23="ANUAL",J23="TRIMESTRAL"),N17/4+D50,IF(AND(N23="ANUAL",J23="SEMESTRAL"),N17/2+D50,IF(AND(N23="SEMESTRAL",J23="MENSUAL"),N17/6+D50,IF(AND(N23="SEMESTRAL",J23="TRIMESTRAL"),N17/2+D50,IF(AND(N23="SEMESTRAL",J23="SEMESTRAL"),N17,IF(AND(N23="TRIMESTRAL",J23="MENSUAL"),N17/3+D50,IF(AND(N23="TRIMESTRAL",J23="TRIMESTRAL"),N17,IF(AND(N23="MENSUAL",J23="MENSUAL"),N17,""))))))))) ->  | F50: =IF(AND(N23="ANUAL",J23="MENSUAL"),N17/12+E50,IF(AND(N23="ANUAL",J23="TRIMESTRAL"),N17/4+E50,IF(AND(N23="SEMESTRAL",J23="MENSUAL"),N17/6+E50,IF(AND(N23="SEMESTRAL",J23="TRIMESTRAL"),N17/2,IF(AND(N23="TRIMESTRAL",J23="MENSUAL"),N17/3+E50,IF(AND(N23="TRIMESTRAL",J23="TRIMESTRAL"),N17,IF(AND(N23="MENSUAL",J23="MENSUAL"),N17,""))))))) ->  | G50: =IF(AND(N23="ANUAL",J23="MENSUAL"),N17/12+F50,IF(AND(N23="ANUAL",J23="TRIMESTRAL"),N17/4+F50,IF(AND(N23="SEMESTRAL",J23="MENSUAL"),N17/6+F50,IF(AND(N23="SEMESTRAL",J23="TRIMESTRAL"),N17/2+F50,IF(AND(N23="TRIMESTRAL",J23="MENSUAL"),N17/3,IF(AND(N23="TRIMESTRAL",J23="TRIMESTRAL"),N17,IF(AND(N23="MENSUAL",J23="MENSUAL"),N17,""))))))) ->  | H50: =IF(AND($N$23="ANUAL",$J$23="MENSUAL"),$N$17/12+G50,IF(AND(N23="SEMESTRAL",J23="MENSUAL"),N17/6+G50,IF(AND(N23="TRIMESTRAL",J23="MENSUAL"),N17/3+G50,IF(AND(N23="MENSUAL",J23="MENSUAL"),N17,"")))) ->  | I50: =IF(AND($N$23="ANUAL",$J$23="MENSUAL"),$N$17/12+H50,IF(AND(N23="SEMESTRAL",J23="MENSUAL"),N17/6+H50,IF(AND(N23="TRIMESTRAL",J23="MENSUAL"),N17/3+H50,IF(AND(N23="MENSUAL",J23="MENSUAL"),N17,"")))) ->  | J50: =IF(AND($N$23="ANUAL",$J$23="MENSUAL"),$N$17/12+I50,IF(AND(N23="SEMESTRAL",J23="MENSUAL"),N17/6,IF(AND(N23="TRIMESTRAL",J23="MENSUAL"),N17/3,IF(AND(N23="MENSUAL",J23="MENSUAL"),N17,"")))) ->  | K50: =IF(AND($N$23="ANUAL",$J$23="MENSUAL"),$N$17/12+J50,IF(AND(N23="SEMESTRAL",J23="MENSUAL"),N17/6+J50,IF(AND(N23="TRIMESTRAL",J23="MENSUAL"),N17/3+J50,IF(AND(N23="MENSUAL",J23="MENSUAL"),N17,"")))) ->  | L50: =IF(AND($N$23="ANUAL",$J$23="MENSUAL"),$N$17/12+K50,IF(AND(N23="SEMESTRAL",J23="MENSUAL"),N17/6+K50,IF(AND(N23="TRIMESTRAL",J23="MENSUAL"),N17/3+K50,IF(AND(N23="MENSUAL",J23="MENSUAL"),N17,"")))) ->  | M50: =IF(AND($N$23="ANUAL",$J$23="MENSUAL"),$N$17/12+L50,IF(AND(N23="SEMESTRAL",J23="MENSUAL"),N17/6+L50,IF(AND(N23="TRIMESTRAL",J23="MENSUAL"),N17/3,IF(AND(N23="MENSUAL",J23="MENSUAL"),N17,"")))) ->  | N50: =IF(AND($N$23="ANUAL",$J$23="MENSUAL"),$N$17/12+M50,IF(AND(N23="SEMESTRAL",J23="MENSUAL"),N17/6+M50,IF(AND(N23="TRIMESTRAL",J23="MENSUAL"),N17/3+M50,IF(AND(N23="MENSUAL",J23="MENSUAL"),N17,"")))) ->  | O50: =IF(AND($N$23="ANUAL",$J$23="MENSUAL"),$N$17/12+N50,IF(AND(N23="SEMESTRAL",J23="MENSUAL"),N17/6+N50,IF(AND(N23="TRIMESTRAL",J23="MENSUAL"),N17/3+N50,IF(AND(N23="MENSUAL",J23="MENSUAL"),N17,"")))) -> 
C52: NIVEL DE SEGREGACIÓN *
C53: UNIDAD SEGREGADA (Ej. Facultad, Programa Académico, Área) | G53: RESULTADO | K53: ANALISIS DE DATOS SEGREGADO
G72: Estratégico | J72: Eficacia
G73: Misional | J73: Eficiencia
G74: Apoyo | J74: Acreditación
G75: Seguimiento, Medición, Análisis y Evaluación | J75: Positiva
G76: Direccionamiento Estratégico | J76: Negativa
G77: Planeación Institucional | J77: Por Unidad Regional
G78: Proyectos Especiales y Relaciones Interinstitucionales | J78: Por Facultad
G79: Sistemas Integrados | J79: Por Programa Académico
G80: Autoevaluación y Acreditación | J80: Por área
G81: Comunicaciones | J81: Por Laboratorio
G82: Formación y Aprendizaje | J82: Otros
G83: Ciencia, Tecnología e Innovación | J83: No Aplica
G84: Interacción Social Universitaria
G85: Bienestar Universitario
G86: Admisiones y Registro
G87: Graduados
G88: Dialogando con el Mundo
G89: Talento Humano
G90: Jurídica
G91: Financiera
G92: Sistemas y Tecnología
G93: Bienes y Servicios
G94: Documental
G95: Apoyo Académico
G96: Control Interno
G97: Control Disciplinario
G98: Servicio de Atención al Ciudadano

Sheet SGSI - 3 (2022)
B2: REGRESAR
E5: MACROPROCESO ESTRATÉGICO | M5: CÓDIGO: ESGr027
E6: PROCESO GESTIÓN SISTEMAS INTEGRADOS - CALIDAD | M6: VERSIÓN: 8
E7: MATRIZ DE MEDICIÓN Y SEGUIMIENTO A LOS PROCESOS DE GESTIÓN | M7: VIGENCIA: 2023-07-28
M8: PÁGINA: 4 de 15
C10: FICHA DE INDICADOR
C12: MACROPROCESO | E12: Estratégico | I12: NOMBRE DEL INDICADOR | K12: Gestión de conocimiento de las sensibilizaciones en seguridad y privacidad de la información
C13: PROCESO GESTIÓN | E13: Sistemas Integrados
C14: RESPONSABLE DE MEDICIÓN | E14: Sistema de Gestión de Seguridad de la Información -SGSI
C16: 1. COMPORTAMIENTO DE INDICADOR
C17: CLASIFICACIÓN DE LA MEDICIÓN | E17: 1 | H17: TIPO DE INDICADOR | J17: Eficiencia | L17: META | N17: 0.7
C18: FORMULA | E18: NUMERADOR | G18: Nro.de evaluaciones aprobadas | L18: UNIDAD DE MEDIDA | N18: Porcentual
E19: DENOMINADOR | G19: No. de evaluaciones presentadas por los participantes en las sensibilizaciones
C20: TENDENCIA | E20: Positiva | H20: NIVEL DE SEGREGACIÓN * | J20: No Aplica | L20: ESCALA
L21: Deficiente | M21: Aceptable | N21: Bueno | O21: Excelente
L22: 0.4 | M22: 0.5 | N22: 0.6 | O22: 70% en adelante
C23: ORIGEN DE DATOS NUMERADOR | E23: HERRAMIENTA APLICADA PARA MEDIR EL CONOCIMIENTO DE LOS COLABORADORES | H23: FRECUENCIA DE LA MEDICIÓN | J23: ANUAL | L23: FRECUENCIA DE RESULTADO | N23: ANUAL
C24: ORIGEN DE DATOS DENOMINADOR | E24: LISTADO DE ASISTENCIA A LAS SENSIBILIZACIONES SE SEGURIDAD Y PRIVACIDAD DE LA INFORMACIÓN
C26: RESULTADOS
J27: ANÁLISIS DE DATOS
J28: Para la vigencia 2022, se realizó las jornadas de sensibilización en seguridad y privacidad de la información de acuerdo con el ESG-SSI-PL01 Plan de sensibilización en seguridad y privacidad de la información 6, 7, 9, 12, 19, 21, 26 y 28 de septiembre, así mismo, el 5, 10, 20 y 25 de octubre del 2022, donde se socializaron los temas, matriz de identificación y seguimiento al cumplimiento de requisitos legales y otros del SGSI, políticas institucionales de seguridad y privacidad de la información, roles y responsabilidades en el modelo de seguridad y privacidad de la información, resultado de la auditoria interna I, etapas del modelo de gestión de seguridad de la información, claves para la protección de datos, buenas practicas de seguridad, ataques informáticos. Teniendo en cuenta lo anterior, se realizó una evaluación para evidenciar el conocimiento adquirido de los colaboradores, de lo cual se estableció que la nota minima es 6.
J34: ACCIÓN FORMULADA
J35: para la vigencia 2023, se debe realizar seguimiento a las porcentaje de personas que no tuvieron una calificación adecuada, esto con el propósito de revisar las causas de una ponderación por debajo de la mínima, de la cual se debe establecer estrategias de remediación para que los colaboradores adquieran el conocimiento y lo apliquen en sus actividades laborales.
J41: RESPONSABLE
J42: =E14 -> Sistema de Gestión de Seguridad de la Información -SGSI
C45: PERIODO DE EVALUACIÓN
C46: MES | D46: 2022 | E46: =IF(J23="MENSUAL","FEBRERO",IF(J23="TRIMESTRAL","JUNIO",IF(J23="SEMESTRAL","DICIEMBRE",""))) ->  | F46: =IF(J23="MENSUAL","MARZO",IF(J23="TRIMESTRAL","SEPTIEMBRE","")) ->  | G46: =IF(J23="MENSUAL","ABRIL",IF(J23="TRIMESTRAL","DICIEMBRE","")) ->  | H46: =IF(J23="MENSUAL","MAYO","") ->  | I46: =IF(J23="MENSUAL","JUNIO","") ->  | J46: =IF(J23="MENSUAL","JULIO","") ->  | K46: =IF(J23="MENSUAL","AGOSTO","") ->  | L46: =IF(J23="MENSUAL","SEPTIEMBRE","") ->  | M46: =IF(J23="MENSUAL","OCTUBRE","") ->  | N46: =IF(J23="MENSUAL","NOVIEMBRE","") ->  | O46: =IF(J23="MENSUAL","DICIEMBRE","") -> 
C47: =G18 -> Nro.de evaluaciones aprobadas | D47: 320
C48: =G19 -> No. de evaluaciones presentadas por los participantes en las sensibilizaciones | D48: 388
C49: VALOR | D49: =IFERROR(IF($E$17=1,D47/D48,IF($E$17=2,D47,"")),"") -> 0.824742268 | E49: =IFERROR(IF($E$17=1,E47/E48,IF($E$17=2,E47,"")),"") -> 
C50: META PONDERADA | D50: =IF(AND(N23="ANUAL",J23="MENSUAL"),N17/12,IF(AND(N23="ANUAL",J23="TRIMESTRAL"),N17/4,IF(AND(N23="ANUAL",J23="SEMESTRAL"),N17/2,IF(AND(N23="ANUAL",J23="ANUAL"),N17,IF(AND(N23="SEMESTRAL",J23="MENSUAL"),N17/6,IF(AND(N23="SEMESTRAL",J23="TRIMESTRAL"),N17/2,IF(AND(N23="SEMESTRAL",J23="SEMESTRAL"),N17,IF(AND(N23="SEMESTRAL",J23="ANUAL"),"REVISAR FRECUENCIAS",IF(AND(N23="TRIMESTRAL",J23="MENSUAL"),N17/3,IF(AND(N23="TRIMESTRAL",J23="TRIMESTRAL"),N17,IF(AND(N23="TRIMESTRAL",J23="SEMESTRAL"),"REVISAR FRECUENCIAS",IF(AND(N23="TRIMESTRAL",J23="ANUAL"),"REVISAR FRECUENCIAS",IF(AND(N23="MENSUAL",J23="MENSUAL"),N17,IF(AND(N23="MENSUAL",J23="TRIMESTRAL"),"REVISAR FRECUENCIAS",IF(AND(N23="MENSUAL",J23="SEMESTRAL"),"REVISAR FRECUENCIAS",IF(AND(N23="MENSUAL",J23="ANUAL"),"REVISAR FRECUENCIAS","")))))))))))))))) -> 0.7 | E50: =IF(AND(N23="ANUAL",J23="MENSUAL"),N17/12+D50,IF(AND(N23="ANUAL",J23="TRIMESTRAL"),N17/4+D50,IF(AND(N23="ANUAL",J23="SEMESTRAL"),N17/2+D50,IF(AND(N23="SEMESTRAL",J23="MENSUAL"),N17/6+D50,IF(AND(N23="SEMESTRAL",J23="TRIMESTRAL"),N17/2+D50,IF(AND(N23="SEMESTRAL",J23="SEMESTRAL"),N17,IF(AND(N23="TRIMESTRAL",J23="MENSUAL"),N17/3+D50,IF(AND(N23="TRIMESTRAL",J23="TRIMESTRAL"),N17,IF(AND(N23="MENSUAL",J23="MENSUAL"),N17,""))))))))) ->  | F50: =IF(AND(N23="ANUAL",J23="MENSUAL"),N17/12+E50,IF(AND(N23="ANUAL",J23="TRIMESTRAL"),N17/4+E50,IF(AND(N23="SEMESTRAL",J23="MENSUAL"),N17/6+E50,IF(AND(N23="SEMESTRAL",J23="TRIMESTRAL"),N17/2,IF(AND(N23="TRIMESTRAL",J23="MENSUAL"),N17/3+E50,IF(AND(N23="TRIMESTRAL",J23="TRIMESTRAL"),N17,IF(AND(N23="MENSUAL",J23="MENSUAL"),N17,""))))))) ->  | G50: =IF(AND(N23="ANUAL",J23="MENSUAL"),N17/12+F50,IF(AND(N23="ANUAL",J23="TRIMESTRAL"),N17/4+F50,IF(AND(N23="SEMESTRAL",J23="MENSUAL"),N17/6+F50,IF(AND(N23="SEMESTRAL",J23="TRIMESTRAL"),N17/2+F50,IF(AND(N23="TRIMESTRAL",J23="MENSUAL"),N17/3,IF(AND(N23="TRIMESTRAL",J23="TRIMESTRAL"),N17,IF(AND(N23="MENSUAL",J23="MENSUAL"),N17,""))))))) ->  | H50: =IF(AND($N$23="ANUAL",$J$23="MENSUAL"),$N$17/12+G50,IF(AND(N23="SEMESTRAL",J23="MENSUAL"),N17/6+G50,IF(AND(N23="TRIMESTRAL",J23="MENSUAL"),N17/3+G50,IF(AND(N23="MENSUAL",J23="MENSUAL"),N17,"")))) ->  | I50: =IF(AND($N$23="ANUAL",$J$23="MENSUAL"),$N$17/12+H50,IF(AND(N23="SEMESTRAL",J23="MENSUAL"),N17/6+H50,IF(AND(N23="TRIMESTRAL",J23="MENSUAL"),N17/3+H50,IF(AND(N23="MENSUAL",J23="MENSUAL"),N17,"")))) ->  | J50: =IF(AND($N$23="ANUAL",$J$23="MENSUAL"),$N$17/12+I50,IF(AND(N23="SEMESTRAL",J23="MENSUAL"),N17/6,IF(AND(N23="TRIMESTRAL",J23="MENSUAL"),N17/3,IF(AND(N23="MENSUAL",J23="MENSUAL"),N17,"")))) ->  | K50: =IF(AND($N$23="ANUAL",$J$23="MENSUAL"),$N$17/12+J50,IF(AND(N23="SEMESTRAL",J23="MENSUAL"),N17/6+J50,IF(AND(N23="TRIMESTRAL",J23="MENSUAL"),N17/3+J50,IF(AND(N23="MENSUAL",J23="MENSUAL"),N17,"")))) ->  | L50: =IF(AND($N$23="ANUAL",$J$23="MENSUAL"),$N$17/12+K50,IF(AND(N23="SEMESTRAL",J23="MENSUAL"),N17/6+K50,IF(AND(N23="TRIMESTRAL",J23="MENSUAL"),N17/3+K50,IF(AND(N23="MENSUAL",J23="MENSUAL"),N17,"")))) ->  | M50: =IF(AND($N$23="ANUAL",$J$23="MENSUAL"),$N$17/12+L50,IF(AND(N23="SEMESTRAL",J23="MENSUAL"),N17/6+L50,IF(AND(N23="TRIMESTRAL",J23="MENSUAL"),N17/3,IF(AND(N23="MENSUAL",J23="MENSUAL"),N17,"")))) ->  | N50: =IF(AND($N$23="ANUAL",$J$23="MENSUAL"),$N$17/12+M50,IF(AND(N23="SEMESTRAL",J23="MENSUAL"),N17/6+M50,IF(AND(N23="TRIMESTRAL",J23="MENSUAL"),N17/3+M50,IF(AND(N23="MENSUAL",J23="MENSUAL"),N17,"")))) ->  | O50: =IF(AND($N$23="ANUAL",$J$23="MENSUAL"),$N$17/12+N50,IF(AND(N23="SEMESTRAL",J23="MENSUAL"),N17/6+N50,IF(AND(N23="TRIMESTRAL",J23="MENSUAL"),N17/3+N50,IF(AND(N23="MENSUAL",J23="MENSUAL"),N17,"")))) -> 
C52: NIVEL DE SEGREGACIÓN *
C53: UNIDAD SEGREGADA (Ej. Facultad, Programa Académico, Área) | G53: RESULTADO | K53: ANALISIS DE DATOS SEGREGADO
G72: Estratégico | J72: Eficacia
G73: Misional | J73: Eficiencia
G74: Apoyo | J74: Acreditación
G75: Seguimiento, Medición, Análisis y Evaluación | J75: Positiva
G76: Direccionamiento Estratégico | J76: Negativa
G77: Planeación Institucional | J77: Por Unidad Regional
G78: Proyectos Especiales y Relaciones Interinstitucionales | J78: Por Facultad
G79: Sistemas Integrados | J79: Por Programa Académico
G80: Autoevaluación y Acreditación | J80: Por área
G81: Comunicaciones | J81: Por Laboratorio
G82: Formación y Aprendizaje | J82: Otros
G83: Ciencia, Tecnología e Innovación | J83: No Aplica
G84: Interacción Social Universitaria
G85: Bienestar Universitario
G86: Admisiones y Registro
G87: Graduados
G88: Dialogando con el Mundo
G89: Talento Humano
G90: Jurídica
G91: Financiera
G92: Sistemas y Tecnología
G93: Bienes y Servicios
G94: Documental
G95: Apoyo Académico
G96: Control Interno
G97: Control Disciplinario
G98: Servicio de Atención al Ciudadano

Sheet SGSI - 4 (2022)
B2: REGRESAR
E5: MACROPROCESO ESTRATÉGICO | M5: CÓDIGO: ESGr027
E6: PROCESO GESTIÓN SISTEMAS INTEGRADOS - CALIDAD | M6: VERSIÓN: 8
E7: MATRIZ DE MEDICIÓN Y SEGUIMIENTO A LOS PROCESOS DE GESTIÓN | M7: VIGENCIA: 2023-07-28
M8: PÁGINA: 5 de 15
C10: FICHA DE INDICADOR
C12: MACROPROCESO | E12: Estratégico | I12: NOMBRE DEL INDICADOR | K12: Seguimiento a la gestión de Autorizaciones para el Tratamiento de Datos Personales
C13: PROCESO GESTIÓN | E13: Sistemas Integrados
C14: RESPONSABLE DE MEDICIÓN | E14: Sistema de Gestión de Seguridad de la Información - SGSI, Oficial de Tratamiento de datos personales - Director de sistemas y Tecnología
C16: 1. COMPORTAMIENTO DE INDICADOR
C17: CLASIFICACIÓN DE LA MEDICIÓN | E17: 1 | H17: TIPO DE INDICADOR | J17: Eficiencia | L17: META | N17: 0.9
C18: FORMULA | E18: NUMERADOR | G18: Numero de Autorizaciones para el Tratamiento de Datos Personales aprobadas que cumplen con los requisitos establecidos con corte a diciembre 2022*100 | L18: UNIDAD DE MEDIDA | N18: Porcentual
E19: DENOMINADOR | G19: Total de autorizaciones gestionadas (según muestra)de estudiantes activos a corte de diciembre 2022
C20: TENDENCIA | E20: Positiva | H20: NIVEL DE SEGREGACIÓN * | J20: No Aplica | L20: ESCALA
L21: Deficiente | M21: Aceptable | N21: Bueno | O21: Excelente
L22: 0 - 60% | M22: 61% - 80% | N22: 81% - 90% | O22: 91% - En adelante
C23: ORIGEN DE DATOS NUMERADOR | E23: Muestra del 10% del Aplicativo para la gestión de autorizaciones "Protección de datos" | H23: FRECUENCIA DE LA MEDICIÓN | J23: SEMESTRAL | L23: FRECUENCIA DE RESULTADO | N23: SEMESTRAL
C24: ORIGEN DE DATOS DENOMINADOR | E24: Base de Datos de los estudiantes activos
C26: RESULTADOS
J27: ANÁLISIS DE DATOS
J28: VIGENCIA 2022 I SEMESTRE.Para verificar la actividad que cumple con el parámetro de estado “aprobado”, en el aplicativo institucional de protección de datos personales de los estudiantes nuevos de primer semestre del IPA 2022 de la institución, se tomó una muestra aleatoria de 111 autorizaciones, con fecha de corte del 08 dejunio del 2022, que corresponde al 10% de la sede, seccionales y extensiones, discriminados de la siguiente forma: Sede Fusagasugá verificación de 29autorizaciones, Seccionales Ubaté 10 y Girardot 9, Extensiones Chía 17, Facatativá 29, Soacha 14 y Zipaquirá 1. Como resultado de esta verificación, se obtiene un porcentaje de cumplimiento a los requisitos establecidos para la aprobación de la autorización deltratamiento de datos personales de un 92%, por consiguiente, el porcentaje restante del 8% no cumple con los lineamientos establecidos para haber sido aprobada. VIGENCIA 2022 II SEMESTRE. Para la verificación de la actividad que cumple con el parametro de estado "APROBADO" en el aplicativo institucional de Protección de Datos, para el segundo semestre a corte de 01 de diciembre de 2022 se tomaron 155 autorizaciones de manera aleatoria que corresponden al 10% de la base de datos de la sede, seccionales y extensiones, desagregados de la siguiente manera: 53 de la Sede Fusagasugá, 12 de la Seccional Ubate y 10 de Girardot, 27 de la Extensión Chía, 37 de Facatativá, 14 de Soacha y 2 de Zipaquirá. Se obtuvo como resultado un porcentaje de 86% de autorizaciones en estado "APROBADO" que cumplen con los requisitos establecidos
J34: ACCIÓN FORMULADA
J35: VIGENCIA 2023: Con Acta No 024 del 6 de diciembre de 2021, se acordó entre el Sistema de Gestión de Seguridad de la Información – SGSI y la Oficina de Admisiones lo siguiente: "Entrega definitiva de la actividad de Gestión de las Autorizaciones y el aplicativo para el tratamiento de datos personales de los titulares (estudiantes) a la Oficina de Admisiones y Registro en sede, seccionales y extensiones de la Universidad de Cundinamarca". Sin embargo, el SGSI debe realizar un ejercicio de seguimiento para validar y verificar el cumplimiento de las directrices para la aprobación de Autorizaciones (estudiantes).
J41: RESPONSABLE
J42: =E14 -> Sistema de Gestión de Seguridad de la Información - SGSI, Oficial de Tratamiento de datos personales - Director de sistemas y Tecnología
C45: PERIODO DE EVALUACIÓN
C46: MES | D46: =IF(J23="MENSUAL","ENERO",IF(J23="TRIMESTRAL","MARZO",IF(J23="SEMESTRAL","JUNIO",IF(J23="ANUAL",YEAR(TODAY()),"")))) -> JUNIO | E46: DICIEMBRE | F46: =IF(J23="MENSUAL","MARZO",IF(J23="TRIMESTRAL","SEPTIEMBRE","")) ->  | G46: =IF(J23="MENSUAL","ABRIL",IF(J23="TRIMESTRAL","DICIEMBRE","")) ->  | H46: =IF(J23="MENSUAL","MAYO","") ->  | I46: =IF(J23="MENSUAL","JUNIO","") ->  | J46: =IF(J23="MENSUAL","JULIO","") ->  | K46: =IF(J23="MENSUAL","AGOSTO","") ->  | L46: =IF(J23="MENSUAL","SEPTIEMBRE","") ->  | M46: =IF(J23="MENSUAL","OCTUBRE","") ->  | N46: =IF(J23="MENSUAL","NOVIEMBRE","") ->  | O46: =IF(J23="MENSUAL","DICIEMBRE","") -> 
C47: =G18 -> Numero de Autorizaciones para el Tratamiento de Datos Personales aprobadas que cumplen con los requisitos establecidos con corte a diciembre 2022*100 | D47: 102 | E47: 134
C48: =G19 -> Total de autorizaciones gestionadas (según muestra)de estudiantes activos a corte de diciembre 2022 | D48: 111 | E48: 155
C49: VALOR | D49: =IFERROR(IF($E$17=1,D47/D48,IF($E$17=2,D47,"")),"") -> 0.9189189189 | E49: =IFERROR(IF($E$17=1,E47/E48,IF($E$17=2,E47,"")),"") -> 0.864516129
C50: META PONDERADA | D50: =IF(AND(N23="ANUAL",J23="MENSUAL"),N17/12,IF(AND(N23="ANUAL",J23="TRIMESTRAL"),N17/4,IF(AND(N23="ANUAL",J23="SEMESTRAL"),N17/2,IF(AND(N23="ANUAL",J23="ANUAL"),N17,IF(AND(N23="SEMESTRAL",J23="MENSUAL"),N17/6,IF(AND(N23="SEMESTRAL",J23="TRIMESTRAL"),N17/2,IF(AND(N23="SEMESTRAL",J23="SEMESTRAL"),N17,IF(AND(N23="SEMESTRAL",J23="ANUAL"),"REVISAR FRECUENCIAS",IF(AND(N23="TRIMESTRAL",J23="MENSUAL"),N17/3,IF(AND(N23="TRIMESTRAL",J23="TRIMESTRAL"),N17,IF(AND(N23="TRIMESTRAL",J23="SEMESTRAL"),"REVISAR FRECUENCIAS",IF(AND(N23="TRIMESTRAL",J23="ANUAL"),"REVISAR FRECUENCIAS",IF(AND(N23="MENSUAL",J23="MENSUAL"),N17,IF(AND(N23="MENSUAL",J23="TRIMESTRAL"),"REVISAR FRECUENCIAS",IF(AND(N23="MENSUAL",J23="SEMESTRAL"),"REVISAR FRECUENCIAS",IF(AND(N23="MENSUAL",J23="ANUAL"),"REVISAR FRECUENCIAS","")))))))))))))))) -> 0.9 | E50: 0.9 | F50: =IF(AND(N23="ANUAL",J23="MENSUAL"),N17/12+E50,IF(AND(N23="ANUAL",J23="TRIMESTRAL"),N17/4+E50,IF(AND(N23="SEMESTRAL",J23="MENSUAL"),N17/6+E50,IF(AND(N23="SEMESTRAL",J23="TRIMESTRAL"),N17/2,IF(AND(N23="TRIMESTRAL",J23="MENSUAL"),N17/3+E50,IF(AND(N23="TRIMESTRAL",J23="TRIMESTRAL"),N17,IF(AND(N23="MENSUAL",J23="MENSUAL"),N17,""))))))) ->  | G50: =IF(AND(N23="ANUAL",J23="MENSUAL"),N17/12+F50,IF(AND(N23="ANUAL",J23="TRIMESTRAL"),N17/4+F50,IF(AND(N23="SEMESTRAL",J23="MENSUAL"),N17/6+F50,IF(AND(N23="SEMESTRAL",J23="TRIMESTRAL"),N17/2+F50,IF(AND(N23="TRIMESTRAL",J23="MENSUAL"),N17/3,IF(AND(N23="TRIMESTRAL",J23="TRIMESTRAL"),N17,IF(AND(N23="MENSUAL",J23="MENSUAL"),N17,""))))))) ->  | H50: =IF(AND($N$23="ANUAL",$J$23="MENSUAL"),$N$17/12+G50,IF(AND(N23="SEMESTRAL",J23="MENSUAL"),N17/6+G50,IF(AND(N23="TRIMESTRAL",J23="MENSUAL"),N17/3+G50,IF(AND(N23="MENSUAL",J23="MENSUAL"),N17,"")))) ->  | I50: =IF(AND($N$23="ANUAL",$J$23="MENSUAL"),$N$17/12+H50,IF(AND(N23="SEMESTRAL",J23="MENSUAL"),N17/6+H50,IF(AND(N23="TRIMESTRAL",J23="MENSUAL"),N17/3+H50,IF(AND(N23="MENSUAL",J23="MENSUAL"),N17,"")))) ->  | J50: =IF(AND($N$23="ANUAL",$J$23="MENSUAL"),$N$17/12+I50,IF(AND(N23="SEMESTRAL",J23="MENSUAL"),N17/6,IF(AND(N23="TRIMESTRAL",J23="MENSUAL"),N17/3,IF(AND(N23="MENSUAL",J23="MENSUAL"),N17,"")))) ->  | K50: =IF(AND($N$23="ANUAL",$J$23="MENSUAL"),$N$17/12+J50,IF(AND(N23="SEMESTRAL",J23="MENSUAL"),N17/6+J50,IF(AND(N23="TRIMESTRAL",J23="MENSUAL"),N17/3+J50,IF(AND(N23="MENSUAL",J23="MENSUAL"),N17,"")))) ->  | L50: =IF(AND($N$23="ANUAL",$J$23="MENSUAL"),$N$17/12+K50,IF(AND(N23="SEMESTRAL",J23="MENSUAL"),N17/6+K50,IF(AND(N23="TRIMESTRAL",J23="MENSUAL"),N17/3+K50,IF(AND(N23="MENSUAL",J23="MENSUAL"),N17,"")))) ->  | M50: =IF(AND($N$23="ANUAL",$J$23="MENSUAL"),$N$17/12+L50,IF(AND(N23="SEMESTRAL",J23="MENSUAL"),N17/6+L50,IF(AND(N23="TRIMESTRAL",J23="MENSUAL"),N17/3,IF(AND(N23="MENSUAL",J23="MENSUAL"),N17,"")))) ->  | N50: =IF(AND($N$23="ANUAL",$J$23="MENSUAL"),$N$17/12+M50,IF(AND(N23="SEMESTRAL",J23="MENSUAL"),N17/6+M50,IF(AND(N23="TRIMESTRAL",J23="MENSUAL"),N17/3+M50,IF(AND(N23="MENSUAL",J23="MENSUAL"),N17,"")))) ->  | O50: =IF(AND($N$23="ANUAL",$J$23="MENSUAL"),$N$17/12+N50,IF(AND(N23="SEMESTRAL",J23="MENSUAL"),N17/6+N50,IF(AND(N23="TRIMESTRAL",J23="MENSUAL"),N17/3+N50,IF(AND(N23="MENSUAL",J23="MENSUAL"),N17,"")))) -> 
C52: NIVEL DE SEGREGACIÓN *
C53: UNIDAD SEGREGADA (Ej. Facultad, Programa Académico, Área) | G53: RESULTADO | K53: ANALISIS DE DATOS SEGREGADO
G72: Estratégico | J72: Eficacia
G73: Misional | J73: Eficiencia
G74: Apoyo | J74: Acreditación
G75: Seguimiento, Medición, Análisis y Evaluación | J75: Positiva
G76: Direccionamiento Estratégico | J76: Negativa
G77: Planeación Institucional | J77: Por Unidad Regional
G78: Proyectos Especiales y Relaciones Interinstitucionales | J78: Por Facultad
G79: Sistemas Integrados | J79: Por Programa Académico
G80: Autoevaluación y Acreditación | J80: Por área
G81: Comunicaciones | J81: Por Laboratorio
G82: Formación y Aprendizaje | J82: Otros
G83: Ciencia, Tecnología e Innovación | J83: No Aplica
G84: Interacción Social Universitaria
G85: Bienestar Universitario
G86: Admisiones y Registro
G87: Graduados
G88: Dialogando con el Mundo
G89: Talento Humano
G90: Jurídica
G91: Financiera
G92: Sistemas y Tecnología
G93: Bienes y Servicios
G94: Documental
G95: Apoyo Académico
G96: Control Interno
G97: Control Disciplinario
G98: Servicio de Atención al Ciudadano

Sheet SGSI - 5 (2022)
B2: REGRESAR
E5: MACROPROCESO ESTRATÉGICO | M5: CÓDIGO: ESGr027
E6: PROCESO GESTIÓN SISTEMAS INTEGRADOS - CALIDAD | M6: VERSIÓN: 8
E7: MATRIZ DE MEDICIÓN Y SEGUIMIENTO A LOS PROCESOS DE GESTIÓN | M7: VIGENCIA: 2023-07-28
M8: PÁGINA: 6 de 15
C10: FICHA DE INDICADOR
C12: MACROPROCESO | E12: Estratégico | I12: NOMBRE DEL INDICADOR | K12: Seguimiento a las Autorizaciones pendientes para el Tratamiento de Datos Personales
C13: PROCESO GESTIÓN | E13: Sistemas Integrados
C14: RESPONSABLE DE MEDICIÓN | E14: Sistema de Gestión de Seguridad de la Información - SGSI, Oficial de Tratamiento de datos personales - Director de sistemas y Tecnología
C16: 1. COMPORTAMIENTO DE INDICADOR
C17: CLASIFICACIÓN DE LA MEDICIÓN | E17: 1 | H17: TIPO DE INDICADOR | J17: Eficiencia | L17: META | N17: 0.35
C18: FORMULA | E18: NUMERADOR | G18: Estudiantes que aún no han gestionado la autorizacion con corte a diciembre 2022*100 | L18: UNIDAD DE MEDIDA | N18: Porcentual
E19: DENOMINADOR | G19: Total de Titulares rechazados a diciembre de 2022
C20: TENDENCIA | E20: Positiva | H20: NIVEL DE SEGREGACIÓN * | J20: No Aplica | L20: ESCALA
L21: Deficiente | M21: Aceptable | N21: Bueno | O21: Excelente
L22: 0 - 30% | M22: 30% - 40% | N22: 50% - 60% | O22: 70% en adelante
C23: ORIGEN DE DATOS NUMERADOR | E23: Base de Datos de los estudiantes activos pendientes por gestionar la autorización | H23: FRECUENCIA DE LA MEDICIÓN | J23: SEMESTRAL | L23: FRECUENCIA DE RESULTADO | N23: SEMESTRAL
C24: ORIGEN DE DATOS DENOMINADOR | E24: Base de Datos de los titulares activos en estado "RECHAZADO" III trimestre 2022
C26: RESULTADOS
J27: ANÁLISIS DE DATOS
J28: Cumpliendo con lo establecido en la Ley 1581 en su Artículo 9°. Autorización del Titular. Sin perjuicio de las excepciones previstas en la ley, en el Tratamiento se requiere la autorización previa e informada del Titular, la cual deberá ser obtenida por cualquier medio que pueda ser objeto de consulta posterior. Se ha venido adelantando el seguimiento a las autorizaciones para el Tratamiento de Datos Personales de los titulares de la Universidad de Cundinamarca, el día 05 de septiembre de 2022 se generó el listado de estudiantes en estado “RECHAZADO” en el aplicativo y se encontraron 1219 titulares, discriminados de la siguiente forma: Sede Fusagasugá 441, Seccional Ubaté 130 y Girardot 107, Extensiones Soacha 130, Facatativá 256, Chía 136 y Zipaquirá 19. Como parte de este seguimiento se aplicaron estrategias como el envío de correo a decanos y coordinadores de programa solicitando su colaboración para esta gestión con los estudiantes, también se contactó a cada uno de los titulares por medio de la Plataforma Teams y como ultima estrategia se realizó llamada telefónica a cada uno. Como resultado de este seguimiento se obtiene que de las 1219 autorizaciones que faltaban por gestionar, a corte de 01 de diciembre faltan 365 autorizaciones que corresponden a un 30%. Se hace la aclaración que si se llegase a generar en el presente trimestre un listado general de estudiantes activos que tienen su autorización en estado “RECHAZADO”, pueden resultar nuevos casos con este mismo estado.
J34: ACCIÓN FORMULADA
J35: Para la Vigencia 2023, se incluirá el formato de autorización para el tratamiento de Datos Personales de los Titulares de la Universidad de Cundinamarca dentro del requisito de matrícula para ingreso a la Universidad.
J41: RESPONSABLE
J42: =E14 -> Sistema de Gestión de Seguridad de la Información - SGSI, Oficial de Tratamiento de datos personales - Director de sistemas y Tecnología
C45: PERIODO DE EVALUACIÓN
C46: MES | D46: DICIEMBRE | F46: =IF(J23="MENSUAL","MARZO",IF(J23="TRIMESTRAL","SEPTIEMBRE","")) ->  | G46: =IF(J23="MENSUAL","ABRIL",IF(J23="TRIMESTRAL","DICIEMBRE","")) ->  | H46: =IF(J23="MENSUAL","MAYO","") ->  | I46: =IF(J23="MENSUAL","JUNIO","") ->  | J46: =IF(J23="MENSUAL","JULIO","") ->  | K46: =IF(J23="MENSUAL","AGOSTO","") ->  | L46: =IF(J23="MENSUAL","SEPTIEMBRE","") ->  | M46: =IF(J23="MENSUAL","OCTUBRE","") ->  | N46: =IF(J23="MENSUAL","NOVIEMBRE","") ->  | O46: =IF(J23="MENSUAL","DICIEMBRE","") -> 
C47: =G18 -> Estudiantes que aún no han gestionado la autorizacion con corte a diciembre 2022*100 | D47: 365
C48: =G19 -> Total de Titulares rechazados a diciembre de 2022 | D48: 1219
C49: VALOR | D49: =IFERROR(IF($E$17=1,D47/D48,IF($E$17=2,D47,"")),"") -> 0.2994257588 | E49: =IFERROR(IF($E$17=1,E47/E48,IF($E$17=2,E47,"")),"") ->  | F49: =IFERROR(IF($E$17=1,F47/F48,IF($E$17=2,F47,"")),"") -> 
C50: META PONDERADA | D50: =IF(AND(N23="ANUAL",J23="MENSUAL"),N17/12,IF(AND(N23="ANUAL",J23="TRIMESTRAL"),N17/4,IF(AND(N23="ANUAL",J23="SEMESTRAL"),N17/2,IF(AND(N23="ANUAL",J23="ANUAL"),N17,IF(AND(N23="SEMESTRAL",J23="MENSUAL"),N17/6,IF(AND(N23="SEMESTRAL",J23="TRIMESTRAL"),N17/2,IF(AND(N23="SEMESTRAL",J23="SEMESTRAL"),N17,IF(AND(N23="SEMESTRAL",J23="ANUAL"),"REVISAR FRECUENCIAS",IF(AND(N23="TRIMESTRAL",J23="MENSUAL"),N17/3,IF(AND(N23="TRIMESTRAL",J23="TRIMESTRAL"),N17,IF(AND(N23="TRIMESTRAL",J23="SEMESTRAL"),"REVISAR FRECUENCIAS",IF(AND(N23="TRIMESTRAL",J23="ANUAL"),"REVISAR FRECUENCIAS",IF(AND(N23="MENSUAL",J23="MENSUAL"),N17,IF(AND(N23="MENSUAL",J23="TRIMESTRAL"),"REVISAR FRECUENCIAS",IF(AND(N23="MENSUAL",J23="SEMESTRAL"),"REVISAR FRECUENCIAS",IF(AND(N23="MENSUAL",J23="ANUAL"),"REVISAR FRECUENCIAS","")))))))))))))))) -> 0.35 | E50: 0.35 | F50: =IF(AND(N23="ANUAL",J23="MENSUAL"),N17/12+E50,IF(AND(N23="ANUAL",J23="TRIMESTRAL"),N17/4+E50,IF(AND(N23="SEMESTRAL",J23="MENSUAL"),N17/6+E50,IF(AND(N23="SEMESTRAL",J23="TRIMESTRAL"),N17/2,IF(AND(N23="TRIMESTRAL",J23="MENSUAL"),N17/3+E50,IF(AND(N23="TRIMESTRAL",J23="TRIMESTRAL"),N17,IF(AND(N23="MENSUAL",J23="MENSUAL"),N17,""))))))) ->  | G50: =IF(AND(N23="ANUAL",J23="MENSUAL"),N17/12+F50,IF(AND(N23="ANUAL",J23="TRIMESTRAL"),N17/4+F50,IF(AND(N23="SEMESTRAL",J23="MENSUAL"),N17/6+F50,IF(AND(N23="SEMESTRAL",J23="TRIMESTRAL"),N17/2+F50,IF(AND(N23="TRIMESTRAL",J23="MENSUAL"),N17/3,IF(AND(N23="TRIMESTRAL",J23="TRIMESTRAL"),N17,IF(AND(N23="MENSUAL",J23="MENSUAL"),N17,""))))))) ->  | H50: =IF(AND($N$23="ANUAL",$J$23="MENSUAL"),$N$17/12+G50,IF(AND(N23="SEMESTRAL",J23="MENSUAL"),N17/6+G50,IF(AND(N23="TRIMESTRAL",J23="MENSUAL"),N17/3+G50,IF(AND(N23="MENSUAL",J23="MENSUAL"),N17,"")))) ->  | I50: =IF(AND($N$23="ANUAL",$J$23="MENSUAL"),$N$17/12+H50,IF(AND(N23="SEMESTRAL",J23="MENSUAL"),N17/6+H50,IF(AND(N23="TRIMESTRAL",J23="MENSUAL"),N17/3+H50,IF(AND(N23="MENSUAL",J23="MENSUAL"),N17,"")))) ->  | J50: =IF(AND($N$23="ANUAL",$J$23="MENSUAL"),$N$17/12+I50,IF(AND(N23="SEMESTRAL",J23="MENSUAL"),N17/6,IF(AND(N23="TRIMESTRAL",J23="MENSUAL"),N17/3,IF(AND(N23="MENSUAL",J23="MENSUAL"),N17,"")))) ->  | K50: =IF(AND($N$23="ANUAL",$J$23="MENSUAL"),$N$17/12+J50,IF(AND(N23="SEMESTRAL",J23="MENSUAL"),N17/6+J50,IF(AND(N23="TRIMESTRAL",J23="MENSUAL"),N17/3+J50,IF(AND(N23="MENSUAL",J23="MENSUAL"),N17,"")))) ->  | L50: =IF(AND($N$23="ANUAL",$J$23="MENSUAL"),$N$17/12+K50,IF(AND(N23="SEMESTRAL",J23="MENSUAL"),N17/6+K50,IF(AND(N23="TRIMESTRAL",J23="MENSUAL"),N17/3+K50,IF(AND(N23="MENSUAL",J23="MENSUAL"),N17,"")))) ->  | M50: =IF(AND($N$23="ANUAL",$J$23="MENSUAL"),$N$17/12+L50,IF(AND(N23="SEMESTRAL",J23="MENSUAL"),N17/6+L50,IF(AND(N23="TRIMESTRAL",J23="MENSUAL"),N17/3,IF(AND(N23="MENSUAL",J23="MENSUAL"),N17,"")))) ->  | N50: =IF(AND($N$23="ANUAL",$J$23="MENSUAL"),$N$17/12+M50,IF(AND(N23="SEMESTRAL",J23="MENSUAL"),N17/6+M50,IF(AND(N23="TRIMESTRAL",J23="MENSUAL"),N17/3+M50,IF(AND(N23="MENSUAL",J23="MENSUAL"),N17,"")))) ->  | O50: =IF(AND($N$23="ANUAL",$J$23="MENSUAL"),$N$17/12+N50,IF(AND(N23="SEMESTRAL",J23="MENSUAL"),N17/6+N50,IF(AND(N23="TRIMESTRAL",J23="MENSUAL"),N17/3+N50,IF(AND(N23="MENSUAL",J23="MENSUAL"),N17,"")))) -> 
C52: NIVEL DE SEGREGACIÓN *
C53: UNIDAD SEGREGADA (Ej. Facultad, Programa Académico, Área) | G53: RESULTADO | K53: ANALISIS DE DATOS SEGREGADO
G72: Estratégico | J72: Eficacia
G73: Misional | J73: Eficiencia
G74: Apoyo | J74: Acreditación
G75: Seguimiento, Medición, Análisis y Evaluación | J75: Positiva
G76: Direccionamiento Estratégico | J76: Negativa
G77: Planeación Institucional | J77: Por Unidad Regional
G78: Proyectos Especiales y Relaciones Interinstitucionales | J78: Por Facultad
G79: Sistemas Integrados | J79: Por Programa Académico
G80: Autoevaluación y Acreditación | J80: Por área
G81: Comunicaciones | J81: Por Laboratorio
G82: Formación y Aprendizaje | J82: Otros
G83: Ciencia, Tecnología e Innovación | J83: No Aplica
G84: Interacción Social Universitaria
G85: Bienestar Universitario
G86: Admisiones y Registro
G87: Graduados
G88: Dialogando con el Mundo
G89: Talento Humano
G90: Jurídica
G91: Financiera
G92: Sistemas y Tecnología
G93: Bienes y Servicios
G94: Documental
G95: Apoyo Académico
G96: Control Interno
G97: Control Disciplinario
G98: Servicio de Atención al Ciudadano

Sheet SGSI - 1 (2023)
B2: REGRESAR
E5: MACROPROCESO ESTRATÉGICO | M5: CÓDIGO: ESGr027
E6: PROCESO GESTIÓN SISTEMAS INTEGRADOS - CALIDAD | M6: VERSIÓN: 8
E7: MATRIZ DE MEDICIÓN Y SEGUIMIENTO A LOS PROCESOS DE GESTIÓN | M7: VIGENCIA: 2023-07-28
M8: PÁGINA: 7 de 15
C10: FICHA DE INDICADOR
C12: MACROPROCESO | E12: Estratégico | I12: NOMBRE DEL INDICADOR | K12: Seguimiento al Cronograma de Actividades anual del SGSI
C13: PROCESO GESTIÓN | E13: Sistemas Integrados
C14: RESPONSABLE DE MEDICIÓN | E14: Coordinadora del Sistema de Gestión de Seguridad de la Información – SGSI
C16: 1. COMPORTAMIENTO DE INDICADOR
C17: CLASIFICACIÓN DE LA MEDICIÓN | E17: 1 | H17: TIPO DE INDICADOR | J17: Eficacia | L17: META | N17: 0.9
C18: FORMULA | E18: NUMERADOR | G18: Actividades realizadas *100 | L18: UNIDAD DE MEDIDA | N18: Porcentual
E19: DENOMINADOR | G19: Actividades programadas
C20: TENDENCIA | E20: Positiva | H20: NIVEL DE SEGREGACIÓN * | J20: No Aplica | L20: ESCALA
L21: Deficiente | M21: Aceptable | N21: Bueno | O21: Excelente
L22: 0 - 60% | M22: 61% - 80% | N22: 81% - 90% | O22: 91% - En adelante
C23: ORIGEN DE DATOS NUMERADOR | E23: Seguimiento al Cronograma de Actividades del SGSI | H23: FRECUENCIA DE LA MEDICIÓN | J23: TRIMESTRAL | L23: FRECUENCIA DE RESULTADO | N23: ANUAL
C24: ORIGEN DE DATOS DENOMINADOR | E24: Cronograma de Actividades anual del SGSI
C26: RESULTADOS
J27: ANÁLISIS DE DATOS
J28: I TRIMESTRE: Para el primer trimestre del 2023, se realizaron seis (6) de las 25 actividades que se plantearon en el cronograma actividades del Sistema de Gestión de Seguridad de la Información – SGSI, Las actividades No. 1, 2, 3 y 7, se realizaron y están documentadas en el Acta de la Comisión de Gestión del 08 de marzo de 2023, en la actividad No. 4 se documenta todos los informes y entregables según los requerimientos de la Dirección de Planeación (FURAG, Riesgos anticorrupción y Matriz de participación ciudadana) en el OneDrive y en la actividad No. 5 se documenta la estrategia para la Auditoría Interna II del SGSI, con el fin de propiciar la mejora continua del Sistema de Gestión de Seguridad de la Información – SGSI de acuerdo a los requisitos de establecidos en la Norma ISO 27001: 2013. II TRIMESTRE: Para el segundo trimestre del 2023, se realizaron doce (12) de las 25 actividades que se plantearon en el cronograma general del SGSI. Las actividades No. 7, 10, 12, 13 y 17 se realizaron y están documentadas en el Acta de la comisión de gestión 13 de junio de 2023, en la actividad No. 8 se realizó revisión y actualización documental (procedimientos, manuales, planes, programas, entre otros) del Sistema de Gestión de Seguridad de la Información - SGSI y se encuentra la evidencia en el One Drive, y en la actividad No. 16 se documenta la estrategia para medir el grado de implementación de los controles de la Norma ISO 27001 anexo A, a partir de la declaración de aplicabilidad. III TRIMESTRE: Para el tercer trimestre del 2023, se realizaron dieciocho (18) de las 25 actividades que se plantearon en el cronograma general del SGSI. Las actividades No.11, 15, 18 y 21 se realizaron y están documentadas en el Acta de la comisión de gestión 18 de agosto del 2023, en la actividad No. 14 se documenta la estrategia para realizar la actualización y mantenimiento del Micrositio del SGSI ubicado en la pagina web institucional, y en la actividad No. 22 se documenta el seguimiento a la ejecución presupuestal del proyecto inscrito en el Banco de Proyectos institucional 2023, y se encuentra ubicada en el One Drive del SGSI. IV TRIMESTRE: Para el cuarto trimestre del 2023, se realizaron veinticinco (25) de las 25 actividades que se plantearon en el cronograma general del SGSI. Las actividades No.09, 19, 20, 23, 24 y 25 se realizaron y están documentadas en el OneDrive de la vigencia 2023 del Sistema de Gestión de Seguridad de la Información – SGSI, en el apartado cronograma de actividades del SGSI, Por otra parte, en la actividad No. 06, se aprobó la Auditoria Interna II por la alta dirección y quedo programada y con fecha de ejecución para el primer semestre del 2024, el documento de aprobación y la fechas establecidas de ejecución de la misma se encuentran en el OneDrive de la Vigencia 2023.
J34: ACCIÓN FORMULADA
J35: Para la vigencia 2024, se debe continuar con la estrategia y con la consolidación de los planes de mejoramiento producto de la Auditoría Interna II del Sistema de Gestión de Seguridad de la información – SGSI. De igual manera, se deberá desarrollar la estrategia que permita la transición de la norma ISO27001: 2013 a la norma ISO27001:2022.
J41: RESPONSABLE
J42: =E14 -> Coordinadora del Sistema de Gestión de Seguridad de la Información – SGSI
C45: PERIODO DE EVALUACIÓN
C46: MES | D46: =IF(J23="MENSUAL","ENERO",IF(J23="TRIMESTRAL","MARZO",IF(J23="SEMESTRAL","JUNIO",IF(J23="ANUAL",YEAR(TODAY()),"")))) -> MARZO | E46: =IF(J23="MENSUAL","FEBRERO",IF(J23="TRIMESTRAL","JUNIO",IF(J23="SEMESTRAL","DICIEMBRE",""))) -> JUNIO | F46: =IF(J23="MENSUAL","MARZO",IF(J23="TRIMESTRAL","SEPTIEMBRE","")) -> SEPTIEMBRE | G46: =IF(J23="MENSUAL","ABRIL",IF(J23="TRIMESTRAL","DICIEMBRE","")) -> DICIEMBRE | H46: =IF(J23="MENSUAL","MAYO","") ->  | I46: =IF(J23="MENSUAL","JUNIO","") ->  | J46: =IF(J23="MENSUAL","JULIO","") ->  | K46: =IF(J23="MENSUAL","AGOSTO","") ->  | L46: =IF(J23="MENSUAL","SEPTIEMBRE","") ->  | M46: =IF(J23="MENSUAL","OCTUBRE","") ->  | N46: =IF(J23="MENSUAL","NOVIEMBRE","") ->  | O46: =IF(J23="MENSUAL","DICIEMBRE","") -> 
C47: =G18 -> Actividades realizadas *100 | D47: 6 | E47: 12 | F47: 18 | G47: 25
C48: =G19 -> Actividades programadas | D48: 25 | E48: 25 | F48: 25 | G48: 25
C49: VALOR | D49: =IFERROR(IF($E$17=1,D47/D48,IF($E$17=2,D47,"")),"") -> 0.24 | E49: =IFERROR(IF($E$17=1,E47/E48,IF($E$17=2,E47,"")),"") -> 0.48 | F49: =IFERROR(IF($E$17=1,F47/F48,IF($E$17=2,F47,"")),"") -> 0.72 | G49: 1
C50: META PONDERADA | D50: =IF(AND(N23="ANUAL",J23="MENSUAL"),N17/12,IF(AND(N23="ANUAL",J23="TRIMESTRAL"),N17/4,IF(AND(N23="ANUAL",J23="SEMESTRAL"),N17/2,IF(AND(N23="ANUAL",J23="ANUAL"),N17,IF(AND(N23="SEMESTRAL",J23="MENSUAL"),N17/6,IF(AND(N23="SEMESTRAL",J23="TRIMESTRAL"),N17/2,IF(AND(N23="SEMESTRAL",J23="SEMESTRAL"),N17,IF(AND(N23="SEMESTRAL",J23="ANUAL"),"REVISAR FRECUENCIAS",IF(AND(N23="TRIMESTRAL",J23="MENSUAL"),N17/3,IF(AND(N23="TRIMESTRAL",J23="TRIMESTRAL"),N17,IF(AND(N23="TRIMESTRAL",J23="SEMESTRAL"),"REVISAR FRECUENCIAS",IF(AND(N23="TRIMESTRAL",J23="ANUAL"),"REVISAR FRECUENCIAS",IF(AND(N23="MENSUAL",J23="MENSUAL"),N17,IF(AND(N23="MENSUAL",J23="TRIMESTRAL"),"REVISAR FRECUENCIAS",IF(AND(N23="MENSUAL",J23="SEMESTRAL"),"REVISAR FRECUENCIAS",IF(AND(N23="MENSUAL",J23="ANUAL"),"REVISAR FRECUENCIAS","")))))))))))))))) -> 0.225 | E50: =IF(AND(N23="ANUAL",J23="MENSUAL"),N17/12+D50,IF(AND(N23="ANUAL",J23="TRIMESTRAL"),N17/4+D50,IF(AND(N23="ANUAL",J23="SEMESTRAL"),N17/2+D50,IF(AND(N23="SEMESTRAL",J23="MENSUAL"),N17/6+D50,IF(AND(N23="SEMESTRAL",J23="TRIMESTRAL"),N17/2+D50,IF(AND(N23="SEMESTRAL",J23="SEMESTRAL"),N17,IF(AND(N23="TRIMESTRAL",J23="MENSUAL"),N17/3+D50,IF(AND(N23="TRIMESTRAL",J23="TRIMESTRAL"),N17,IF(AND(N23="MENSUAL",J23="MENSUAL"),N17,""))))))))) -> 0.45 | F50: =IF(AND(N23="ANUAL",J23="MENSUAL"),N17/12+E50,IF(AND(N23="ANUAL",J23="TRIMESTRAL"),N17/4+E50,IF(AND(N23="SEMESTRAL",J23="MENSUAL"),N17/6+E50,IF(AND(N23="SEMESTRAL",J23="TRIMESTRAL"),N17/2,IF(AND(N23="TRIMESTRAL",J23="MENSUAL"),N17/3+E50,IF(AND(N23="TRIMESTRAL",J23="TRIMESTRAL"),N17,IF(AND(N23="MENSUAL",J23="MENSUAL"),N17,""))))))) -> 0.675 | G50: =IF(AND(N23="ANUAL",J23="MENSUAL"),N17/12+F50,IF(AND(N23="ANUAL",J23="TRIMESTRAL"),N17/4+F50,IF(AND(N23="SEMESTRAL",J23="MENSUAL"),N17/6+F50,IF(AND(N23="SEMESTRAL",J23="TRIMESTRAL"),N17/2+F50,IF(AND(N23="TRIMESTRAL",J23="MENSUAL"),N17/3,IF(AND(N23="TRIMESTRAL",J23="TRIMESTRAL"),N17,IF(AND(N23="MENSUAL",J23="MENSUAL"),N17,""))))))) -> 0.9 | H50: =IF(AND($N$23="ANUAL",$J$23="MENSUAL"),$N$17/12+G50,IF(AND(N23="SEMESTRAL",J23="MENSUAL"),N17/6+G50,IF(AND(N23="TRIMESTRAL",J23="MENSUAL"),N17/3+G50,IF(AND(N23="MENSUAL",J23="MENSUAL"),N17,"")))) ->  | I50: =IF(AND($N$23="ANUAL",$J$23="MENSUAL"),$N$17/12+H50,IF(AND(N23="SEMESTRAL",J23="MENSUAL"),N17/6+H50,IF(AND(N23="TRIMESTRAL",J23="MENSUAL"),N17/3+H50,IF(AND(N23="MENSUAL",J23="MENSUAL"),N17,"")))) ->  | J50: =IF(AND($N$23="ANUAL",$J$23="MENSUAL"),$N$17/12+I50,IF(AND(N23="SEMESTRAL",J23="MENSUAL"),N17/6,IF(AND(N23="TRIMESTRAL",J23="MENSUAL"),N17/3,IF(AND(N23="MENSUAL",J23="MENSUAL"),N17,"")))) ->  | K50: =IF(AND($N$23="ANUAL",$J$23="MENSUAL"),$N$17/12+J50,IF(AND(N23="SEMESTRAL",J23="MENSUAL"),N17/6+J50,IF(AND(N23="TRIMESTRAL",J23="MENSUAL"),N17/3+J50,IF(AND(N23="MENSUAL",J23="MENSUAL"),N17,"")))) ->  | L50: =IF(AND($N$23="ANUAL",$J$23="MENSUAL"),$N$17/12+K50,IF(AND(N23="SEMESTRAL",J23="MENSUAL"),N17/6+K50,IF(AND(N23="TRIMESTRAL",J23="MENSUAL"),N17/3+K50,IF(AND(N23="MENSUAL",J23="MENSUAL"),N17,"")))) ->  | M50: =IF(AND($N$23="ANUAL",$J$23="MENSUAL"),$N$17/12+L50,IF(AND(N23="SEMESTRAL",J23="MENSUAL"),N17/6+L50,IF(AND(N23="TRIMESTRAL",J23="MENSUAL"),N17/3,IF(AND(N23="MENSUAL",J23="MENSUAL"),N17,"")))) ->  | N50: =IF(AND($N$23="ANUAL",$J$23="MENSUAL"),$N$17/12+M50,IF(AND(N23="SEMESTRAL",J23="MENSUAL"),N17/6+M50,IF(AND(N23="TRIMESTRAL",J23="MENSUAL"),N17/3+M50,IF(AND(N23="MENSUAL",J23="MENSUAL"),N17,"")))) ->  | O50: =IF(AND($N$23="ANUAL",$J$23="MENSUAL"),$N$17/12+N50,IF(AND(N23="SEMESTRAL",J23="MENSUAL"),N17/6+N50,IF(AND(N23="TRIMESTRAL",J23="MENSUAL"),N17/3+N50,IF(AND(N23="MENSUAL",J23="MENSUAL"),N17,"")))) -> 
C52: NIVEL DE SEGREGACIÓN *
C53: UNIDAD SEGREGADA (Ej. Facultad, Programa Académico, Área) | G53: RESULTADO | K53: ANALISIS DE DATOS SEGREGADO
G72: Estratégico | J72: Eficacia
G73: Misional | J73: Eficiencia
G74: Apoyo | J74: Acreditación
G75: Seguimiento, Medición, Análisis y Evaluación | J75: Positiva
G76: Direccionamiento Estratégico | J76: Negativa
G77: Planeación Institucional | J77: Por Unidad Regional
G78: Proyectos Especiales y Relaciones Interinstitucionales | J78: Por Facultad
G79: Sistemas Integrados | J79: Por Programa Académico
G80: Autoevaluación y Acreditación | J80: Por área
G81: Comunicaciones | J81: Por Laboratorio
G82: Formación y Aprendizaje | J82: Otros
G83: Ciencia, Tecnología e Innovación | J83: No Aplica
G84: Interacción Social Universitaria
G85: Bienestar Universitario
G86: Admisiones y Registro
G87: Graduados
G88: Dialogando con el Mundo
G89: Talento Humano
G90: Jurídica
G91: Financiera
G92: Sistemas y Tecnología
G93: Bienes y Servicios
G94: Documental
G95: Apoyo Académico
G96: Control Interno
G97: Control Disciplinario
G98: Servicio de Atención al Ciudadano

Sheet SGSI - 2 (2023)
B2: REGRESAR
E5: MACROPROCESO ESTRATÉGICO | M5: CÓDIGO: ESGr027
E6: PROCESO GESTIÓN SISTEMAS INTEGRADOS - CALIDAD | M6: VERSIÓN: 8
E7: MATRIZ DE MEDICIÓN Y SEGUIMIENTO A LOS PROCESOS DE GESTIÓN | M7: VIGENCIA: 2023-07-28
M8: PÁGINA: 8 de 15
C10: FICHA DE INDICADOR
C12: MACROPROCESO | E12: Estratégico | I12: NOMBRE DEL INDICADOR | K12: Participación de los funcionarios administrativos y docentes en las Jornadas de Sensibilización del SGSI
C13: PROCESO GESTIÓN | E13: Sistemas Integrados
C14: RESPONSABLE DE MEDICIÓN | E14: Coordinadora del Sistema de Gestión de Seguridad de la Información – SGSI
C16: 1. COMPORTAMIENTO DE INDICADOR
C17: CLASIFICACIÓN DE LA MEDICIÓN | E17: 1 | H17: TIPO DE INDICADOR | J17: Eficacia | L17: META | N17: 0.5
C18: FORMULA | E18: NUMERADOR | G18: Número de funcionarios (administrativos y docentes) que asistieron a las Jornadas de Sensibilización *100 | L18: UNIDAD DE MEDIDA | N18: Porcentual
E19: DENOMINADOR | G19: Total de funcionarios activos en la vigencia
C20: TENDENCIA | E20: Positiva | H20: NIVEL DE SEGREGACIÓN * | J20: No Aplica | L20: ESCALA
L21: Deficiente | M21: Aceptable | N21: Bueno | O21: Excelente
L22: 0 - 30% | M22: 31% - 40% | N22: 41% - 50% | O22: 51% - En adelante
C23: ORIGEN DE DATOS NUMERADOR | E23: Listado de asistencia | H23: FRECUENCIA DE LA MEDICIÓN | J23: ANUAL | L23: FRECUENCIA DE RESULTADO | N23: ANUAL
C24: ORIGEN DE DATOS DENOMINADOR | E24: Base de datos del personal administrativo y docente activos en la vigencia
C26: RESULTADOS
J27: ANÁLISIS DE DATOS
J28: Atendiendo la decisión adoptada por la Comisión de Gestión en la sección ordinaria del 13 de junio del 2023, el Sistema de Gestión de Seguridad de la Información – SGSI, realizo 19 Jornadas de Sensibilización en Seguridad y Privacidad de la Información, para el personal administrativo y docente en todas sus modalidades de contratación en la Universidad de Cundinamarca, de acuerdo al ESG-SSI-PL01 “Plan Institucional de sensibilización y Entrenamiento en Seguridad y Privacidad de la Información”. La estrategia de invitación a las Jornadas de Sensibilización se realizó mediante la circular No. 006 del 24 de julio de 2023 emanada de la secretaria general y el comunicado No. 005 del 28 de julio de 2023 emanada de la Vicerrectoría Administrativa y Financiera, donde mediante el correo electrónico del SGSI se invitó a todas las áreas y/o procesos que conforman la estructura orgánica de la Universidad de Cundinamarca. Como resultado de la actividad y teniendo en cuenta que solo asistieron 249 de 924 docentes en su modalidad de contratación vinculación especial, para la medición del presente indicador solo se va a tener en cuentas solo los funcionarios con funciones administrativas que se encuentran activos en la institución. A continuación, se muestran el total de funcionarios administrativos y docentes (Sin docentes de vinculación especial) que asistieron a las jornadas de sensibilización, de acuerdo a cada una de las fechas programadas en cada Sede, Seccional y Extensión: Sede Fusagasugá: 08 de agosto de 2023: 35 participantes, 09 de agosto de 2023: 59 participantes, 10 de agosto de 2023: 51 participantes, 15 de agosto de 2023: 40 participantes, 16 de agosto de 2023: 34 participantes, 17 de agosto de 2023: 22 participantes, 22 de agosto de 2023: 63 participantes, 24 de agosto de 2023: 58 participantes, 25 de agosto de 2023: 89 participantes, 26 de agosto de 2023: Mañana 27 participantes - Tarde 33 participantes, para un total de 511 participantes, Seccional Ubaté: 29 de agosto de 2023: 77 participantes, Seccional Girardot: 31 de agosto de 2023: 84 participantes, Extensión Soacha: 12 de septiembre de 2023: 44 participantes, Extensión Zipaquirá: 19 de septiembre de 2023: 27 participantes, Extensión Chía: 03 de octubre de 2023: 37 participantes, Extensión Facatativá: 05 de octubre de 2023: 37 participantes. Seguidamente y atendiendo la decisión del Comité SAC en sesión ordinaria del 20 de septiembre de 2023, se realizaron dos (2) jornadas de sensibilización por medio de la plataforma de Microsoft Teams a nivel institucional incluyendo la Oficina de Bogotá, el día 12 de octubre de 2023: 58 participantes. Como resultado de la actividad se obtuvo una participación de (632) funcionarios administrativos que asistieron (Sin docentes de vinculación especial), frente al total de funcionarios administrativos activos en la institución (Sin docentes de vinculación especial) (895), lo que indica que el 71% de los funcionarios (Administrativos) asistieron a las jornadas de sensibilización.
J34: ACCIÓN FORMULADA
J35: Para la vigencia 2024, se implementará diferentes estrategias para alcanzar el nivel de participación esperado por parte de los funcionarios, administrativos y docentes de la Universidad de Cundinamarca y además para los funcionarios que no asistan a las Jornadas de Sensibilización en Seguridad y Privacidad de la Información, se presentará un informe a la Comisión de Gestión y ellos tomaran las acciones pertinentes.
J41: RESPONSABLE
J42: =E14 -> Coordinadora del Sistema de Gestión de Seguridad de la Información – SGSI
C45: PERIODO DE EVALUACIÓN
C46: MES | D46: 2023 | E46: 2023 | G46: =IF(J23="MENSUAL","ABRIL",IF(J23="TRIMESTRAL","DICIEMBRE","")) ->  | H46: =IF(J23="MENSUAL","MAYO","") ->  | I46: =IF(J23="MENSUAL","JUNIO","") ->  | J46: =IF(J23="MENSUAL","JULIO","") ->  | K46: =IF(J23="MENSUAL","AGOSTO","") ->  | L46: =IF(J23="MENSUAL","SEPTIEMBRE","") ->  | M46: =IF(J23="MENSUAL","OCTUBRE","") ->  | N46: =IF(J23="MENSUAL","NOVIEMBRE","") ->  | O46: =IF(J23="MENSUAL","DICIEMBRE","") -> 
C47: =G18 -> Número de funcionarios (administrativos y docentes) que asistieron a las Jornadas de Sensibilización *100 | D47: 646 | E47: 632
C48: =G19 -> Total de funcionarios activos en la vigencia | D48: 1443 | E48: 895
C49: VALOR | D49: =IFERROR(IF($E$17=1,D47/D48,IF($E$17=2,D47,"")),"") -> 0.4476784477 | E49: =IFERROR(IF($E$17=1,E47/E48,IF($E$17=2,E47,"")),"") -> 0.7061452514
C50: META PONDERADA | D50: =IF(AND(N23="ANUAL",J23="MENSUAL"),N17/12,IF(AND(N23="ANUAL",J23="TRIMESTRAL"),N17/4,IF(AND(N23="ANUAL",J23="SEMESTRAL"),N17/2,IF(AND(N23="ANUAL",J23="ANUAL"),N17,IF(AND(N23="SEMESTRAL",J23="MENSUAL"),N17/6,IF(AND(N23="SEMESTRAL",J23="TRIMESTRAL"),N17/2,IF(AND(N23="SEMESTRAL",J23="SEMESTRAL"),N17,IF(AND(N23="SEMESTRAL",J23="ANUAL"),"REVISAR FRECUENCIAS",IF(AND(N23="TRIMESTRAL",J23="MENSUAL"),N17/3,IF(AND(N23="TRIMESTRAL",J23="TRIMESTRAL"),N17,IF(AND(N23="TRIMESTRAL",J23="SEMESTRAL"),"REVISAR FRECUENCIAS",IF(AND(N23="TRIMESTRAL",J23="ANUAL"),"REVISAR FRECUENCIAS",IF(AND(N23="MENSUAL",J23="MENSUAL"),N17,IF(AND(N23="MENSUAL",J23="TRIMESTRAL"),"REVISAR FRECUENCIAS",IF(AND(N23="MENSUAL",J23="SEMESTRAL"),"REVISAR FRECUENCIAS",IF(AND(N23="MENSUAL",J23="ANUAL"),"REVISAR FRECUENCIAS","")))))))))))))))) -> 0.5 | E50: 0.5 | F50: =IF(AND(N23="ANUAL",J23="MENSUAL"),N17/12+E50,IF(AND(N23="ANUAL",J23="TRIMESTRAL"),N17/4+E50,IF(AND(N23="SEMESTRAL",J23="MENSUAL"),N17/6+E50,IF(AND(N23="SEMESTRAL",J23="TRIMESTRAL"),N17/2,IF(AND(N23="TRIMESTRAL",J23="MENSUAL"),N17/3+E50,IF(AND(N23="TRIMESTRAL",J23="TRIMESTRAL"),N17,IF(AND(N23="MENSUAL",J23="MENSUAL"),N17,""))))))) ->  | G50: =IF(AND(N23="ANUAL",J23="MENSUAL"),N17/12+F50,IF(AND(N23="ANUAL",J23="TRIMESTRAL"),N17/4+F50,IF(AND(N23="SEMESTRAL",J23="MENSUAL"),N17/6+F50,IF(AND(N23="SEMESTRAL",J23="TRIMESTRAL"),N17/2+F50,IF(AND(N23="TRIMESTRAL",J23="MENSUAL"),N17/3,IF(AND(N23="TRIMESTRAL",J23="TRIMESTRAL"),N17,IF(AND(N23="MENSUAL",J23="MENSUAL"),N17,""))))))) ->  | H50: =IF(AND($N$23="ANUAL",$J$23="MENSUAL"),$N$17/12+G50,IF(AND(N23="SEMESTRAL",J23="MENSUAL"),N17/6+G50,IF(AND(N23="TRIMESTRAL",J23="MENSUAL"),N17/3+G50,IF(AND(N23="MENSUAL",J23="MENSUAL"),N17,"")))) ->  | I50: =IF(AND($N$23="ANUAL",$J$23="MENSUAL"),$N$17/12+H50,IF(AND(N23="SEMESTRAL",J23="MENSUAL"),N17/6+H50,IF(AND(N23="TRIMESTRAL",J23="MENSUAL"),N17/3+H50,IF(AND(N23="MENSUAL",J23="MENSUAL"),N17,"")))) ->  | J50: =IF(AND($N$23="ANUAL",$J$23="MENSUAL"),$N$17/12+I50,IF(AND(N23="SEMESTRAL",J23="MENSUAL"),N17/6,IF(AND(N23="TRIMESTRAL",J23="MENSUAL"),N17/3,IF(AND(N23="MENSUAL",J23="MENSUAL"),N17,"")))) ->  | K50: =IF(AND($N$23="ANUAL",$J$23="MENSUAL"),$N$17/12+J50,IF(AND(N23="SEMESTRAL",J23="MENSUAL"),N17/6+J50,IF(AND(N23="TRIMESTRAL",J23="MENSUAL"),N17/3+J50,IF(AND(N23="MENSUAL",J23="MENSUAL"),N17,"")))) ->  | L50: =IF(AND($N$23="ANUAL",$J$23="MENSUAL"),$N$17/12+K50,IF(AND(N23="SEMESTRAL",J23="MENSUAL"),N17/6+K50,IF(AND(N23="TRIMESTRAL",J23="MENSUAL"),N17/3+K50,IF(AND(N23="MENSUAL",J23="MENSUAL"),N17,"")))) ->  | M50: =IF(AND($N$23="ANUAL",$J$23="MENSUAL"),$N$17/12+L50,IF(AND(N23="SEMESTRAL",J23="MENSUAL"),N17/6+L50,IF(AND(N23="TRIMESTRAL",J23="MENSUAL"),N17/3,IF(AND(N23="MENSUAL",J23="MENSUAL"),N17,"")))) ->  | N50: =IF(AND($N$23="ANUAL",$J$23="MENSUAL"),$N$17/12+M50,IF(AND(N23="SEMESTRAL",J23="MENSUAL"),N17/6+M50,IF(AND(N23="TRIMESTRAL",J23="MENSUAL"),N17/3+M50,IF(AND(N23="MENSUAL",J23="MENSUAL"),N17,"")))) ->  | O50: =IF(AND($N$23="ANUAL",$J$23="MENSUAL"),$N$17/12+N50,IF(AND(N23="SEMESTRAL",J23="MENSUAL"),N17/6+N50,IF(AND(N23="TRIMESTRAL",J23="MENSUAL"),N17/3+N50,IF(AND(N23="MENSUAL",J23="MENSUAL"),N17,"")))) -> 
C52: NIVEL DE SEGREGACIÓN *
C53: UNIDAD SEGREGADA (Ej. Facultad, Programa Académico, Área) | G53: RESULTADO | K53: ANALISIS DE DATOS SEGREGADO
G72: Estratégico | J72: Eficacia
G73: Misional | J73: Eficiencia
G74: Apoyo | J74: Acreditación
G75: Seguimiento, Medición, Análisis y Evaluación | J75: Positiva
G76: Direccionamiento Estratégico | J76: Negativa
G77: Planeación Institucional | J77: Por Unidad Regional
G78: Proyectos Especiales y Relaciones Interinstitucionales | J78: Por Facultad
G79: Sistemas Integrados | J79: Por Programa Académico
G80: Autoevaluación y Acreditación | J80: Por área
G81: Comunicaciones | J81: Por Laboratorio
G82: Formación y Aprendizaje | J82: Otros
G83: Ciencia, Tecnología e Innovación | J83: No Aplica
G84: Interacción Social Universitaria
G85: Bienestar Universitario
G86: Admisiones y Registro
G87: Graduados
G88: Dialogando con el Mundo
G89: Talento Humano
G90: Jurídica
G91: Financiera
G92: Sistemas y Tecnología
G93: Bienes y Servicios
G94: Documental
G95: Apoyo Académico
G96: Control Interno
G97: Control Disciplinario
G98: Servicio de Atención al Ciudadano

Sheet SGSI - 3 (2023)
B2: REGRESAR
E5: MACROPROCESO ESTRATÉGICO | M5: CÓDIGO: ESGr027
E6: PROCESO GESTIÓN SISTEMAS INTEGRADOS - CALIDAD | M6: VERSIÓN: 8
E7: MATRIZ DE MEDICIÓN Y SEGUIMIENTO A LOS PROCESOS DE GESTIÓN | M7: VIGENCIA: 2023-07-28
M8: PÁGINA: 9 de 15
C10: FICHA DE INDICADOR
C12: MACROPROCESO | E12: Estratégico | I12: NOMBRE DEL INDICADOR | K12: Percepcion del conocimiento de las jornadas de sensibilizacion en seguridad y privacidad de la información
C13: PROCESO GESTIÓN | E13: Sistemas Integrados
C14: RESPONSABLE DE MEDICIÓN | E14: Coordinadora del Sistema de Gestión de Seguridad de la Información – SGSI
C16: 1. COMPORTAMIENTO DE INDICADOR
C17: CLASIFICACIÓN DE LA MEDICIÓN | E17: 1 | H17: TIPO DE INDICADOR | J17: Eficiencia | L17: META | N17: 0.7
C18: FORMULA | E18: NUMERADOR | G18: Numero de evaluaciones aprobadas*100 | L18: UNIDAD DE MEDIDA | N18: Porcentual
E19: DENOMINADOR | G19: Numero total de evaluaciones presentadas por los participantes en las jornadas de sensibilizaciones
C20: TENDENCIA | E20: Positiva | H20: NIVEL DE SEGREGACIÓN * | J20: No Aplica | L20: ESCALA
L21: Deficiente | M21: Aceptable | N21: Bueno | O21: Excelente
L22: 0.4 | M22: 0.5 | N22: 0.6 | O22: 70% en adelante
C23: ORIGEN DE DATOS NUMERADOR | E23: HERRAMIENTA DE PERCEPCION APLICADA PARA MEDIR EL GRADO DE APROPIACION DE LOS FUNCIONARIOS DE LA UNIVERSIDAD DE CUNDINAMARCA | H23: FRECUENCIA DE LA MEDICIÓN | J23: ANUAL | L23: FRECUENCIA DE RESULTADO | N23: ANUAL
C24: ORIGEN DE DATOS DENOMINADOR | E24: LISTADO DE ASISTENCIA DE LOS FUNCIONARIOS A LAS JORNADAS DESENSIBILIZACION SE SEGURIDAD Y PRIVACIDAD DE LA INFORMACIÓN
C26: RESULTADOS
J27: ANÁLISIS DE DATOS
J28: Para la vigencia 2023, se llevaron a cabo un total de 19 jornadas de sensibilización en seguridad y privacidad de la información a nivel institucional, en cumplimiento con lo establecido en el ESG-SSI-PL01 "Plan Institucional de Sensibilización y Entrenamiento en Seguridad y Privacidad de la Información". Estas jornadas se realizaron en los meses de agosto, septiembre y octubre del año en curso. Durante estas jornadas de sensibilización se presentaron los avances en la implementación del Sistema de Gestión de Seguridad de la Información y la Ley de Protección de Datos Personales. Además, se abordaron diversas temáticas, entre ellas: las políticas institucionales de seguridad y privacidad de la información, los roles y responsabilidades del SGSI en la Universidad de Cundinamarca, el seguimiento a los planes de mejoramiento derivados de la auditoría interna I, la supresión de datos personales, el teletrabajo y sus riesgos y por ultimo las etapas del modelo de gestión integral de seguridad de la información. Teniendo en cuenta lo anterior, se llevaron a cabo 48 evaluaciones de manera grupal a los funcionarios que asistieron. En donde se utilizó una herramienta de percepción para medir el grado de apropiación de los funcionarios sobre las temáticas mencionadas anteriormente, y como resultado de la actividad, se obtuvieron 44 evaluaciones aprobadas, lo que indica que el 92% de los funcionarios demostraron un alto grado de apropiación de las temáticas presentadas.
J34: ACCIÓN FORMULADA
J35: Para la vigencia 2024, se realizará seguimiento a las personas que no tuvieron una calificación adecuada, esto con el propósito de revisar las causas del por qué recibieron una ponderación por debajo de la mínima, por lo cual se establecerán estrategias entre ellas, visitas de Vigías de Seguridad de la Información para que los colaboradores adquieran el conocimiento y lo apliquen en sus actividades laborales.
J41: RESPONSABLE
J42: =E14 -> Coordinadora del Sistema de Gestión de Seguridad de la Información – SGSI
C45: PERIODO DE EVALUACIÓN
C46: MES | D46: 2022 | E46: 2023 | F46: =IF(J23="MENSUAL","MARZO",IF(J23="TRIMESTRAL","SEPTIEMBRE","")) ->  | G46: =IF(J23="MENSUAL","ABRIL",IF(J23="TRIMESTRAL","DICIEMBRE","")) ->  | H46: =IF(J23="MENSUAL","MAYO","") ->  | I46: =IF(J23="MENSUAL","JUNIO","") ->  | J46: =IF(J23="MENSUAL","JULIO","") ->  | K46: =IF(J23="MENSUAL","AGOSTO","") ->  | L46: =IF(J23="MENSUAL","SEPTIEMBRE","") ->  | M46: =IF(J23="MENSUAL","OCTUBRE","") ->  | N46: =IF(J23="MENSUAL","NOVIEMBRE","") ->  | O46: =IF(J23="MENSUAL","DICIEMBRE","") -> 
C47: =G18 -> Numero de evaluaciones aprobadas*100 | D47: 320 | E47: 44
C48: =G19 -> Numero total de evaluaciones presentadas por los participantes en las jornadas de sensibilizaciones | D48: 388 | E48: 48
C49: VALOR | D49: =IFERROR(IF($E$17=1,D47/D48,IF($E$17=2,D47,"")),"") -> 0.824742268 | E49: =IFERROR(IF($E$17=1,E47/E48,IF($E$17=2,E47,"")),"") -> 0.9166666667
C50: META PONDERADA | D50: =IF(AND(N23="ANUAL",J23="MENSUAL"),N17/12,IF(AND(N23="ANUAL",J23="TRIMESTRAL"),N17/4,IF(AND(N23="ANUAL",J23="SEMESTRAL"),N17/2,IF(AND(N23="ANUAL",J23="ANUAL"),N17,IF(AND(N23="SEMESTRAL",J23="MENSUAL"),N17/6,IF(AND(N23="SEMESTRAL",J23="TRIMESTRAL"),N17/2,IF(AND(N23="SEMESTRAL",J23="SEMESTRAL"),N17,IF(AND(N23="SEMESTRAL",J23="ANUAL"),"REVISAR FRECUENCIAS",IF(AND(N23="TRIMESTRAL",J23="MENSUAL"),N17/3,IF(AND(N23="TRIMESTRAL",J23="TRIMESTRAL"),N17,IF(AND(N23="TRIMESTRAL",J23="SEMESTRAL"),"REVISAR FRECUENCIAS",IF(AND(N23="TRIMESTRAL",J23="ANUAL"),"REVISAR FRECUENCIAS",IF(AND(N23="MENSUAL",J23="MENSUAL"),N17,IF(AND(N23="MENSUAL",J23="TRIMESTRAL"),"REVISAR FRECUENCIAS",IF(AND(N23="MENSUAL",J23="SEMESTRAL"),"REVISAR FRECUENCIAS",IF(AND(N23="MENSUAL",J23="ANUAL"),"REVISAR FRECUENCIAS","")))))))))))))))) -> 0.7 | E50: 0.7 | F50: =IF(AND(N23="ANUAL",J23="MENSUAL"),N17/12+E50,IF(AND(N23="ANUAL",J23="TRIMESTRAL"),N17/4+E50,IF(AND(N23="SEMESTRAL",J23="MENSUAL"),N17/6+E50,IF(AND(N23="SEMESTRAL",J23="TRIMESTRAL"),N17/2,IF(AND(N23="TRIMESTRAL",J23="MENSUAL"),N17/3+E50,IF(AND(N23="TRIMESTRAL",J23="TRIMESTRAL"),N17,IF(AND(N23="MENSUAL",J23="MENSUAL"),N17,""))))))) ->  | G50: =IF(AND(N23="ANUAL",J23="MENSUAL"),N17/12+F50,IF(AND(N23="ANUAL",J23="TRIMESTRAL"),N17/4+F50,IF(AND(N23="SEMESTRAL",J23="MENSUAL"),N17/6+F50,IF(AND(N23="SEMESTRAL",J23="TRIMESTRAL"),N17/2+F50,IF(AND(N23="TRIMESTRAL",J23="MENSUAL"),N17/3,IF(AND(N23="TRIMESTRAL",J23="TRIMESTRAL"),N17,IF(AND(N23="MENSUAL",J23="MENSUAL"),N17,""))))))) ->  | H50: =IF(AND($N$23="ANUAL",$J$23="MENSUAL"),$N$17/12+G50,IF(AND(N23="SEMESTRAL",J23="MENSUAL"),N17/6+G50,IF(AND(N23="TRIMESTRAL",J23="MENSUAL"),N17/3+G50,IF(AND(N23="MENSUAL",J23="MENSUAL"),N17,"")))) ->  | I50: =IF(AND($N$23="ANUAL",$J$23="MENSUAL"),$N$17/12+H50,IF(AND(N23="SEMESTRAL",J23="MENSUAL"),N17/6+H50,IF(AND(N23="TRIMESTRAL",J23="MENSUAL"),N17/3+H50,IF(AND(N23="MENSUAL",J23="MENSUAL"),N17,"")))) ->  | J50: =IF(AND($N$23="ANUAL",$J$23="MENSUAL"),$N$17/12+I50,IF(AND(N23="SEMESTRAL",J23="MENSUAL"),N17/6,IF(AND(N23="TRIMESTRAL",J23="MENSUAL"),N17/3,IF(AND(N23="MENSUAL",J23="MENSUAL"),N17,"")))) ->  | K50: =IF(AND($N$23="ANUAL",$J$23="MENSUAL"),$N$17/12+J50,IF(AND(N23="SEMESTRAL",J23="MENSUAL"),N17/6+J50,IF(AND(N23="TRIMESTRAL",J23="MENSUAL"),N17/3+J50,IF(AND(N23="MENSUAL",J23="MENSUAL"),N17,"")))) ->  | L50: =IF(AND($N$23="ANUAL",$J$23="MENSUAL"),$N$17/12+K50,IF(AND(N23="SEMESTRAL",J23="MENSUAL"),N17/6+K50,IF(AND(N23="TRIMESTRAL",J23="MENSUAL"),N17/3+K50,IF(AND(N23="MENSUAL",J23="MENSUAL"),N17,"")))) ->  | M50: =IF(AND($N$23="ANUAL",$J$23="MENSUAL"),$N$17/12+L50,IF(AND(N23="SEMESTRAL",J23="MENSUAL"),N17/6+L50,IF(AND(N23="TRIMESTRAL",J23="MENSUAL"),N17/3,IF(AND(N23="MENSUAL",J23="MENSUAL"),N17,"")))) ->  | N50: =IF(AND($N$23="ANUAL",$J$23="MENSUAL"),$N$17/12+M50,IF(AND(N23="SEMESTRAL",J23="MENSUAL"),N17/6+M50,IF(AND(N23="TRIMESTRAL",J23="MENSUAL"),N17/3+M50,IF(AND(N23="MENSUAL",J23="MENSUAL"),N17,"")))) ->  | O50: =IF(AND($N$23="ANUAL",$J$23="MENSUAL"),$N$17/12+N50,IF(AND(N23="SEMESTRAL",J23="MENSUAL"),N17/6+N50,IF(AND(N23="TRIMESTRAL",J23="MENSUAL"),N17/3+N50,IF(AND(N23="MENSUAL",J23="MENSUAL"),N17,"")))) -> 
C52: NIVEL DE SEGREGACIÓN *
C53: UNIDAD SEGREGADA (Ej. Facultad, Programa Académico, Área) | G53: RESULTADO | K53: ANALISIS DE DATOS SEGREGADO
G72: Estratégico | J72: Eficacia
G73: Misional | J73: Eficiencia
G74: Apoyo | J74: Acreditación
G75: Seguimiento, Medición, Análisis y Evaluación | J75: Positiva
G76: Direccionamiento Estratégico | J76: Negativa
G77: Planeación Institucional | J77: Por Unidad Regional
G78: Proyectos Especiales y Relaciones Interinstitucionales | J78: Por Facultad
G79: Sistemas Integrados | J79: Por Programa Académico
G80: Autoevaluación y Acreditación | J80: Por área
G81: Comunicaciones | J81: Por Laboratorio
G82: Formación y Aprendizaje | J82: Otros
G83: Ciencia, Tecnología e Innovación | J83: No Aplica
G84: Interacción Social Universitaria
G85: Bienestar Universitario
G86: Admisiones y Registro
G87: Graduados
G88: Dialogando con el Mundo
G89: Talento Humano
G90: Jurídica
G91: Financiera
G92: Sistemas y Tecnología
G93: Bienes y Servicios
G94: Documental
G95: Apoyo Académico
G96: Control Interno
G97: Control Disciplinario
G98: Servicio de Atención al Ciudadano

Sheet SGSI - 4 (2023)
B2: REGRESAR
E5: MACROPROCESO ESTRATÉGICO | M5: CÓDIGO: ESGr027
E6: PROCESO GESTIÓN SISTEMAS INTEGRADOS - CALIDAD | M6: VERSIÓN: 8
E7: MATRIZ DE MEDICIÓN Y SEGUIMIENTO A LOS PROCESOS DE GESTIÓN | M7: VIGENCIA: 2023-07-28
M8: PÁGINA: 10 de 15
C10: FICHA DE INDICADOR
C12: MACROPROCESO | E12: Estratégico | I12: NOMBRE DEL INDICADOR | K12: Tratamiento de incidentes de seguridad y privacidad de la informacion reportados en la Universidad de Cundinamarca
C13: PROCESO GESTIÓN | E13: Sistemas Integrados
C14: RESPONSABLE DE MEDICIÓN | E14: Coordinadora del Sistema de Gestión de Seguridad de la Información – SGSI
C16: 1. COMPORTAMIENTO DE INDICADOR
C17: CLASIFICACIÓN DE LA MEDICIÓN | E17: 1 | H17: TIPO DE INDICADOR | J17: Eficacia | L17: META | N17: 0.7
C18: FORMULA | E18: NUMERADOR | G18: Número total de incidentes atendidos y cerrados durante el semestre*100 | L18: UNIDAD DE MEDIDA | N18: Porcentual
E19: DENOMINADOR | G19: Número total de incidentes que fueron reportados durante el semestre
C20: TENDENCIA | E20: Positiva | H20: NIVEL DE SEGREGACIÓN * | J20: No Aplica | L20: ESCALA
L21: Deficiente | M21: Aceptable | N21: Bueno | O21: Excelente
L22: 0.4 | M22: 0.5 | N22: 0.6 | O22: 70% - En adelante
C23: ORIGEN DE DATOS NUMERADOR | E23: Consolidado de incidentes de seguridad de la informacion que se encuentran en estado cerrado | H23: FRECUENCIA DE LA MEDICIÓN | J23: SEMESTRAL | L23: FRECUENCIA DE RESULTADO | N23: SEMESTRAL
C24: ORIGEN DE DATOS DENOMINADOR | E24: Total de incidentes de seguridad de la informacion reportados durante el semestre/trimestre
C26: RESULTADOS
J27: ANÁLISIS DE DATOS
J28: VIGENCIA 2023 I SEMESTRE. Para el primer semestre del 2023, se reportaron 20 incidentes de seguridad y privacidad de la informacion en la Universidad de Cundinamarca, donde se evidencio un posible riesgo que materialice la perdida de confidencialidad, integridad y disponibilidad de la informacion, El equipo de Respuesta Inmediata a Incidentes de Seguridad de la informacion CSIRT actuó acorde al procedimiento ESG-SSI-P09 "Gestión de incidentes de seguridad de la informacion" y atendió los incidentes en sus etapas de preparación, análisis y evaluación y si es necesario realizar las etapas de contención, erradicación y recuperación con el fin de cerrar los casos presentados como por ejemplo: Ingeniería social, Inserción de código malicioso, Accesos no autorizados y Exposición de información Sensible. Realizando seguimiento, verificación, tratamiento y cierre a 17 incidentes de seguridad y privacidad de la informacion, discriminados de las siguiente manera, 15 incidentes de seguridad de la informacion y 2 de protección de datos personales, que se presentaron durante el primer semestre, quedando 3 incidentes en proceso 2 hacen énfasis a seguridad de la informacion y 1 a tratamiento de datos personales, logrando así un 85% de gestión de incidente y evitando una posible materialización de un riesgo para los activos de informacion de la Universidad de Cundinamarca. VIGENCIA 2023 II SEMESTRE. Para el segundo semestre del 2023, se reportaron 84 eventos y/o incidentes de seguridad y privacidad de la informacion en la Universidad de Cundinamarca, en donde el Equipo de Respuesta a Incidentes de Seguridad de la informacion – CSIRT, actuó acorde al procedimiento ESG-SSI-P09 "Gestión de incidentes de seguridad de la informacion", y atendió los eventos y/o incidentes reportados de acuerdo a las etapas del ciclo vida de la gestión de incidentes, Preparación, Detención, Evaluación y Análisis y de ser necesario realizar las etapas de Contención, Erradicación y Recuperación, con el fin de dar cierre a los casos presentados como por ejemplo: ingeniería social, inserción de código malicioso, accesos no autorizados y exposición de información sensible. Como resultado de la gestión realizada, el Sistema de Gestión de Seguridad de la Información – SGSI, en articulación con el Área de Servicios Tecnológicos, realizo seguimiento, verificación, tratamiento y cierre a 82 eventos y/o incidentes de seguridad y privacidad de la información reportados por funcionarios (Administrativos y Docentes) y estudiantes de la institución, De igual manera se encuentra en espera de escalar un (1) incidente de seguridad de la información, y se encuentra en proceso (1) un incidente de protección de datos personales. Obteniendo un 100% de nivel de cumplimiento y evitando así la posible materialización de un riesgo por perdida de Confidencialidad, Integridad y Disponibilidad a los diferentes activos de informacion de la Universidad de Cundinamarca.
J34: ACCIÓN FORMULADA
J35: Para la vigencia 2024, se debe continuar con la Gestión de Incidentes de Seguridad de la Informacion, evitando la materialización de un riesgo que puede afectar la perdida de la confidencialidad, integridad y disponibilidad de los activos de información de la Universidad de Cundinamarca, además se realizara la gestión pertinente para poder contar con una mesa de servicios a un Clic, donde se le de la posibilidad a los funcionarios (administrativos y docentes) de reportar cualquier irregularidad que se considere un evento y/o incidente de seguridad y privacidad de la información.
J41: RESPONSABLE
J42: =E14 -> Coordinadora del Sistema de Gestión de Seguridad de la Información – SGSI
C45: PERIODO DE EVALUACIÓN
C46: MES | D46: =IF(J23="MENSUAL","ENERO",IF(J23="TRIMESTRAL","MARZO",IF(J23="SEMESTRAL","JUNIO",IF(J23="ANUAL",YEAR(TODAY()),"")))) -> JUNIO | E46: DICIEMBRE | F46: =IF(J23="MENSUAL","MARZO",IF(J23="TRIMESTRAL","SEPTIEMBRE","")) ->  | G46: =IF(J23="MENSUAL","ABRIL",IF(J23="TRIMESTRAL","DICIEMBRE","")) ->  | H46: =IF(J23="MENSUAL","MAYO","") ->  | I46: =IF(J23="MENSUAL","JUNIO","") ->  | J46: =IF(J23="MENSUAL","JULIO","") ->  | K46: =IF(J23="MENSUAL","AGOSTO","") ->  | L46: =IF(J23="MENSUAL","SEPTIEMBRE","") ->  | M46: =IF(J23="MENSUAL","OCTUBRE","") ->  | N46: =IF(J23="MENSUAL","NOVIEMBRE","") ->  | O46: =IF(J23="MENSUAL","DICIEMBRE","") -> 
C47: =G18 -> Número total de incidentes atendidos y cerrados durante el semestre*100 | D47: 17 | E47: 84
C48: =G19 -> Número total de incidentes que fueron reportados durante el semestre | D48: 20 | E48: 84
C49: VALOR | D49: =IFERROR(IF($E$17=1,D47/D48,IF($E$17=2,D47,"")),"") -> 0.85 | E49: =IFERROR(IF($E$17=1,E47/E48,IF($E$17=2,E47,"")),"") -> 1
C50: META PONDERADA | D50: =IF(AND(N23="ANUAL",J23="MENSUAL"),N17/12,IF(AND(N23="ANUAL",J23="TRIMESTRAL"),N17/4,IF(AND(N23="ANUAL",J23="SEMESTRAL"),N17/2,IF(AND(N23="ANUAL",J23="ANUAL"),N17,IF(AND(N23="SEMESTRAL",J23="MENSUAL"),N17/6,IF(AND(N23="SEMESTRAL",J23="TRIMESTRAL"),N17/2,IF(AND(N23="SEMESTRAL",J23="SEMESTRAL"),N17,IF(AND(N23="SEMESTRAL",J23="ANUAL"),"REVISAR FRECUENCIAS",IF(AND(N23="TRIMESTRAL",J23="MENSUAL"),N17/3,IF(AND(N23="TRIMESTRAL",J23="TRIMESTRAL"),N17,IF(AND(N23="TRIMESTRAL",J23="SEMESTRAL"),"REVISAR FRECUENCIAS",IF(AND(N23="TRIMESTRAL",J23="ANUAL"),"REVISAR FRECUENCIAS",IF(AND(N23="MENSUAL",J23="MENSUAL"),N17,IF(AND(N23="MENSUAL",J23="TRIMESTRAL"),"REVISAR FRECUENCIAS",IF(AND(N23="MENSUAL",J23="SEMESTRAL"),"REVISAR FRECUENCIAS",IF(AND(N23="MENSUAL",J23="ANUAL"),"REVISAR FRECUENCIAS","")))))))))))))))) -> 0.7 | E50: =IF(AND(N23="ANUAL",J23="MENSUAL"),N17/12,IF(AND(N23="ANUAL",J23="TRIMESTRAL"),N17/4,IF(AND(N23="ANUAL",J23="SEMESTRAL"),N17/2,IF(AND(N23="ANUAL",J23="ANUAL"),N17,IF(AND(N23="SEMESTRAL",J23="MENSUAL"),N17/6,IF(AND(N23="SEMESTRAL",J23="TRIMESTRAL"),N17/2,IF(AND(N23="SEMESTRAL",J23="SEMESTRAL"),N17,IF(AND(N23="SEMESTRAL",J23="ANUAL"),"REVISAR FRECUENCIAS",IF(AND(N23="TRIMESTRAL",J23="MENSUAL"),N17/3,IF(AND(N23="TRIMESTRAL",J23="TRIMESTRAL"),N17,IF(AND(N23="TRIMESTRAL",J23="SEMESTRAL"),"REVISAR FRECUENCIAS",IF(AND(N23="TRIMESTRAL",J23="ANUAL"),"REVISAR FRECUENCIAS",IF(AND(N23="MENSUAL",J23="MENSUAL"),N17,IF(AND(N23="MENSUAL",J23="TRIMESTRAL"),"REVISAR FRECUENCIAS",IF(AND(N23="MENSUAL",J23="SEMESTRAL"),"REVISAR FRECUENCIAS",IF(AND(N23="MENSUAL",J23="ANUAL"),"REVISAR FRECUENCIAS","")))))))))))))))) -> 0.7 | F50: =IF(AND(N23="ANUAL",J23="MENSUAL"),N17/12+E50,IF(AND(N23="ANUAL",J23="TRIMESTRAL"),N17/4+E50,IF(AND(N23="SEMESTRAL",J23="MENSUAL"),N17/6+E50,IF(AND(N23="SEMESTRAL",J23="TRIMESTRAL"),N17/2,IF(AND(N23="TRIMESTRAL",J23="MENSUAL"),N17/3+E50,IF(AND(N23="TRIMESTRAL",J23="TRIMESTRAL"),N17,IF(AND(N23="MENSUAL",J23="MENSUAL"),N17,""))))))) ->  | G50: =IF(AND(N23="ANUAL",J23="MENSUAL"),N17/12+F50,IF(AND(N23="ANUAL",J23="TRIMESTRAL"),N17/4+F50,IF(AND(N23="SEMESTRAL",J23="MENSUAL"),N17/6+F50,IF(AND(N23="SEMESTRAL",J23="TRIMESTRAL"),N17/2+F50,IF(AND(N23="TRIMESTRAL",J23="MENSUAL"),N17/3,IF(AND(N23="TRIMESTRAL",J23="TRIMESTRAL"),N17,IF(AND(N23="MENSUAL",J23="MENSUAL"),N17,""))))))) ->  | H50: =IF(AND($N$23="ANUAL",$J$23="MENSUAL"),$N$17/12+G50,IF(AND(N23="SEMESTRAL",J23="MENSUAL"),N17/6+G50,IF(AND(N23="TRIMESTRAL",J23="MENSUAL"),N17/3+G50,IF(AND(N23="MENSUAL",J23="MENSUAL"),N17,"")))) ->  | I50: =IF(AND($N$23="ANUAL",$J$23="MENSUAL"),$N$17/12+H50,IF(AND(N23="SEMESTRAL",J23="MENSUAL"),N17/6+H50,IF(AND(N23="TRIMESTRAL",J23="MENSUAL"),N17/3+H50,IF(AND(N23="MENSUAL",J23="MENSUAL"),N17,"")))) ->  | J50: =IF(AND($N$23="ANUAL",$J$23="MENSUAL"),$N$17/12+I50,IF(AND(N23="SEMESTRAL",J23="MENSUAL"),N17/6,IF(AND(N23="TRIMESTRAL",J23="MENSUAL"),N17/3,IF(AND(N23="MENSUAL",J23="MENSUAL"),N17,"")))) ->  | K50: =IF(AND($N$23="ANUAL",$J$23="MENSUAL"),$N$17/12+J50,IF(AND(N23="SEMESTRAL",J23="MENSUAL"),N17/6+J50,IF(AND(N23="TRIMESTRAL",J23="MENSUAL"),N17/3+J50,IF(AND(N23="MENSUAL",J23="MENSUAL"),N17,"")))) ->  | L50: =IF(AND($N$23="ANUAL",$J$23="MENSUAL"),$N$17/12+K50,IF(AND(N23="SEMESTRAL",J23="MENSUAL"),N17/6+K50,IF(AND(N23="TRIMESTRAL",J23="MENSUAL"),N17/3+K50,IF(AND(N23="MENSUAL",J23="MENSUAL"),N17,"")))) ->  | M50: =IF(AND($N$23="ANUAL",$J$23="MENSUAL"),$N$17/12+L50,IF(AND(N23="SEMESTRAL",J23="MENSUAL"),N17/6+L50,IF(AND(N23="TRIMESTRAL",J23="MENSUAL"),N17/3,IF(AND(N23="MENSUAL",J23="MENSUAL"),N17,"")))) ->  | N50: =IF(AND($N$23="ANUAL",$J$23="MENSUAL"),$N$17/12+M50,IF(AND(N23="SEMESTRAL",J23="MENSUAL"),N17/6+M50,IF(AND(N23="TRIMESTRAL",J23="MENSUAL"),N17/3+M50,IF(AND(N23="MENSUAL",J23="MENSUAL"),N17,"")))) ->  | O50: =IF(AND($N$23="ANUAL",$J$23="MENSUAL"),$N$17/12+N50,IF(AND(N23="SEMESTRAL",J23="MENSUAL"),N17/6+N50,IF(AND(N23="TRIMESTRAL",J23="MENSUAL"),N17/3+N50,IF(AND(N23="MENSUAL",J23="MENSUAL"),N17,"")))) -> 
C52: NIVEL DE SEGREGACIÓN *
C53: UNIDAD SEGREGADA (Ej. Facultad, Programa Académico, Área) | G53: RESULTADO | K53: ANALISIS DE DATOS SEGREGADO
G72: Estratégico | J72: Eficacia
G73: Misional | J73: Eficiencia
G74: Apoyo | J74: Acreditación
G75: Seguimiento, Medición, Análisis y Evaluación | J75: Positiva
G76: Direccionamiento Estratégico | J76: Negativa
G77: Planeación Institucional | J77: Por Unidad Regional
G78: Proyectos Especiales y Relaciones Interinstitucionales | J78: Por Facultad
G79: Sistemas Integrados | J79: Por Programa Académico
G80: Autoevaluación y Acreditación | J80: Por área
G81: Comunicaciones | J81: Por Laboratorio
G82: Formación y Aprendizaje | J82: Otros
G83: Ciencia, Tecnología e Innovación | J83: No Aplica
G84: Interacción Social Universitaria
G85: Bienestar Universitario
G86: Admisiones y Registro
G87: Graduados
G88: Dialogando con el Mundo
G89: Talento Humano
G90: Jurídica
G91: Financiera
G92: Sistemas y Tecnología
G93: Bienes y Servicios
G94: Documental
G95: Apoyo Académico
G96: Control Interno
G97: Control Disciplinario
G98: Servicio de Atención al Ciudadano

Sheet SGSI - 5 (2023)
B2: REGRESAR
E5: MACROPROCESO ESTRATÉGICO | M5: CÓDIGO: ESGr027
E6: PROCESO GESTIÓN SISTEMAS INTEGRADOS - CALIDAD | M6: VERSIÓN: 8
E7: MATRIZ DE MEDICIÓN Y SEGUIMIENTO A LOS PROCESOS DE GESTIÓN | M7: VIGENCIA: 2023-07-28
M8: PÁGINA: 11 de 15
C10: FICHA DE INDICADOR
C12: MACROPROCESO | E12: Estratégico | I12: NOMBRE DEL INDICADOR | K12: Porcentaje de Implementacion de los controles del anexo A Norma ISO 27001-2013 según la declaracion de aplicabilidad
C13: PROCESO GESTIÓN | E13: Sistemas Integrados
C14: RESPONSABLE DE MEDICIÓN | E14: Coordinadora del Sistema de Gestión de Seguridad de la Información – SGSI
C16: 1. COMPORTAMIENTO DE INDICADOR
C17: CLASIFICACIÓN DE LA MEDICIÓN | E17: 1 | H17: TIPO DE INDICADOR | J17: Eficiencia | L17: META | N17: 0.5
C18: FORMULA | E18: NUMERADOR | G18: Sumatoria de la valoracion individual de implementacion de los controles incluidos | L18: UNIDAD DE MEDIDA | N18: Porcentual
E19: DENOMINADOR | G19: Numero total de controles a implementar según la declaración de aplicabilidad
C20: TENDENCIA | E20: Positiva | H20: NIVEL DE SEGREGACIÓN * | J20: No Aplica | L20: ESCALA
L21: Deficiente | M21: Aceptable | N21: Bueno | O21: Excelente
L22: 0.2 | M22: 0.3 | N22: 0.4 | O22: 50% - En adelante
C23: ORIGEN DE DATOS NUMERADOR | E23: Ánalisis GAD del grado de avance de la implementacion de los controles | H23: FRECUENCIA DE LA MEDICIÓN | J23: SEMESTRAL | L23: FRECUENCIA DE RESULTADO | N23: SEMESTRAL
C24: ORIGEN DE DATOS DENOMINADOR | E24: Declaracion de Aplicabilidad ESG-SSI-r033
C26: RESULTADOS
J27: ANÁLISIS DE DATOS
J28: VIGENCIA 2023 I SEMESTRE. Para el primer semestre del 2023, se realizó una verificación y validación del porcentaje de implementación de cada uno de los controles del anexo A de la Norma ISO 27001: 2013, con el propósito de determinar el grado de implementación general del SGSI en la Universidad de Cundinamarca. Para esta medición se toma como referencia los 14 dominios de la Norma ISO 27001: 2013 y el nivel de valoración de implementación correspondiente, desagregados de la siguiente manera: Control A5 70%, Control A6 48%, Control A7 72%, Control A8 50%, Control A9 54%, Control A10 0%, Control A11 35%, Control A12 41%, Control A13 44%, Control A14 15%, Control A15 20%, Control A16 51%, Control A17 5%, Control A18 56%. Sobre el número total de dominios de la Norma ISO 27001: 2013, arrojando así un nivel de implementación del SGSI del 40% VIGENCIA 2023 II SEMESTRE. Para el primer semestre del 2023, se realizó una verificación y validación del porcentaje de implementación de cada uno de los controles del anexo A de la Norma ISO 27001: 2013, con el propósito de determinar el grado de implementación general del SGSI en la Universidad de Cundinamarca. Para esta medición se toma como referencia los 14 dominios de la Norma ISO 27001: 2013 y el nivel de valoración de implementación correspondiente, desagregados de la siguiente manera: Control A5 80%, Control A6 50%, Control A7 75%, Control A8 75%, Control A9 60%, Control A10 0%, Control A11 50%, Control A12 50%, Control A13 60%, Control A14 30%, Control A15 40%, Control A16 75%, Control A17 13%, Control A18 66%. Sobre el número total de dominios de la Norma ISO 27001: 2013, arrojando así un nivel de implementación del SGSI del 52%.
J34: ACCIÓN FORMULADA
J35: Para la vigencia 2024, se continuará evaluando el nivel de implementación y cumplimiento de los controles establecidos en la Norma ISO 27001:2013 en Anexo A, el Modelo de Seguridad y Privacidad de la Información – MSPI y la Ley de Protección de Datos Personales en la UNIVERSIDAD DE CUNDINAMARCA, además, se establecerán estrategias para fortalecer e incrementar el nivel de implementación y los criterios y requisitos necesarios para llevar a cabo la transición de la Norma a su versión 2022.
J41: RESPONSABLE
J42: =E14 -> Coordinadora del Sistema de Gestión de Seguridad de la Información – SGSI
C45: PERIODO DE EVALUACIÓN
C46: MES | D46: =IF(J23="MENSUAL","ENERO",IF(J23="TRIMESTRAL","MARZO",IF(J23="SEMESTRAL","JUNIO",IF(J23="ANUAL",YEAR(TODAY()),"")))) -> JUNIO | E46: DICIEMBRE | F46: =IF(J23="MENSUAL","MARZO",IF(J23="TRIMESTRAL","SEPTIEMBRE","")) ->  | G46: =IF(J23="MENSUAL","ABRIL",IF(J23="TRIMESTRAL","DICIEMBRE","")) ->  | H46: =IF(J23="MENSUAL","MAYO","") ->  | I46: =IF(J23="MENSUAL","JUNIO","") ->  | J46: =IF(J23="MENSUAL","JULIO","") ->  | K46: =IF(J23="MENSUAL","AGOSTO","") ->  | L46: =IF(J23="MENSUAL","SEPTIEMBRE","") ->  | M46: =IF(J23="MENSUAL","OCTUBRE","") ->  | N46: =IF(J23="MENSUAL","NOVIEMBRE","") ->  | O46: =IF(J23="MENSUAL","DICIEMBRE","") -> 
C47: =G18 -> Sumatoria de la valoracion individual de implementacion de los controles incluidos | D47: 562 | E47: 724
C48: =G19 -> Numero total de controles a implementar según la declaración de aplicabilidad | D48: 14 | E48: 14
C49: VALOR | D49: =IFERROR(IF($E$17=1,D47/ (D48*100),IF($E$17=2,D47,"")),"") -> 0.4014285714 | E49: =IFERROR(IF($E$17=1,E47/(E48*100),IF($E$17=2,E47,"")),"") -> 0.5171428571 | F49: =IFERROR(IF($E$17=1,F47/F48,IF($E$17=2,F47,"")),"") -> 
C50: META PONDERADA | D50: =IF(AND(N23="ANUAL",J23="MENSUAL"),N17/12,IF(AND(N23="ANUAL",J23="TRIMESTRAL"),N17/4,IF(AND(N23="ANUAL",J23="SEMESTRAL"),N17/2,IF(AND(N23="ANUAL",J23="ANUAL"),N17,IF(AND(N23="SEMESTRAL",J23="MENSUAL"),N17/6,IF(AND(N23="SEMESTRAL",J23="TRIMESTRAL"),N17/2,IF(AND(N23="SEMESTRAL",J23="SEMESTRAL"),N17,IF(AND(N23="SEMESTRAL",J23="ANUAL"),"REVISAR FRECUENCIAS",IF(AND(N23="TRIMESTRAL",J23="MENSUAL"),N17/3,IF(AND(N23="TRIMESTRAL",J23="TRIMESTRAL"),N17,IF(AND(N23="TRIMESTRAL",J23="SEMESTRAL"),"REVISAR FRECUENCIAS",IF(AND(N23="TRIMESTRAL",J23="ANUAL"),"REVISAR FRECUENCIAS",IF(AND(N23="MENSUAL",J23="MENSUAL"),N17,IF(AND(N23="MENSUAL",J23="TRIMESTRAL"),"REVISAR FRECUENCIAS",IF(AND(N23="MENSUAL",J23="SEMESTRAL"),"REVISAR FRECUENCIAS",IF(AND(N23="MENSUAL",J23="ANUAL"),"REVISAR FRECUENCIAS","")))))))))))))))) -> 0.5 | E50: 0.5 | F50: =IF(AND(N23="ANUAL",J23="MENSUAL"),N17/12+E50,IF(AND(N23="ANUAL",J23="TRIMESTRAL"),N17/4+E50,IF(AND(N23="SEMESTRAL",J23="MENSUAL"),N17/6+E50,IF(AND(N23="SEMESTRAL",J23="TRIMESTRAL"),N17/2,IF(AND(N23="TRIMESTRAL",J23="MENSUAL"),N17/3+E50,IF(AND(N23="TRIMESTRAL",J23="TRIMESTRAL"),N17,IF(AND(N23="MENSUAL",J23="MENSUAL"),N17,""))))))) ->  | G50: =IF(AND(N23="ANUAL",J23="MENSUAL"),N17/12+F50,IF(AND(N23="ANUAL",J23="TRIMESTRAL"),N17/4+F50,IF(AND(N23="SEMESTRAL",J23="MENSUAL"),N17/6+F50,IF(AND(N23="SEMESTRAL",J23="TRIMESTRAL"),N17/2+F50,IF(AND(N23="TRIMESTRAL",J23="MENSUAL"),N17/3,IF(AND(N23="TRIMESTRAL",J23="TRIMESTRAL"),N17,IF(AND(N23="MENSUAL",J23="MENSUAL"),N17,""))))))) ->  | H50: =IF(AND($N$23="ANUAL",$J$23="MENSUAL"),$N$17/12+G50,IF(AND(N23="SEMESTRAL",J23="MENSUAL"),N17/6+G50,IF(AND(N23="TRIMESTRAL",J23="MENSUAL"),N17/3+G50,IF(AND(N23="MENSUAL",J23="MENSUAL"),N17,"")))) ->  | I50: =IF(AND($N$23="ANUAL",$J$23="MENSUAL"),$N$17/12+H50,IF(AND(N23="SEMESTRAL",J23="MENSUAL"),N17/6+H50,IF(AND(N23="TRIMESTRAL",J23="MENSUAL"),N17/3+H50,IF(AND(N23="MENSUAL",J23="MENSUAL"),N17,"")))) ->  | J50: =IF(AND($N$23="ANUAL",$J$23="MENSUAL"),$N$17/12+I50,IF(AND(N23="SEMESTRAL",J23="MENSUAL"),N17/6,IF(AND(N23="TRIMESTRAL",J23="MENSUAL"),N17/3,IF(AND(N23="MENSUAL",J23="MENSUAL"),N17,"")))) ->  | K50: =IF(AND($N$23="ANUAL",$J$23="MENSUAL"),$N$17/12+J50,IF(AND(N23="SEMESTRAL",J23="MENSUAL"),N17/6+J50,IF(AND(N23="TRIMESTRAL",J23="MENSUAL"),N17/3+J50,IF(AND(N23="MENSUAL",J23="MENSUAL"),N17,"")))) ->  | L50: =IF(AND($N$23="ANUAL",$J$23="MENSUAL"),$N$17/12+K50,IF(AND(N23="SEMESTRAL",J23="MENSUAL"),N17/6+K50,IF(AND(N23="TRIMESTRAL",J23="MENSUAL"),N17/3+K50,IF(AND(N23="MENSUAL",J23="MENSUAL"),N17,"")))) ->  | M50: =IF(AND($N$23="ANUAL",$J$23="MENSUAL"),$N$17/12+L50,IF(AND(N23="SEMESTRAL",J23="MENSUAL"),N17/6+L50,IF(AND(N23="TRIMESTRAL",J23="MENSUAL"),N17/3,IF(AND(N23="MENSUAL",J23="MENSUAL"),N17,"")))) ->  | N50: =IF(AND($N$23="ANUAL",$J$23="MENSUAL"),$N$17/12+M50,IF(AND(N23="SEMESTRAL",J23="MENSUAL"),N17/6+M50,IF(AND(N23="TRIMESTRAL",J23="MENSUAL"),N17/3+M50,IF(AND(N23="MENSUAL",J23="MENSUAL"),N17,"")))) ->  | O50: =IF(AND($N$23="ANUAL",$J$23="MENSUAL"),$N$17/12+N50,IF(AND(N23="SEMESTRAL",J23="MENSUAL"),N17/6+N50,IF(AND(N23="TRIMESTRAL",J23="MENSUAL"),N17/3+N50,IF(AND(N23="MENSUAL",J23="MENSUAL"),N17,"")))) -> 
C52: NIVEL DE SEGREGACIÓN *
C53: UNIDAD SEGREGADA (Ej. Facultad, Programa Académico, Área) | G53: RESULTADO | K53: ANALISIS DE DATOS SEGREGADO
G72: Estratégico | J72: Eficacia
G73: Misional | J73: Eficiencia
G74: Apoyo | J74: Acreditación
G75: Seguimiento, Medición, Análisis y Evaluación | J75: Positiva
G76: Direccionamiento Estratégico | J76: Negativa
G77: Planeación Institucional | J77: Por Unidad Regional
G78: Proyectos Especiales y Relaciones Interinstitucionales | J78: Por Facultad
G79: Sistemas Integrados | J79: Por Programa Académico
G80: Autoevaluación y Acreditación | J80: Por área
G81: Comunicaciones | J81: Por Laboratorio
G82: Formación y Aprendizaje | J82: Otros
G83: Ciencia, Tecnología e Innovación | J83: No Aplica
G84: Interacción Social Universitaria
G85: Bienestar Universitario
G86: Admisiones y Registro
G87: Graduados
G88: Dialogando con el Mundo
G89: Talento Humano
G90: Jurídica
G91: Financiera
G92: Sistemas y Tecnología
G93: Bienes y Servicios
G94: Documental
G95: Apoyo Académico
G96: Control Interno
G97: Control Disciplinario
G98: Servicio de Atención al Ciudadano

Sheet SGSI - 6 (2023)
B2: REGRESAR
E5: MACROPROCESO ESTRATÉGICO | M5: CÓDIGO: ESGr027
E6: PROCESO GESTIÓN SISTEMAS INTEGRADOS - CALIDAD | M6: VERSIÓN: 8
E7: MATRIZ DE MEDICIÓN Y SEGUIMIENTO A LOS PROCESOS DE GESTIÓN | M7: VIGENCIA: 2023-07-28
M8: PÁGINA: 12 de 15
C10: FICHA DE INDICADOR
C12: MACROPROCESO | E12: Estratégico | I12: NOMBRE DEL INDICADOR | K12: Seguimiento a la gestión de Autorizaciones para el Tratamiento de Datos Personales
C13: PROCESO GESTIÓN | E13: Sistemas Integrados
C14: RESPONSABLE DE MEDICIÓN | E14: Coordinadora del Sistema de Gestión de Seguridad de la Información - SGSI
C16: 1. COMPORTAMIENTO DE INDICADOR
C17: CLASIFICACIÓN DE LA MEDICIÓN | E17: 1 | H17: TIPO DE INDICADOR | J17: Eficiencia | L17: META | N17: 0.9
C18: FORMULA | E18: NUMERADOR | G18: Numero de Autorizaciones para el Tratamiento de Datos Personales aprobadas que cumplen con los requisitos establecidos*100 | L18: UNIDAD DE MEDIDA | N18: Porcentual
E19: DENOMINADOR | G19: Total de autorizaciones gestionadas (según muestra)de estudiantes activos
C20: TENDENCIA | E20: Positiva | H20: NIVEL DE SEGREGACIÓN * | J20: No Aplica | L20: ESCALA
L21: Deficiente | M21: Aceptable | N21: Bueno | O21: Excelente
L22: 0 - 60% | M22: 61% - 80% | N22: 81% - 90% | O22: 91% - En adelante
C23: ORIGEN DE DATOS NUMERADOR | E23: Muestra del 10% del Aplicativo para la gestión de autorizaciones "Protección de datos" | H23: FRECUENCIA DE LA MEDICIÓN | J23: SEMESTRAL | L23: FRECUENCIA DE RESULTADO | N23: SEMESTRAL
C24: ORIGEN DE DATOS DENOMINADOR | E24: Base de Datos de los estudiantes activos
C26: RESULTADOS
J27: ANÁLISIS DE DATOS
J28: VIGENCIA 2023 I SEMESTRE: Para la verificación de la actividad que cumple con el parametro de estado "APROBADO" en el aplicativo institucional de Protección de Datos, para el primer semestre a corte junio de 2023 se tomaron 144 autorizaciones de 1436, de manera aleatoria que corresponden al 10% de la base de datos de la sede, seccionales y extensiones, desagregados de la siguiente manera: 42 de la Sede Fusagasugá, 17 de la Seccional Ubaté y 11 de la seccional Girardot, 25 de la Extensión Chía, 30 de la Extension Facatativá, 17 de la extension Soacha y 2 de la extensión Zipaquirá, de acuerdo a la poblacion estudiantil de cada sede,seccional y extensión. Se obtuvo como resultado el 87% de autorizaciones en estado "APROBADO" que cumplen con los requisitos establecidos. El 13% de las autorizaciones restantes que no cumplen con los criterios requeridos se constituye de la siguiente manera: El 65% corresponde a la sede Fusagasugá (12 diligenciadas a mano y 1 con firma escaneada), el 5% corresponde a la seccional Ubaté (1 no diligenciada en el formato establecido), el 10% corresponde a la Seccional Girardot (1 diligenciada a mano y 1 con firma escaneada),el 5% corresponde a la Extension soacha ( 1 no diligenciada en el formato establecido y el 15% corresponde a la extension Chia (3 Diligenciadas a mano). VIGENCIA 2023 II SEMESTRE: Para la verificación de la actividad que cumple con el parametro de estado "APROBADO" en el aplicativo institucional de Protección de Datos, para el Segundo semestre a corte Noviembre de 2023 se tomaron 132 autorizaciones de 1320, de manera aleatoria que corresponden al 10% de la base de datos de la sede, seccionales y extensiones, desagregados de la siguiente manera: 34 de la Sede Fusagasugá, 18 de la Seccional Ubaté y 10 de la seccional Girardot, 20 de la Extensión Chía, 35 de la Extension Facatativá, 13 de la extension Soacha y 2 de la extensión Zipaquirá, de acuerdo a la poblacion estudiantil de cada sede,seccional y extensión. Se obtuvo como resultado el 86% de autorizaciones en estado "APROBADO" que cumplen con los requisitos establecidos. El 14% de las autorizaciones restantes que no cumplen con los criterios requeridos se constituye de la siguiente manera: El 45% corresponde a la sede Fusagasugá (5 diligenciadas a mano, 2 con firma Digital y 2 con el correo diligenciado a mano ), 20% corresponde a la seccional Ubaté (3 firma digital y 1 sin correo Institucional),10% corresponde a la Extensión Facatativa (1 firma digital y 1 sin correo Institucional), 10% corresponde a la extension Chia (1 sin correo Institucional y 1 con el formato de autroizacion con 6 hojas),5% corresponde a la Extension Soacha (1 formato de Autorizacion en una sola hoja).
J34: ACCIÓN FORMULADA
J35: Para la Vigencia 2024, Se Determino llevar como punto a la Comision de Gestion la toma de desicion si se mantiene el control en epoca de Inscripcion de materias o de lo contrario sea levantado con esto se asegura la gestion de las Autorizaciones por parte de los Titulares.
J41: RESPONSABLE
J42: =E14 -> Coordinadora del Sistema de Gestión de Seguridad de la Información - SGSI
C45: PERIODO DE EVALUACIÓN
C46: MES | D46: =IF(J23="MENSUAL","ENERO",IF(J23="TRIMESTRAL","MARZO",IF(J23="SEMESTRAL","JUNIO",IF(J23="ANUAL",YEAR(TODAY()),"")))) -> JUNIO | E46: DICIEMBRE | F46: =IF(J23="MENSUAL","MARZO",IF(J23="TRIMESTRAL","SEPTIEMBRE","")) ->  | G46: =IF(J23="MENSUAL","ABRIL",IF(J23="TRIMESTRAL","DICIEMBRE","")) ->  | H46: =IF(J23="MENSUAL","MAYO","") ->  | I46: =IF(J23="MENSUAL","JUNIO","") ->  | J46: =IF(J23="MENSUAL","JULIO","") ->  | K46: =IF(J23="MENSUAL","AGOSTO","") ->  | L46: =IF(J23="MENSUAL","SEPTIEMBRE","") ->  | M46: =IF(J23="MENSUAL","OCTUBRE","") ->  | N46: =IF(J23="MENSUAL","NOVIEMBRE","") ->  | O46: =IF(J23="MENSUAL","DICIEMBRE","") -> 
C47: =G18 -> Numero de Autorizaciones para el Tratamiento de Datos Personales aprobadas que cumplen con los requisitos establecidos*100 | D47: 125 | E47: 114
C48: =G19 -> Total de autorizaciones gestionadas (según muestra)de estudiantes activos | D48: 144 | E48: 132
C49: VALOR | D49: =IFERROR(IF($E$17=1,D47/D48,IF($E$17=2,D47,"")),"") -> 0.8680555556 | E49: =IFERROR(IF($E$17=1,E47/E48,IF($E$17=2,E47,"")),"") -> 0.8636363636
C50: META PONDERADA | D50: =IF(AND(N23="ANUAL",J23="MENSUAL"),N17/12,IF(AND(N23="ANUAL",J23="TRIMESTRAL"),N17/4,IF(AND(N23="ANUAL",J23="SEMESTRAL"),N17/2,IF(AND(N23="ANUAL",J23="ANUAL"),N17,IF(AND(N23="SEMESTRAL",J23="MENSUAL"),N17/6,IF(AND(N23="SEMESTRAL",J23="TRIMESTRAL"),N17/2,IF(AND(N23="SEMESTRAL",J23="SEMESTRAL"),N17,IF(AND(N23="SEMESTRAL",J23="ANUAL"),"REVISAR FRECUENCIAS",IF(AND(N23="TRIMESTRAL",J23="MENSUAL"),N17/3,IF(AND(N23="TRIMESTRAL",J23="TRIMESTRAL"),N17,IF(AND(N23="TRIMESTRAL",J23="SEMESTRAL"),"REVISAR FRECUENCIAS",IF(AND(N23="TRIMESTRAL",J23="ANUAL"),"REVISAR FRECUENCIAS",IF(AND(N23="MENSUAL",J23="MENSUAL"),N17,IF(AND(N23="MENSUAL",J23="TRIMESTRAL"),"REVISAR FRECUENCIAS",IF(AND(N23="MENSUAL",J23="SEMESTRAL"),"REVISAR FRECUENCIAS",IF(AND(N23="MENSUAL",J23="ANUAL"),"REVISAR FRECUENCIAS","")))))))))))))))) -> 0.9 | E50: =IF(AND(N23="ANUAL",J23="MENSUAL"),N17/12,IF(AND(N23="ANUAL",J23="TRIMESTRAL"),N17/4,IF(AND(N23="ANUAL",J23="SEMESTRAL"),N17/2,IF(AND(N23="ANUAL",J23="ANUAL"),N17,IF(AND(N23="SEMESTRAL",J23="MENSUAL"),N17/6,IF(AND(N23="SEMESTRAL",J23="TRIMESTRAL"),N17/2,IF(AND(N23="SEMESTRAL",J23="SEMESTRAL"),N17,IF(AND(N23="SEMESTRAL",J23="ANUAL"),"REVISAR FRECUENCIAS",IF(AND(N23="TRIMESTRAL",J23="MENSUAL"),N17/3,IF(AND(N23="TRIMESTRAL",J23="TRIMESTRAL"),N17,IF(AND(N23="TRIMESTRAL",J23="SEMESTRAL"),"REVISAR FRECUENCIAS",IF(AND(N23="TRIMESTRAL",J23="ANUAL"),"REVISAR FRECUENCIAS",IF(AND(N23="MENSUAL",J23="MENSUAL"),N17,IF(AND(N23="MENSUAL",J23="TRIMESTRAL"),"REVISAR FRECUENCIAS",IF(AND(N23="MENSUAL",J23="SEMESTRAL"),"REVISAR FRECUENCIAS",IF(AND(N23="MENSUAL",J23="ANUAL"),"REVISAR FRECUENCIAS","")))))))))))))))) -> 0.9 | F50: =IF(AND(N23="ANUAL",J23="MENSUAL"),N17/12+E50,IF(AND(N23="ANUAL",J23="TRIMESTRAL"),N17/4+E50,IF(AND(N23="SEMESTRAL",J23="MENSUAL"),N17/6+E50,IF(AND(N23="SEMESTRAL",J23="TRIMESTRAL"),N17/2,IF(AND(N23="TRIMESTRAL",J23="MENSUAL"),N17/3+E50,IF(AND(N23="TRIMESTRAL",J23="TRIMESTRAL"),N17,IF(AND(N23="MENSUAL",J23="MENSUAL"),N17,""))))))) ->  | G50: =IF(AND(N23="ANUAL",J23="MENSUAL"),N17/12+F50,IF(AND(N23="ANUAL",J23="TRIMESTRAL"),N17/4+F50,IF(AND(N23="SEMESTRAL",J23="MENSUAL"),N17/6+F50,IF(AND(N23="SEMESTRAL",J23="TRIMESTRAL"),N17/2+F50,IF(AND(N23="TRIMESTRAL",J23="MENSUAL"),N17/3,IF(AND(N23="TRIMESTRAL",J23="TRIMESTRAL"),N17,IF(AND(N23="MENSUAL",J23="MENSUAL"),N17,""))))))) ->  | H50: =IF(AND($N$23="ANUAL",$J$23="MENSUAL"),$N$17/12+G50,IF(AND(N23="SEMESTRAL",J23="MENSUAL"),N17/6+G50,IF(AND(N23="TRIMESTRAL",J23="MENSUAL"),N17/3+G50,IF(AND(N23="MENSUAL",J23="MENSUAL"),N17,"")))) ->  | I50: =IF(AND($N$23="ANUAL",$J$23="MENSUAL"),$N$17/12+H50,IF(AND(N23="SEMESTRAL",J23="MENSUAL"),N17/6+H50,IF(AND(N23="TRIMESTRAL",J23="MENSUAL"),N17/3+H50,IF(AND(N23="MENSUAL",J23="MENSUAL"),N17,"")))) ->  | J50: =IF(AND($N$23="ANUAL",$J$23="MENSUAL"),$N$17/12+I50,IF(AND(N23="SEMESTRAL",J23="MENSUAL"),N17/6,IF(AND(N23="TRIMESTRAL",J23="MENSUAL"),N17/3,IF(AND(N23="MENSUAL",J23="MENSUAL"),N17,"")))) ->  | K50: =IF(AND($N$23="ANUAL",$J$23="MENSUAL"),$N$17/12+J50,IF(AND(N23="SEMESTRAL",J23="MENSUAL"),N17/6+J50,IF(AND(N23="TRIMESTRAL",J23="MENSUAL"),N17/3+J50,IF(AND(N23="MENSUAL",J23="MENSUAL"),N17,"")))) ->  | L50: =IF(AND($N$23="ANUAL",$J$23="MENSUAL"),$N$17/12+K50,IF(AND(N23="SEMESTRAL",J23="MENSUAL"),N17/6+K50,IF(AND(N23="TRIMESTRAL",J23="MENSUAL"),N17/3+K50,IF(AND(N23="MENSUAL",J23="MENSUAL"),N17,"")))) ->  | M50: =IF(AND($N$23="ANUAL",$J$23="MENSUAL"),$N$17/12+L50,IF(AND(N23="SEMESTRAL",J23="MENSUAL"),N17/6+L50,IF(AND(N23="TRIMESTRAL",J23="MENSUAL"),N17/3,IF(AND(N23="MENSUAL",J23="MENSUAL"),N17,"")))) ->  | N50: =IF(AND($N$23="ANUAL",$J$23="MENSUAL"),$N$17/12+M50,IF(AND(N23="SEMESTRAL",J23="MENSUAL"),N17/6+M50,IF(AND(N23="TRIMESTRAL",J23="MENSUAL"),N17/3+M50,IF(AND(N23="MENSUAL",J23="MENSUAL"),N17,"")))) ->  | O50: =IF(AND($N$23="ANUAL",$J$23="MENSUAL"),$N$17/12+N50,IF(AND(N23="SEMESTRAL",J23="MENSUAL"),N17/6+N50,IF(AND(N23="TRIMESTRAL",J23="MENSUAL"),N17/3+N50,IF(AND(N23="MENSUAL",J23="MENSUAL"),N17,"")))) -> 
C52: NIVEL DE SEGREGACIÓN *
C53: UNIDAD SEGREGADA (Ej. Facultad, Programa Académico, Área) | G53: RESULTADO | K53: ANALISIS DE DATOS SEGREGADO
G72: Estratégico | J72: Eficacia
G73: Misional | J73: Eficiencia
G74: Apoyo | J74: Acreditación
G75: Seguimiento, Medición, Análisis y Evaluación | J75: Positiva
G76: Direccionamiento Estratégico | J76: Negativa
G77: Planeación Institucional | J77: Por Unidad Regional
G78: Proyectos Especiales y Relaciones Interinstitucionales | J78: Por Facultad
G79: Sistemas Integrados | J79: Por Programa Académico
G80: Autoevaluación y Acreditación | J80: Por área
G81: Comunicaciones | J81: Por Laboratorio
G82: Formación y Aprendizaje | J82: Otros
G83: Ciencia, Tecnología e Innovación | J83: No Aplica
G84: Interacción Social Universitaria
G85: Bienestar Universitario
G86: Admisiones y Registro
G87: Graduados
G88: Dialogando con el Mundo
G89: Talento Humano
G90: Jurídica
G91: Financiera
G92: Sistemas y Tecnología
G93: Bienes y Servicios
G94: Documental
G95: Apoyo Académico
G96: Control Interno
G97: Control Disciplinario
G98: Servicio de Atención al Ciudadano

Sheet SGSI - 7 (2023)
B2: REGRESAR
E5: MACROPROCESO ESTRATÉGICO | M5: CÓDIGO: ESGr027
E6: PROCESO GESTIÓN SISTEMAS INTEGRADOS - CALIDAD | M6: VERSIÓN: 8
E7: MATRIZ DE MEDICIÓN Y SEGUIMIENTO A LOS PROCESOS DE GESTIÓN | M7: VIGENCIA: 2023-07-28
M8: PÁGINA: 13 de 15
C10: FICHA DE INDICADOR
C12: MACROPROCESO | E12: Estratégico | I12: NOMBRE DEL INDICADOR | K12: Seguimiento a las Autorizaciones rechazadas para el Tratamiento de Datos Personales
C13: PROCESO GESTIÓN | E13: Sistemas Integrados
C14: RESPONSABLE DE MEDICIÓN | E14: Coordinadora del Sistema de Gestión de Seguridad de la Información - SGSI
C16: 1. COMPORTAMIENTO DE INDICADOR
C17: CLASIFICACIÓN DE LA MEDICIÓN | E17: 1 | H17: TIPO DE INDICADOR | J17: Eficiencia | L17: META | N17: 0.7
C18: FORMULA | E18: NUMERADOR | G18: Estudiantes que gestionaron su autorizacion para el tratamiento de datos personales*100 | L18: UNIDAD DE MEDIDA | N18: Porcentual
E19: DENOMINADOR | G19: Total de estudiantes en estado rechazado durante el semestre
C20: TENDENCIA | E20: Positiva | H20: NIVEL DE SEGREGACIÓN * | J20: No Aplica | L20: ESCALA
L21: Deficiente | M21: Aceptable | N21: Bueno | O21: Excelente
L22: 0 - 30% | M22: 30% - 40% | N22: 50% - 60% | O22: 70% en adelante
C23: ORIGEN DE DATOS NUMERADOR | E23: Aplicativo para la gestión de autorizaciones "Protección de datos" | H23: FRECUENCIA DE LA MEDICIÓN | J23: SEMESTRAL | L23: FRECUENCIA DE RESULTADO | N23: SEMESTRAL
C24: ORIGEN DE DATOS DENOMINADOR | E24: Base de Datos de los titulares activos en estado "RECHAZADO" comienzo de vigencia 2023 l
C26: RESULTADOS
J27: ANÁLISIS DE DATOS
J28: VIGENCIA 2023 I SEMESTRE: Producto de la revisión de autorizaciones para el Tratamiento de Datos Personales de los titulares de la Universidad de Cundinamarca, el día 30 de marzo de 2023 se generó el listado de 1153 estudiantes en estado “RECHAZADO” en el aplicativo, discriminados de la siguiente forma: Sede Fusagasugá 328, Seccional Ubaté 124, Seccional Girardot 94, Extensión Soacha 163, Extensión Facatativá 283, Extensión Chía 143 y Extensión Zipaquirá 18. Para este seguimiento se aplicaron estrategias como la realizacion de campañas de gestion de autorizaciones llevadas a cabo en la sede, seccionales y extensiones, también se contactó a cada uno de los titulares por medio de la Plataforma Teams y de sus correos institucionales. Como resultado de este seguimiento se obtiene que de las 1153 autorizaciones en estado "RECHAZADO", se gestionaron y pasaron al estado "APROBADO" 766, correspondientes al 66% del total de autorizacones, quedando pendientes por gestionar 387, desagregadas de la siguiente manera: 209 en la sede Fusagasugá, 12 en seccional Ubaté, 5 en seccional Girardot, 25 en extensión Soacha, 89 en extensión Facatativá, 42 en extensión Chía y 18 en extensión Zipaquirá, que corresponden al 34% del total de autorizaciones. VIGENCIA 2023 II SEMESTRE: En continuidad con el proceso de revisión de autorizaciones para el Tratamiento de Datos Personales de los titulares de la Universidad de Cundinamarca, el día 8 de agosto de 2023 se generó el listado de 572 estudiantes activos en estado “RECHAZADO” en el aplicativo, discriminados de la siguiente forma: Sede Fusagasugá 264, Seccional Ubaté 11, Seccional Girardot 20, Extensión Soacha 61, Extensión Facatativá 162, Extensión Chía 41 y Extensión Zipaquirá 13. Para este seguimiento se aplicaron estrategias como la sensibilización de los estudiantes nuevos respecto a la gestion de autorizaciones en el marco del "Programa de Acogida a la Vida Universitaria 2023-2", la notificación a cada facultad y programa académico sobre sus estudiantes pendientes por gestionar autorización y en estado “Rechazado”, así como la asignación de roles de consulta a delegados por parte de cada facultad y coordinación de los programas académicos de la institución. Como resultado de este seguimiento se obtiene que de las 572 autorizaciones en estado "RECHAZADO", se gestionaron y pasaron al estado "APROBADO" 318, correspondientes al 56% del total de autorizaciones, quedando pendientes por gestionar 254, desagregadas de la siguiente manera: 132 en la sede Fusagasugá, 2 en seccional Ubaté, 2 en seccional Girardot, 22 en extensión Soacha, 68 en extensión Facatativá, 25 en extensión Chía y 3 en extensión Zipaquirá, que corresponden al 44% del total de autorizaciones.
J34: ACCIÓN FORMULADA
J35: Para la Vigencia 2024, Se Determino llevar como punto a la Comision de Gestion la toma de desicion si se mantiene el control en epoca de Inscripcion de materias o de lo contrario sea levantado con esto se asegura la gestion de las Autorizaciones por parte de los Titulares.
J41: RESPONSABLE
J42: =E14 -> Coordinadora del Sistema de Gestión de Seguridad de la Información - SGSI
C45: PERIODO DE EVALUACIÓN
C46: MES | D46: JUNIO | E46: DICIEMBRE | F46: =IF(J23="MENSUAL","MARZO",IF(J23="TRIMESTRAL","SEPTIEMBRE","")) ->  | G46: =IF(J23="MENSUAL","ABRIL",IF(J23="TRIMESTRAL","DICIEMBRE","")) ->  | H46: =IF(J23="MENSUAL","MAYO","") ->  | I46: =IF(J23="MENSUAL","JUNIO","") ->  | J46: =IF(J23="MENSUAL","JULIO","") ->  | K46: =IF(J23="MENSUAL","AGOSTO","") ->  | L46: =IF(J23="MENSUAL","SEPTIEMBRE","") ->  | M46: =IF(J23="MENSUAL","OCTUBRE","") ->  | N46: =IF(J23="MENSUAL","NOVIEMBRE","") ->  | O46: =IF(J23="MENSUAL","DICIEMBRE","") -> 
C47: =G18 -> Estudiantes que gestionaron su autorizacion para el tratamiento de datos personales*100 | D47: 766 | E47: 318
C48: =G19 -> Total de estudiantes en estado rechazado durante el semestre | D48: 1153 | E48: 572
C49: VALOR | D49: =IFERROR(IF($E$17=1,D47/D48,IF($E$17=2,D47,"")),"") -> 0.6643538595 | E49: =IFERROR(IF($E$17=1,E47/E48,IF($E$17=2,E47,"")),"") -> 0.5559440559 | F49: =IFERROR(IF($E$17=1,F47/F48,IF($E$17=2,F47,"")),"") -> 
C50: META PONDERADA | D50: =IF(AND(N23="ANUAL",J23="MENSUAL"),N17/12,IF(AND(N23="ANUAL",J23="TRIMESTRAL"),N17/4,IF(AND(N23="ANUAL",J23="SEMESTRAL"),N17/2,IF(AND(N23="ANUAL",J23="ANUAL"),N17,IF(AND(N23="SEMESTRAL",J23="MENSUAL"),N17/6,IF(AND(N23="SEMESTRAL",J23="TRIMESTRAL"),N17/2,IF(AND(N23="SEMESTRAL",J23="SEMESTRAL"),N17,IF(AND(N23="SEMESTRAL",J23="ANUAL"),"REVISAR FRECUENCIAS",IF(AND(N23="TRIMESTRAL",J23="MENSUAL"),N17/3,IF(AND(N23="TRIMESTRAL",J23="TRIMESTRAL"),N17,IF(AND(N23="TRIMESTRAL",J23="SEMESTRAL"),"REVISAR FRECUENCIAS",IF(AND(N23="TRIMESTRAL",J23="ANUAL"),"REVISAR FRECUENCIAS",IF(AND(N23="MENSUAL",J23="MENSUAL"),N17,IF(AND(N23="MENSUAL",J23="TRIMESTRAL"),"REVISAR FRECUENCIAS",IF(AND(N23="MENSUAL",J23="SEMESTRAL"),"REVISAR FRECUENCIAS",IF(AND(N23="MENSUAL",J23="ANUAL"),"REVISAR FRECUENCIAS","")))))))))))))))) -> 0.7 | E50: 0.7 | F50: =IF(AND(N23="ANUAL",J23="MENSUAL"),N17/12+E50,IF(AND(N23="ANUAL",J23="TRIMESTRAL"),N17/4+E50,IF(AND(N23="SEMESTRAL",J23="MENSUAL"),N17/6+E50,IF(AND(N23="SEMESTRAL",J23="TRIMESTRAL"),N17/2,IF(AND(N23="TRIMESTRAL",J23="MENSUAL"),N17/3+E50,IF(AND(N23="TRIMESTRAL",J23="TRIMESTRAL"),N17,IF(AND(N23="MENSUAL",J23="MENSUAL"),N17,""))))))) ->  | G50: =IF(AND(N23="ANUAL",J23="MENSUAL"),N17/12+F50,IF(AND(N23="ANUAL",J23="TRIMESTRAL"),N17/4+F50,IF(AND(N23="SEMESTRAL",J23="MENSUAL"),N17/6+F50,IF(AND(N23="SEMESTRAL",J23="TRIMESTRAL"),N17/2+F50,IF(AND(N23="TRIMESTRAL",J23="MENSUAL"),N17/3,IF(AND(N23="TRIMESTRAL",J23="TRIMESTRAL"),N17,IF(AND(N23="MENSUAL",J23="MENSUAL"),N17,""))))))) ->  | H50: =IF(AND($N$23="ANUAL",$J$23="MENSUAL"),$N$17/12+G50,IF(AND(N23="SEMESTRAL",J23="MENSUAL"),N17/6+G50,IF(AND(N23="TRIMESTRAL",J23="MENSUAL"),N17/3+G50,IF(AND(N23="MENSUAL",J23="MENSUAL"),N17,"")))) ->  | I50: =IF(AND($N$23="ANUAL",$J$23="MENSUAL"),$N$17/12+H50,IF(AND(N23="SEMESTRAL",J23="MENSUAL"),N17/6+H50,IF(AND(N23="TRIMESTRAL",J23="MENSUAL"),N17/3+H50,IF(AND(N23="MENSUAL",J23="MENSUAL"),N17,"")))) ->  | J50: =IF(AND($N$23="ANUAL",$J$23="MENSUAL"),$N$17/12+I50,IF(AND(N23="SEMESTRAL",J23="MENSUAL"),N17/6,IF(AND(N23="TRIMESTRAL",J23="MENSUAL"),N17/3,IF(AND(N23="MENSUAL",J23="MENSUAL"),N17,"")))) ->  | K50: =IF(AND($N$23="ANUAL",$J$23="MENSUAL"),$N$17/12+J50,IF(AND(N23="SEMESTRAL",J23="MENSUAL"),N17/6+J50,IF(AND(N23="TRIMESTRAL",J23="MENSUAL"),N17/3+J50,IF(AND(N23="MENSUAL",J23="MENSUAL"),N17,"")))) ->  | L50: =IF(AND($N$23="ANUAL",$J$23="MENSUAL"),$N$17/12+K50,IF(AND(N23="SEMESTRAL",J23="MENSUAL"),N17/6+K50,IF(AND(N23="TRIMESTRAL",J23="MENSUAL"),N17/3+K50,IF(AND(N23="MENSUAL",J23="MENSUAL"),N17,"")))) ->  | M50: =IF(AND($N$23="ANUAL",$J$23="MENSUAL"),$N$17/12+L50,IF(AND(N23="SEMESTRAL",J23="MENSUAL"),N17/6+L50,IF(AND(N23="TRIMESTRAL",J23="MENSUAL"),N17/3,IF(AND(N23="MENSUAL",J23="MENSUAL"),N17,"")))) ->  | N50: =IF(AND($N$23="ANUAL",$J$23="MENSUAL"),$N$17/12+M50,IF(AND(N23="SEMESTRAL",J23="MENSUAL"),N17/6+M50,IF(AND(N23="TRIMESTRAL",J23="MENSUAL"),N17/3+M50,IF(AND(N23="MENSUAL",J23="MENSUAL"),N17,"")))) ->  | O50: =IF(AND($N$23="ANUAL",$J$23="MENSUAL"),$N$17/12+N50,IF(AND(N23="SEMESTRAL",J23="MENSUAL"),N17/6+N50,IF(AND(N23="TRIMESTRAL",J23="MENSUAL"),N17/3+N50,IF(AND(N23="MENSUAL",J23="MENSUAL"),N17,"")))) -> 
C52: NIVEL DE SEGREGACIÓN *
C53: UNIDAD SEGREGADA (Ej. Facultad, Programa Académico, Área) | G53: RESULTADO | K53: ANALISIS DE DATOS SEGREGADO
G72: Estratégico | J72: Eficacia
G73: Misional | J73: Eficiencia
G74: Apoyo | J74: Acreditación
G75: Seguimiento, Medición, Análisis y Evaluación | J75: Positiva
G76: Direccionamiento Estratégico | J76: Negativa
G77: Planeación Institucional | J77: Por Unidad Regional
G78: Proyectos Especiales y Relaciones Interinstitucionales | J78: Por Facultad
G79: Sistemas Integrados | J79: Por Programa Académico
G80: Autoevaluación y Acreditación | J80: Por área
G81: Comunicaciones | J81: Por Laboratorio
G82: Formación y Aprendizaje | J82: Otros
G83: Ciencia, Tecnología e Innovación | J83: No Aplica
G84: Interacción Social Universitaria
G85: Bienestar Universitario
G86: Admisiones y Registro
G87: Graduados
G88: Dialogando con el Mundo
G89: Talento Humano
G90: Jurídica
G91: Financiera
G92: Sistemas y Tecnología
G93: Bienes y Servicios
G94: Documental
G95: Apoyo Académico
G96: Control Interno
G97: Control Disciplinario
G98: Servicio de Atención al Ciudadano

Sheet SGSI - 8 (2023)
B2: REGRESAR
E5: MACROPROCESO ESTRATÉGICO | M5: CÓDIGO: ESGr027
E6: PROCESO GESTIÓN SISTEMAS INTEGRADOS - CALIDAD | M6: VERSIÓN: 8
E7: MATRIZ DE MEDICIÓN Y SEGUIMIENTO A LOS PROCESOS DE GESTIÓN | M7: VIGENCIA: 2023-07-28
M8: PÁGINA: 14 de 15
C10: FICHA DE INDICADOR
C12: MACROPROCESO | E12: Estratégico | I12: NOMBRE DEL INDICADOR | K12: Seguimiento a las Autorizaciones No Realizadas para el Tratamiento de Datos Personales
C13: PROCESO GESTIÓN | E13: Sistemas Integrados
C14: RESPONSABLE DE MEDICIÓN | E14: Coordinadora del Sistema de Gestión de Seguridad de la Información – SGSI
C16: 1. COMPORTAMIENTO DE INDICADOR
C17: CLASIFICACIÓN DE LA MEDICIÓN | E17: 1 | H17: TIPO DE INDICADOR | J17: Eficacia | L17: META | N17: 0.01
C18: FORMULA | E18: NUMERADOR | G18: Estudiantes que no han gestionado la autorizacion*100 | L18: UNIDAD DE MEDIDA | N18: Porcentual
E19: DENOMINADOR | G19: Total de estudiantes activos durante el semestre
C20: TENDENCIA | E20: Positiva | H20: NIVEL DE SEGREGACIÓN * | J20: No Aplica | L20: ESCALA
L21: Deficiente | M21: Aceptable | N21: Bueno | O21: Excelente
L22: 5% en adelante | M22: 3% - 4% | N22: 0.02 | O22: 1% o menos
C23: ORIGEN DE DATOS NUMERADOR | E23: Base de datos de los estudiantes activos pendientes por gestionar la autorización | H23: FRECUENCIA DE LA MEDICIÓN | J23: SEMESTRAL | L23: FRECUENCIA DE RESULTADO | N23: SEMESTRAL
C24: ORIGEN DE DATOS DENOMINADOR | E24: Base de datos del total de estudiantes activos a vigencia 2023 I
C26: RESULTADOS
J27: ANÁLISIS DE DATOS
J28: VIGENCIA 2023 I SEMESTRE: Para este indicador se tomó la base de datos de todos los estudiantes activos de la sede, seccionales y extensiones, durante la vigencia 2023 I, posteriormente la base de datos de estudiantes pendientes por gestionar autorización; donde se halló un total de 12613 estudiantes activos y un consolidado de 304 estudiantes que nunca han realizado la autorización de tratamiento de datos personales, discriminados de la siguiente forma: Sede Fusagasugá 111, Seccional Ubaté 8 y Girardot 32, Extensiones Soacha 36, Facatativá 76, Chía 40 y Zipaquirá 1. Como resultado de esta verificación se obtuvo que el procentaje de abstinencia a la realización de la autorización por parte de los estudiantes de la sede Fusagasugá fue de un 3,2%, extensión Facatativá 2,6%, seccional Girardot 2,6%, extensión Chía 2,3%, extensión Soacha 2,1%, seccional Ubaté 0,6% y extensión Zipaquirá 0,4%. Para un procentaje general de abstinencia a realizar la autorización para el tratamiento de datos personales del 2%. VIGENCIA 2023 II SEMESTRE: Continuando con la medicion del indicador, se tomó la base de datos de todos los estudiantes activos de la sede, seccionales y extensiones, durante la vigencia 2023 II, posteriormente la base de datos de estudiantes pendientes por gestionar autorización; donde se halló un total de 12108 estudiantes activos y un consolidado de 327 estudiantes que nunca han realizado la autorización de tratamiento de datos personales, discriminados de la siguiente forma: Sede Fusagasugá 112, Seccional Ubaté 26 y Girardot 44, Extensiones Soacha 23, Facatativá 48, Chía 73 y Zipaquirá 1. Como resultado de esta verificación se obtuvo que el procentaje de abstinencia a la realización de la autorización por parte de los estudiantes de la sede Fusagasugá fue de un 3,6%, seccional Ubaté 2,1%, seccional Girardot 3,7%, extensión Soacha 14%, extensión Facatativá 1,6%, extensión Chía 4,2% y extensión Zipaquirá 0,5%. Para un procentaje general de abstinencia a realizar la autorización para el tratamiento de datos personales del 2,7%.
J34: ACCIÓN FORMULADA
J35: Para la Vigencia 2024, Se Determino llevar como punto a la Comision de Gestion la toma de desicion si se mantiene el control en epoca de Inscripcion de materias o de lo contrario sea levantado con esto se asegura la gestion de las Autorizaciones por parte de los Titulares.
J41: RESPONSABLE
J42: =E14 -> Coordinadora del Sistema de Gestión de Seguridad de la Información – SGSI
C45: PERIODO DE EVALUACIÓN
C46: MES | D46: =IF(J23="MENSUAL","ENERO",IF(J23="TRIMESTRAL","MARZO",IF(J23="SEMESTRAL","JUNIO",IF(J23="ANUAL",YEAR(TODAY()),"")))) -> JUNIO | E46: DICIEMBRE | F46: =IF(J23="MENSUAL","MARZO",IF(J23="TRIMESTRAL","SEPTIEMBRE","")) ->  | G46: =IF(J23="MENSUAL","ABRIL",IF(J23="TRIMESTRAL","DICIEMBRE","")) ->  | H46: =IF(J23="MENSUAL","MAYO","") ->  | I46: =IF(J23="MENSUAL","JUNIO","") ->  | J46: =IF(J23="MENSUAL","JULIO","") ->  | K46: =IF(J23="MENSUAL","AGOSTO","") ->  | L46: =IF(J23="MENSUAL","SEPTIEMBRE","") ->  | M46: =IF(J23="MENSUAL","OCTUBRE","") ->  | N46: =IF(J23="MENSUAL","NOVIEMBRE","") ->  | O46: =IF(J23="MENSUAL","DICIEMBRE","") -> 
C47: =G18 -> Estudiantes que no han gestionado la autorizacion*100 | D47: 304 | E47: 327
C48: =G19 -> Total de estudiantes activos durante el semestre | D48: 12613 | E48: 12108
C49: VALOR | D49: =IFERROR(IF($E$17=1,D47/D48,IF($E$17=2,D47,"")),"") -> 0.02410211686 | E49: =IFERROR(IF($E$17=1,E47/E48,IF($E$17=2,E47,"")),"") -> 0.02700693756
C50: META PONDERADA | D50: 0.01 | E50: 0.01 | F50: =IF(AND(N23="ANUAL",J23="MENSUAL"),N17/12+E50,IF(AND(N23="ANUAL",J23="TRIMESTRAL"),N17/4+E50,IF(AND(N23="SEMESTRAL",J23="MENSUAL"),N17/6+E50,IF(AND(N23="SEMESTRAL",J23="TRIMESTRAL"),N17/2,IF(AND(N23="TRIMESTRAL",J23="MENSUAL"),N17/3+E50,IF(AND(N23="TRIMESTRAL",J23="TRIMESTRAL"),N17,IF(AND(N23="MENSUAL",J23="MENSUAL"),N17,""))))))) ->  | G50: =IF(AND(N23="ANUAL",J23="MENSUAL"),N17/12+F50,IF(AND(N23="ANUAL",J23="TRIMESTRAL"),N17/4+F50,IF(AND(N23="SEMESTRAL",J23="MENSUAL"),N17/6+F50,IF(AND(N23="SEMESTRAL",J23="TRIMESTRAL"),N17/2+F50,IF(AND(N23="TRIMESTRAL",J23="MENSUAL"),N17/3,IF(AND(N23="TRIMESTRAL",J23="TRIMESTRAL"),N17,IF(AND(N23="MENSUAL",J23="MENSUAL"),N17,""))))))) ->  | H50: =IF(AND($N$23="ANUAL",$J$23="MENSUAL"),$N$17/12+G50,IF(AND(N23="SEMESTRAL",J23="MENSUAL"),N17/6+G50,IF(AND(N23="TRIMESTRAL",J23="MENSUAL"),N17/3+G50,IF(AND(N23="MENSUAL",J23="MENSUAL"),N17,"")))) ->  | I50: =IF(AND($N$23="ANUAL",$J$23="MENSUAL"),$N$17/12+H50,IF(AND(N23="SEMESTRAL",J23="MENSUAL"),N17/6+H50,IF(AND(N23="TRIMESTRAL",J23="MENSUAL"),N17/3+H50,IF(AND(N23="MENSUAL",J23="MENSUAL"),N17,"")))) ->  | J50: =IF(AND($N$23="ANUAL",$J$23="MENSUAL"),$N$17/12+I50,IF(AND(N23="SEMESTRAL",J23="MENSUAL"),N17/6,IF(AND(N23="TRIMESTRAL",J23="MENSUAL"),N17/3,IF(AND(N23="MENSUAL",J23="MENSUAL"),N17,"")))) ->  | K50: =IF(AND($N$23="ANUAL",$J$23="MENSUAL"),$N$17/12+J50,IF(AND(N23="SEMESTRAL",J23="MENSUAL"),N17/6+J50,IF(AND(N23="TRIMESTRAL",J23="MENSUAL"),N17/3+J50,IF(AND(N23="MENSUAL",J23="MENSUAL"),N17,"")))) ->  | L50: =IF(AND($N$23="ANUAL",$J$23="MENSUAL"),$N$17/12+K50,IF(AND(N23="SEMESTRAL",J23="MENSUAL"),N17/6+K50,IF(AND(N23="TRIMESTRAL",J23="MENSUAL"),N17/3+K50,IF(AND(N23="MENSUAL",J23="MENSUAL"),N17,"")))) ->  | M50: =IF(AND($N$23="ANUAL",$J$23="MENSUAL"),$N$17/12+L50,IF(AND(N23="SEMESTRAL",J23="MENSUAL"),N17/6+L50,IF(AND(N23="TRIMESTRAL",J23="MENSUAL"),N17/3,IF(AND(N23="MENSUAL",J23="MENSUAL"),N17,"")))) ->  | N50: =IF(AND($N$23="ANUAL",$J$23="MENSUAL"),$N$17/12+M50,IF(AND(N23="SEMESTRAL",J23="MENSUAL"),N17/6+M50,IF(AND(N23="TRIMESTRAL",J23="MENSUAL"),N17/3+M50,IF(AND(N23="MENSUAL",J23="MENSUAL"),N17,"")))) ->  | O50: =IF(AND($N$23="ANUAL",$J$23="MENSUAL"),$N$17/12+N50,IF(AND(N23="SEMESTRAL",J23="MENSUAL"),N17/6+N50,IF(AND(N23="TRIMESTRAL",J23="MENSUAL"),N17/3+N50,IF(AND(N23="MENSUAL",J23="MENSUAL"),N17,"")))) -> 
C52: NIVEL DE SEGREGACIÓN *
C53: UNIDAD SEGREGADA (Ej. Facultad, Programa Académico, Área) | G53: RESULTADO | K53: ANALISIS DE DATOS SEGREGADO
G72: Estratégico | J72: Eficacia
G73: Misional | J73: Eficiencia
G74: Apoyo | J74: Acreditación
G75: Seguimiento, Medición, Análisis y Evaluación | J75: Positiva
G76: Direccionamiento Estratégico | J76: Negativa
G77: Planeación Institucional | J77: Por Unidad Regional
G78: Proyectos Especiales y Relaciones Interinstitucionales | J78: Por Facultad
G79: Sistemas Integrados | J79: Por Programa Académico
G80: Autoevaluación y Acreditación | J80: Por área
G81: Comunicaciones | J81: Por Laboratorio
G82: Formación y Aprendizaje | J82: Otros
G83: Ciencia, Tecnología e Innovación | J83: No Aplica
G84: Interacción Social Universitaria
G85: Bienestar Universitario
G86: Admisiones y Registro
G87: Graduados
G88: Dialogando con el Mundo
G89: Talento Humano
G90: Jurídica
G91: Financiera
G92: Sistemas y Tecnología
G93: Bienes y Servicios
G94: Documental
G95: Apoyo Académico
G96: Control Interno
G97: Control Disciplinario
G98: Servicio de Atención al Ciudadano

Sheet SGSI - 1 (2024)
B2: REGRESAR
E5: MACROPROCESO ESTRATÉGICO | M5: CÓDIGO: ESGr027
E6: PROCESO GESTIÓN SISTEMAS INTEGRADOS - CALIDAD | M6: VERSIÓN: 8
E7: MATRIZ DE MEDICIÓN Y SEGUIMIENTO A LOS PROCESOS DE GESTIÓN | M7: VIGENCIA: 2023-07-28
M8: PÁGINA: 7 de 15
C10: FICHA DE INDICADOR
C12: MACROPROCESO | E12: Estratégico | I12: NOMBRE DEL INDICADOR | K12: Seguimiento al Cronograma de Actividades anual del SGSI
C13: PROCESO GESTIÓN | E13: Sistemas Integrados
C14: RESPONSABLE DE MEDICIÓN | E14: Coordinadora del Sistema de Gestión de Seguridad de la Información – SGSI
C16: 1. COMPORTAMIENTO DE INDICADOR
C17: CLASIFICACIÓN DE LA MEDICIÓN | E17: 1 | H17: TIPO DE INDICADOR | J17: Eficacia | L17: META | N17: 0.9
C18: FORMULA | E18: NUMERADOR | G18: Actividades realizadas *100 | L18: UNIDAD DE MEDIDA | N18: Porcentual
E19: DENOMINADOR | G19: Actividades programadas
C20: TENDENCIA | E20: Positiva | H20: NIVEL DE SEGREGACIÓN * | J20: No Aplica | L20: ESCALA
L21: Deficiente | M21: Aceptable | N21: Bueno | O21: Excelente
L22: 0 - 60% | M22: 61% - 80% | N22: 81% - 90% | O22: 91% - En adelante
C23: ORIGEN DE DATOS NUMERADOR | E23: Seguimiento al Cronograma de Actividades Anual del SGSI | H23: FRECUENCIA DE LA MEDICIÓN | J23: TRIMESTRAL | L23: FRECUENCIA DE RESULTADO | N23: ANUAL
C24: ORIGEN DE DATOS DENOMINADOR | E24: Cronograma de Actividades anual del SGSI
C26: RESULTADOS
J27: ANÁLISIS DE DATOS
J28: I TRIMESTRE Durante el primer trimestre de 2024, se completaron seis (06) de las 24 actividades planificadas en el cronograma de actividades “Estrategia para la implementación y continuidad del Sistema de Gestión de Seguridad de la Información - SGSI y la Ley de Protección de Datos Personales”. Las cuales se detallan a continuación: Actividad No. 1: Elaboración del cronograma de actividades, Actividad No. 2: Socialización del cronograma de actividades con la alta dirección, Actividad No. 3: Construcción y desarrollo de la estrategia para recolectar y consolidar las bases de datos institucionales, Actividad No. 4: Presentación de informes y entrega de requerimientos a la Dirección de Planeación y la Actividad No. 8: Revisión y actualización de la documentación del SGSI hasta la fecha y la Actividad No. 10: Gestionar las fases para la gestión de incidentes de seguridad de la información. En donde de todas las actividades descritas se encuentran documentadas y cuentan con evidencias de soporte en el OneDrive del SGSI. II TRIMESTRE Para el segundo trimestre de 2024, se completaron doce (12) de las 24 actividades planificadas en el cronograma de actividades. Las cuales se detallan a continuación: Actividad No. 5: Realización de la Auditoría Interna II del SGSI, Actividad No. 9: Dar continuidad al desarrollo del plan de tratamiento de riesgos, Actividad No. 11: Establecer y concertar la estrategia para realizar la gestión de activos, Actividad No. 13: Seguimiento a los planes de mejoramiento asociados a Seguridad de la Información y Privacidad de la Información, Actividad No. 14: Mantenimiento del Micrositio del SGSI, Actividad No. 15: Establecer la estrategia para medir la implementación de la Norma ISO 27001. Estas actividades se encuentran documentadas y cuentan con evidencias de soporte en el OneDrive del SGSI. III TRIMESTRE Para el tercer trimestre del 2024, se completaron dieciocho (18) de las 24 actividades planificadas en el cronograma de actividades. Las cuales se detallan a continuación: Actividad No. 6: Consolidar los planes de mejoramiento producto de la Auditoría Interna II del Sistema de Gestión de Seguridad de la Información – SGSI, Actividad No. 16: Diseño y estrategia para la realización de las visitas de Rol de Vigía de Seguridad, Actividad No. 17: Diseñar la estrategia y realización de las jornadas de Sensibilización en Seguridad y Privacidad de la Información atendiendo el Plan de Sensibilización y Entrenamiento ESG-SSI-PL01, Actividad No. 21: Seguimiento a la ejecución presupuestal del proyecto inscrito en el Banco de Proyectos institucional 2024, Actividad No. 22: Desarrollo de las acciones pertinentes para la inscripción del proyecto "Implementación del Sistema de Gestión de Seguridad de la Información y la Ley de Protección de Datos Personales" que permita continuar con su implementación y sostenibilidad para la vigencia 2025, Actividad No. 23: Desarrollar la estrategia que permita la transición de la norma ISO27001 : 2013 a la norma ISO27001:2022. Estas actividades se encuentran documentadas y cuentan con evidencias de soporte en el OneDrive del SGSI. IV TRIMESTRE Para el cuarto trimestre del 2023, se completaron realizaron veinticuatro (24) de las 24 actividades que se plantearon en el Cronograma de actividades denominado “Estrategia parta la implementación y continuidad del Sistema de Gestión de Seguridad de la Información – SGSI, y la Ley de protección de datos personales, las actividades planteadas en el cronograma de actividades se realizaron y están documentadas en el OneDrive de la vigencia 2024 del SGSI.
J34: ACCIÓN FORMULADA
J35: Para la vigencia 2025, se dará inicio a la implementación del frente de ciberseguridad dentro del Modelo de Gestión Integral del SGSI. Asimismo, se continuará con la gestión y el seguimiento de los treinta y tres (33) planes de mejoramiento derivados de la Auditoría Interna II del SGSI. Además, se proseguirá con la implementación de las cuatro (4) categorías de controles (Organizacionales, de Personas, Físicos y Tecnológicos) establecidas en el Anexo A de la Norma ISO 27001:2022. Finalmente, se llevará a cabo la Auditoría Interna III del SGSI, en conformidad con los lineamientos de la nueva versión de la norma.
J41: RESPONSABLE
J42: =E14 -> Coordinadora del Sistema de Gestión de Seguridad de la Información – SGSI
C45: PERIODO DE EVALUACIÓN
C46: MES | D46: =IF(J23="MENSUAL","ENERO",IF(J23="TRIMESTRAL","MARZO",IF(J23="SEMESTRAL","JUNIO",IF(J23="ANUAL",YEAR(TODAY()),"")))) -> MARZO | E46: =IF(J23="MENSUAL","FEBRERO",IF(J23="TRIMESTRAL","JUNIO",IF(J23="SEMESTRAL","DICIEMBRE",""))) -> JUNIO | F46: =IF(J23="MENSUAL","MARZO",IF(J23="TRIMESTRAL","SEPTIEMBRE","")) -> SEPTIEMBRE | G46: =IF(J23="MENSUAL","ABRIL",IF(J23="TRIMESTRAL","DICIEMBRE","")) -> DICIEMBRE | H46: =IF(J23="MENSUAL","MAYO","") ->  | I46: =IF(J23="MENSUAL","JUNIO","") ->  | J46: =IF(J23="MENSUAL","JULIO","") ->  | K46: =IF(J23="MENSUAL","AGOSTO","") ->  | L46: =IF(J23="MENSUAL","SEPTIEMBRE","") ->  | M46: =IF(J23="MENSUAL","OCTUBRE","") ->  | N46: =IF(J23="MENSUAL","NOVIEMBRE","") ->  | O46: =IF(J23="MENSUAL","DICIEMBRE","") -> 
C47: =G18 -> Actividades realizadas *100 | D47: 6 | E47: 12 | F47: 18 | G47: 24
C48: =G19 -> Actividades programadas | D48: 24 | E48: 24 | F48: 24 | G48: 24
C49: VALOR | D49: =IFERROR(IF($E$17=1,D47/D48,IF($E$17=2,D47,"")),"") -> 0.25 | E49: =IFERROR(IF($E$17=1,E47/E48,IF($E$17=2,E47,"")),"") -> 0.5 | F49: =IFERROR(IF($E$17=1,F47/F48,IF($E$17=2,F47,"")),"") -> 0.75 | G49: 1
C50: META PONDERADA | D50: =IF(AND(N23="ANUAL",J23="MENSUAL"),N17/12,IF(AND(N23="ANUAL",J23="TRIMESTRAL"),N17/4,IF(AND(N23="ANUAL",J23="SEMESTRAL"),N17/2,IF(AND(N23="ANUAL",J23="ANUAL"),N17,IF(AND(N23="SEMESTRAL",J23="MENSUAL"),N17/6,IF(AND(N23="SEMESTRAL",J23="TRIMESTRAL"),N17/2,IF(AND(N23="SEMESTRAL",J23="SEMESTRAL"),N17,IF(AND(N23="SEMESTRAL",J23="ANUAL"),"REVISAR FRECUENCIAS",IF(AND(N23="TRIMESTRAL",J23="MENSUAL"),N17/3,IF(AND(N23="TRIMESTRAL",J23="TRIMESTRAL"),N17,IF(AND(N23="TRIMESTRAL",J23="SEMESTRAL"),"REVISAR FRECUENCIAS",IF(AND(N23="TRIMESTRAL",J23="ANUAL"),"REVISAR FRECUENCIAS",IF(AND(N23="MENSUAL",J23="MENSUAL"),N17,IF(AND(N23="MENSUAL",J23="TRIMESTRAL"),"REVISAR FRECUENCIAS",IF(AND(N23="MENSUAL",J23="SEMESTRAL"),"REVISAR FRECUENCIAS",IF(AND(N23="MENSUAL",J23="ANUAL"),"REVISAR FRECUENCIAS","")))))))))))))))) -> 0.225 | E50: =IF(AND(N23="ANUAL",J23="MENSUAL"),N17/12+D50,IF(AND(N23="ANUAL",J23="TRIMESTRAL"),N17/4+D50,IF(AND(N23="ANUAL",J23="SEMESTRAL"),N17/2+D50,IF(AND(N23="SEMESTRAL",J23="MENSUAL"),N17/6+D50,IF(AND(N23="SEMESTRAL",J23="TRIMESTRAL"),N17/2+D50,IF(AND(N23="SEMESTRAL",J23="SEMESTRAL"),N17,IF(AND(N23="TRIMESTRAL",J23="MENSUAL"),N17/3+D50,IF(AND(N23="TRIMESTRAL",J23="TRIMESTRAL"),N17,IF(AND(N23="MENSUAL",J23="MENSUAL"),N17,""))))))))) -> 0.45 | F50: =IF(AND(N23="ANUAL",J23="MENSUAL"),N17/12+E50,IF(AND(N23="ANUAL",J23="TRIMESTRAL"),N17/4+E50,IF(AND(N23="SEMESTRAL",J23="MENSUAL"),N17/6+E50,IF(AND(N23="SEMESTRAL",J23="TRIMESTRAL"),N17/2,IF(AND(N23="TRIMESTRAL",J23="MENSUAL"),N17/3+E50,IF(AND(N23="TRIMESTRAL",J23="TRIMESTRAL"),N17,IF(AND(N23="MENSUAL",J23="MENSUAL"),N17,""))))))) -> 0.675 | G50: =IF(AND(N23="ANUAL",J23="MENSUAL"),N17/12+F50,IF(AND(N23="ANUAL",J23="TRIMESTRAL"),N17/4+F50,IF(AND(N23="SEMESTRAL",J23="MENSUAL"),N17/6+F50,IF(AND(N23="SEMESTRAL",J23="TRIMESTRAL"),N17/2+F50,IF(AND(N23="TRIMESTRAL",J23="MENSUAL"),N17/3,IF(AND(N23="TRIMESTRAL",J23="TRIMESTRAL"),N17,IF(AND(N23="MENSUAL",J23="MENSUAL"),N17,""))))))) -> 0.9 | H50: =IF(AND($N$23="ANUAL",$J$23="MENSUAL"),$N$17/12+G50,IF(AND(N23="SEMESTRAL",J23="MENSUAL"),N17/6+G50,IF(AND(N23="TRIMESTRAL",J23="MENSUAL"),N17/3+G50,IF(AND(N23="MENSUAL",J23="MENSUAL"),N17,"")))) ->  | I50: =IF(AND($N$23="ANUAL",$J$23="MENSUAL"),$N$17/12+H50,IF(AND(N23="SEMESTRAL",J23="MENSUAL"),N17/6+H50,IF(AND(N23="TRIMESTRAL",J23="MENSUAL"),N17/3+H50,IF(AND(N23="MENSUAL",J23="MENSUAL"),N17,"")))) ->  | J50: =IF(AND($N$23="ANUAL",$J$23="MENSUAL"),$N$17/12+I50,IF(AND(N23="SEMESTRAL",J23="MENSUAL"),N17/6,IF(AND(N23="TRIMESTRAL",J23="MENSUAL"),N17/3,IF(AND(N23="MENSUAL",J23="MENSUAL"),N17,"")))) ->  | K50: =IF(AND($N$23="ANUAL",$J$23="MENSUAL"),$N$17/12+J50,IF(AND(N23="SEMESTRAL",J23="MENSUAL"),N17/6+J50,IF(AND(N23="TRIMESTRAL",J23="MENSUAL"),N17/3+J50,IF(AND(N23="MENSUAL",J23="MENSUAL"),N17,"")))) ->  | L50: =IF(AND($N$23="ANUAL",$J$23="MENSUAL"),$N$17/12+K50,IF(AND(N23="SEMESTRAL",J23="MENSUAL"),N17/6+K50,IF(AND(N23="TRIMESTRAL",J23="MENSUAL"),N17/3+K50,IF(AND(N23="MENSUAL",J23="MENSUAL"),N17,"")))) ->  | M50: =IF(AND($N$23="ANUAL",$J$23="MENSUAL"),$N$17/12+L50,IF(AND(N23="SEMESTRAL",J23="MENSUAL"),N17/6+L50,IF(AND(N23="TRIMESTRAL",J23="MENSUAL"),N17/3,IF(AND(N23="MENSUAL",J23="MENSUAL"),N17,"")))) ->  | N50: =IF(AND($N$23="ANUAL",$J$23="MENSUAL"),$N$17/12+M50,IF(AND(N23="SEMESTRAL",J23="MENSUAL"),N17/6+M50,IF(AND(N23="TRIMESTRAL",J23="MENSUAL"),N17/3+M50,IF(AND(N23="MENSUAL",J23="MENSUAL"),N17,"")))) ->  | O50: =IF(AND($N$23="ANUAL",$J$23="MENSUAL"),$N$17/12+N50,IF(AND(N23="SEMESTRAL",J23="MENSUAL"),N17/6+N50,IF(AND(N23="TRIMESTRAL",J23="MENSUAL"),N17/3+N50,IF(AND(N23="MENSUAL",J23="MENSUAL"),N17,"")))) -> 
C52: NIVEL DE SEGREGACIÓN *
C53: UNIDAD SEGREGADA (Ej. Facultad, Programa Académico, Área) | G53: RESULTADO | K53: ANALISIS DE DATOS SEGREGADO
G72: Estratégico | J72: Eficacia
G73: Misional | J73: Eficiencia
G74: Apoyo | J74: Acreditación
G75: Seguimiento, Medición, Análisis y Evaluación | J75: Positiva
G76: Direccionamiento Estratégico | J76: Negativa
G77: Planeación Institucional | J77: Por Unidad Regional
G78: Proyectos Especiales y Relaciones Interinstitucionales | J78: Por Facultad
G79: Sistemas Integrados | J79: Por Programa Académico
G80: Autoevaluación y Acreditación | J80: Por área
G81: Comunicaciones | J81: Por Laboratorio
G82: Formación y Aprendizaje | J82: Otros
G83: Ciencia, Tecnología e Innovación | J83: No Aplica
G84: Interacción Social Universitaria
G85: Bienestar Universitario
G86: Admisiones y Registro
G87: Graduados
G88: Dialogando con el Mundo
G89: Talento Humano
G90: Jurídica
G91: Financiera
G92: Sistemas y Tecnología
G93: Bienes y Servicios
G94: Documental
G95: Apoyo Académico
G96: Control Interno
G97: Control Disciplinario
G98: Servicio de Atención al Ciudadano

Sheet SGSI - 2 (2024)
B2: REGRESAR
E5: MACROPROCESO ESTRATÉGICO | M5: CÓDIGO: ESGr027
E6: PROCESO GESTIÓN SISTEMAS INTEGRADOS - CALIDAD | M6: VERSIÓN: 8
E7: MATRIZ DE MEDICIÓN Y SEGUIMIENTO A LOS PROCESOS DE GESTIÓN | M7: VIGENCIA: 2023-07-28
M8: PÁGINA: 8 de 15
C10: FICHA DE INDICADOR
C12: MACROPROCESO | E12: Estratégico | I12: NOMBRE DEL INDICADOR | K12: Participación de los funcionarios administrativos y gestores del conocimiento en las Jornadas de Sensibilización del SGSI
C13: PROCESO GESTIÓN | E13: Sistemas Integrados
C14: RESPONSABLE DE MEDICIÓN | E14: Coordinadora del Sistema de Gestión de Seguridad de la Información – SGSI
C16: 1. COMPORTAMIENTO DE INDICADOR
C17: CLASIFICACIÓN DE LA MEDICIÓN | E17: 1 | H17: TIPO DE INDICADOR | J17: Eficacia | L17: META | N17: 0.5
C18: FORMULA | E18: NUMERADOR | G18: Número de funcionarios (administrativos y docentes) que asistieron a las Jornadas de Sensibilización *100 | L18: UNIDAD DE MEDIDA | N18: Porcentual
E19: DENOMINADOR | G19: Total de funcionarios activos en la vigencia
C20: TENDENCIA | E20: Positiva | H20: NIVEL DE SEGREGACIÓN * | J20: No Aplica | L20: ESCALA
L21: Deficiente | M21: Aceptable | N21: Bueno | O21: Excelente
L22: 0 - 30% | M22: 31% - 40% | N22: 41% - 50% | O22: 51% - En adelante
C23: ORIGEN DE DATOS NUMERADOR | E23: Listado de asistencia | H23: FRECUENCIA DE LA MEDICIÓN | J23: ANUAL | L23: FRECUENCIA DE RESULTADO | N23: ANUAL
C24: ORIGEN DE DATOS DENOMINADOR | E24: Base de datos del personal administrativo y docente activos en la vigencia
C26: RESULTADOS
J27: ANÁLISIS DE DATOS
J28: Atendiendo la decisión adoptada por la Comisión de Gestión en la sección ordinaria del 05 de junio del 2024, el Sistema de Gestión de Seguridad de la Información – SGSI realizo veintitrés (23) Jornadas de Sensibilización en Seguridad y Privacidad de la Información, para el personal administrativo y gestores del conocimiento en todas sus modalidades de contratación en la Universidad de Cundinamarca, de acuerdo al ESG-SSI-PL01 “Plan Institucional de sensibilización y Entrenamiento en Seguridad y Privacidad de la Información”. La estrategia de invitación de las a las Jornadas de Sensibilización, se realizó mediante la circular No. 016 del 09 de julio del 2024 emanada de la Vicerrectoría Administrativa y Financiera, donde mediante el correo electrónico del SGSI se invitó a todas las áreas y/o procesos que conforman la estructura orgánica de la Universidad de Cundinamarca. Como parte de los resultados obtenidos, se relaciona a continuación, el total de funcionarios administrativos y gestores de conocimiento que asistieron a las jornadas de sensibilización, de acuerdo con cada una de las fechas programadas en cada Sede, Seccional y Extensión: Sede Fusagasugá: 23 de julio del 2024: 57 participantes, 30 de julio de 2024: 52 participantes, 31 de julio de 2024: 51 participantes, 06 de agosto de 2024: 51 participantes, 14 de agosto de 2024: 20 participantes, 15 de agosto de 2024: 28 participantes, 26 de agosto de 2024: 26 participantes, 30 de agosto de 2024: 53 participantes, 23 de septiembre de 2024: 18 participantes, 24 de septiembre de 2024: 25 participantes, 01 de octubre de 2024: 44 participantes, 15 de octubre de 2024: 17 participantes, 21 de octubre de 2024: 03 participantes, 22 de octubre de 2024: 33 participantes, 06 de noviembre de 2024: 38 participantes. Seccional Ubaté: 25 de julio de 2024: 40 participantes, Seccional Girardot: 08 de agosto de 2024: 45 participantes, Extensión Facatativá: 21 de agosto de 2024: 41 participantes, Extensión Soacha: 23 de agosto de 2024: 48 participantes, Extensión Chía: 29 de octubre de 2024: 58 participantes, Extensión Zipaquirá: 14 de noviembre de 2024: 41 participantes, Oficina de Bogotá: 17 de octubre de 2024: 06 participantes. Seguidamente y atendiendo la decisión de la Comisión de Gestión del 26 de agosto de 2024, se realizó una (1) jornada de sensibilización por medio de la plataforma de Microsoft Teams a nivel institucional, el día 15 de noviembre de 2024: 167 participantes. En donde como resultado de la actividad se obtuvo una participación de (962) funcionarios, frente al total de funcionarios administrativos y gestores de conocimiento en la institución (1656), lo que indica que el 58% de los funcionarios asistieron a las jornadas de sensibilización.
J34: ACCIÓN FORMULADA
J35: Para la vigencia 2025, el Sistema de Gestión de Seguridad de la Información – SGSI, implementará el Campo Multidimensional de Aprendizaje “curso del aula virtual” en donde por medio de este se buscará impartir los diferentes lineamientos y directrices de seguridad y privacidad de la información e incrementar el nivel de participación de los funcionarios administrativos y gestores de conocimiento.
J41: RESPONSABLE
J42: =E14 -> Coordinadora del Sistema de Gestión de Seguridad de la Información – SGSI
C45: PERIODO DE EVALUACIÓN
C46: MES | D46: 2023 | E46: 2024 | G46: =IF(J23="MENSUAL","ABRIL",IF(J23="TRIMESTRAL","DICIEMBRE","")) ->  | H46: =IF(J23="MENSUAL","MAYO","") ->  | I46: =IF(J23="MENSUAL","JUNIO","") ->  | J46: =IF(J23="MENSUAL","JULIO","") ->  | K46: =IF(J23="MENSUAL","AGOSTO","") ->  | L46: =IF(J23="MENSUAL","SEPTIEMBRE","") ->  | M46: =IF(J23="MENSUAL","OCTUBRE","") ->  | N46: =IF(J23="MENSUAL","NOVIEMBRE","") ->  | O46: =IF(J23="MENSUAL","DICIEMBRE","") -> 
C47: =G18 -> Número de funcionarios (administrativos y docentes) que asistieron a las Jornadas de Sensibilización *100 | D47: 632 | E47: 962
C48: =G19 -> Total de funcionarios activos en la vigencia | D48: 895 | E48: 1656
C49: VALOR | D49: =IFERROR(IF($E$17=1,D47/D48,IF($E$17=2,D47,"")),"") -> 0.7061452514 | E49: =IFERROR(IF($E$17=1,E47/E48,IF($E$17=2,E47,"")),"") -> 0.5809178744
C50: META PONDERADA | D50: =IF(AND(N23="ANUAL",J23="MENSUAL"),N17/12,IF(AND(N23="ANUAL",J23="TRIMESTRAL"),N17/4,IF(AND(N23="ANUAL",J23="SEMESTRAL"),N17/2,IF(AND(N23="ANUAL",J23="ANUAL"),N17,IF(AND(N23="SEMESTRAL",J23="MENSUAL"),N17/6,IF(AND(N23="SEMESTRAL",J23="TRIMESTRAL"),N17/2,IF(AND(N23="SEMESTRAL",J23="SEMESTRAL"),N17,IF(AND(N23="SEMESTRAL",J23="ANUAL"),"REVISAR FRECUENCIAS",IF(AND(N23="TRIMESTRAL",J23="MENSUAL"),N17/3,IF(AND(N23="TRIMESTRAL",J23="TRIMESTRAL"),N17,IF(AND(N23="TRIMESTRAL",J23="SEMESTRAL"),"REVISAR FRECUENCIAS",IF(AND(N23="TRIMESTRAL",J23="ANUAL"),"REVISAR FRECUENCIAS",IF(AND(N23="MENSUAL",J23="MENSUAL"),N17,IF(AND(N23="MENSUAL",J23="TRIMESTRAL"),"REVISAR FRECUENCIAS",IF(AND(N23="MENSUAL",J23="SEMESTRAL"),"REVISAR FRECUENCIAS",IF(AND(N23="MENSUAL",J23="ANUAL"),"REVISAR FRECUENCIAS","")))))))))))))))) -> 0.5 | E50: 0.5 | F50: =IF(AND(N23="ANUAL",J23="MENSUAL"),N17/12+E50,IF(AND(N23="ANUAL",J23="TRIMESTRAL"),N17/4+E50,IF(AND(N23="SEMESTRAL",J23="MENSUAL"),N17/6+E50,IF(AND(N23="SEMESTRAL",J23="TRIMESTRAL"),N17/2,IF(AND(N23="TRIMESTRAL",J23="MENSUAL"),N17/3+E50,IF(AND(N23="TRIMESTRAL",J23="TRIMESTRAL"),N17,IF(AND(N23="MENSUAL",J23="MENSUAL"),N17,""))))))) ->  | G50: =IF(AND(N23="ANUAL",J23="MENSUAL"),N17/12+F50,IF(AND(N23="ANUAL",J23="TRIMESTRAL"),N17/4+F50,IF(AND(N23="SEMESTRAL",J23="MENSUAL"),N17/6+F50,IF(AND(N23="SEMESTRAL",J23="TRIMESTRAL"),N17/2+F50,IF(AND(N23="TRIMESTRAL",J23="MENSUAL"),N17/3,IF(AND(N23="TRIMESTRAL",J23="TRIMESTRAL"),N17,IF(AND(N23="MENSUAL",J23="MENSUAL"),N17,""))))))) ->  | H50: =IF(AND($N$23="ANUAL",$J$23="MENSUAL"),$N$17/12+G50,IF(AND(N23="SEMESTRAL",J23="MENSUAL"),N17/6+G50,IF(AND(N23="TRIMESTRAL",J23="MENSUAL"),N17/3+G50,IF(AND(N23="MENSUAL",J23="MENSUAL"),N17,"")))) ->  | I50: =IF(AND($N$23="ANUAL",$J$23="MENSUAL"),$N$17/12+H50,IF(AND(N23="SEMESTRAL",J23="MENSUAL"),N17/6+H50,IF(AND(N23="TRIMESTRAL",J23="MENSUAL"),N17/3+H50,IF(AND(N23="MENSUAL",J23="MENSUAL"),N17,"")))) ->  | J50: =IF(AND($N$23="ANUAL",$J$23="MENSUAL"),$N$17/12+I50,IF(AND(N23="SEMESTRAL",J23="MENSUAL"),N17/6,IF(AND(N23="TRIMESTRAL",J23="MENSUAL"),N17/3,IF(AND(N23="MENSUAL",J23="MENSUAL"),N17,"")))) ->  | K50: =IF(AND($N$23="ANUAL",$J$23="MENSUAL"),$N$17/12+J50,IF(AND(N23="SEMESTRAL",J23="MENSUAL"),N17/6+J50,IF(AND(N23="TRIMESTRAL",J23="MENSUAL"),N17/3+J50,IF(AND(N23="MENSUAL",J23="MENSUAL"),N17,"")))) ->  | L50: =IF(AND($N$23="ANUAL",$J$23="MENSUAL"),$N$17/12+K50,IF(AND(N23="SEMESTRAL",J23="MENSUAL"),N17/6+K50,IF(AND(N23="TRIMESTRAL",J23="MENSUAL"),N17/3+K50,IF(AND(N23="MENSUAL",J23="MENSUAL"),N17,"")))) ->  | M50: =IF(AND($N$23="ANUAL",$J$23="MENSUAL"),$N$17/12+L50,IF(AND(N23="SEMESTRAL",J23="MENSUAL"),N17/6+L50,IF(AND(N23="TRIMESTRAL",J23="MENSUAL"),N17/3,IF(AND(N23="MENSUAL",J23="MENSUAL"),N17,"")))) ->  | N50: =IF(AND($N$23="ANUAL",$J$23="MENSUAL"),$N$17/12+M50,IF(AND(N23="SEMESTRAL",J23="MENSUAL"),N17/6+M50,IF(AND(N23="TRIMESTRAL",J23="MENSUAL"),N17/3+M50,IF(AND(N23="MENSUAL",J23="MENSUAL"),N17,"")))) ->  | O50: =IF(AND($N$23="ANUAL",$J$23="MENSUAL"),$N$17/12+N50,IF(AND(N23="SEMESTRAL",J23="MENSUAL"),N17/6+N50,IF(AND(N23="TRIMESTRAL",J23="MENSUAL"),N17/3+N50,IF(AND(N23="MENSUAL",J23="MENSUAL"),N17,"")))) -> 
C52: NIVEL DE SEGREGACIÓN *
C53: UNIDAD SEGREGADA (Ej. Facultad, Programa Académico, Área) | G53: RESULTADO | K53: ANALISIS DE DATOS SEGREGADO
G72: Estratégico | J72: Eficacia
G73: Misional | J73: Eficiencia
G74: Apoyo | J74: Acreditación
G75: Seguimiento, Medición, Análisis y Evaluación | J75: Positiva
G76: Direccionamiento Estratégico | J76: Negativa
G77: Planeación Institucional | J77: Por Unidad Regional
G78: Proyectos Especiales y Relaciones Interinstitucionales | J78: Por Facultad
G79: Sistemas Integrados | J79: Por Programa Académico
G80: Autoevaluación y Acreditación | J80: Por área
G81: Comunicaciones | J81: Por Laboratorio
G82: Formación y Aprendizaje | J82: Otros
G83: Ciencia, Tecnología e Innovación | J83: No Aplica
G84: Interacción Social Universitaria
G85: Bienestar Universitario
G86: Admisiones y Registro
G87: Graduados
G88: Dialogando con el Mundo
G89: Talento Humano
G90: Jurídica
G91: Financiera
G92: Sistemas y Tecnología
G93: Bienes y Servicios
G94: Documental
G95: Apoyo Académico
G96: Control Interno
G97: Control Disciplinario
G98: Servicio de Atención al Ciudadano

Sheet SGSI - 3 (2024)
B2: REGRESAR
E5: MACROPROCESO ESTRATÉGICO | M5: CÓDIGO: ESGr027
E6: PROCESO GESTIÓN SISTEMAS INTEGRADOS - CALIDAD | M6: VERSIÓN: 8
E7: MATRIZ DE MEDICIÓN Y SEGUIMIENTO A LOS PROCESOS DE GESTIÓN | M7: VIGENCIA: 2023-07-28
M8: PÁGINA: 9 de 15
C10: FICHA DE INDICADOR
C12: MACROPROCESO | E12: Estratégico | I12: NOMBRE DEL INDICADOR | K12: Percepcion del conocimiento de las jornadas de sensibilizacion en seguridad y privacidad de la información
C13: PROCESO GESTIÓN | E13: Sistemas Integrados
C14: RESPONSABLE DE MEDICIÓN | E14: Coordinadora del Sistema de Gestión de Seguridad de la Información – SGSI
C16: 1. COMPORTAMIENTO DE INDICADOR
C17: CLASIFICACIÓN DE LA MEDICIÓN | E17: 1 | H17: TIPO DE INDICADOR | J17: Eficiencia | L17: META | N17: 0.7
C18: FORMULA | E18: NUMERADOR | G18: Numero de evaluaciones aprobadas*100 | L18: UNIDAD DE MEDIDA | N18: Porcentual
E19: DENOMINADOR | G19: Numero total de evaluaciones presentadas por los participantes en las jornadas de sensibilizaciones
C20: TENDENCIA | E20: Positiva | H20: NIVEL DE SEGREGACIÓN * | J20: No Aplica | L20: ESCALA
L21: Deficiente | M21: Aceptable | N21: Bueno | O21: Excelente
L22: 0.4 | M22: 0.5 | N22: 0.6 | O22: 70% en adelante
C23: ORIGEN DE DATOS NUMERADOR | E23: HERRAMIENTA DE PERCEPCION APLICADA PARA MEDIR EL GRADO DE APROPIACION DE LOS FUNCIONARIOS DE LA UNIVERSIDAD DE CUNDINAMARCA | H23: FRECUENCIA DE LA MEDICIÓN | J23: ANUAL | L23: FRECUENCIA DE RESULTADO | N23: ANUAL
C24: ORIGEN DE DATOS DENOMINADOR | E24: HERRAMIENTA DE PERCEPCION APLICADA PARA MEDIR EL GRADO DE APROPIACION DE LOS FUNCIONARIOS DE LA UNIVERSIDAD DE CUNDINAMARCA
C26: RESULTADOS
J27: ANÁLISIS DE DATOS
J28: Para la vigencia 2024, se llevaron a cabo un total de 23 jornadas de sensibilización en seguridad y privacidad de la información a nivel institucional, en cumplimiento con lo establecido en el ESG-SSI-PL01 "Plan Institucional de Sensibilización y Entrenamiento en Seguridad y Privacidad de la Información". Estas jornadas se realizaron en los meses de Julio, agosto, septiembre, octubre y noviembre del año en curso. Durante estas jornadas de sensibilización se presentaron los avances en la implementación del Sistema de Gestión de Seguridad de la Información y la Ley de Protección de Datos Personales. Además, se abordaron diversas temáticas, entre ellas: las políticas institucionales de seguridad y privacidad de la información, los roles y responsabilidades del SGSI en la Universidad de Cundinamarca, y por ultimo las etapas del modelo de gestión integral de seguridad de la información. Teniendo en cuenta lo anterior, se llevaron a cabo 533 evaluaciones de manera individual a los funcionarios administrativos y gestores de conocimiento que asistieron a las jornadas de sensibilización. En donde se utilizó una herramienta de percepción para medir el grado de apropiación de los funcionarios sobre las temáticas mencionadas anteriormente, y como resultado de la actividad, se obtuvieron 348 evaluaciones aprobadas, lo que indica que el 65% de los funcionarios demostraron un alto grado de apropiación de las temáticas presentadas.
J34: ACCIÓN FORMULADA
J35: Para la vigencia 2025, el Sistema de Gestión de Seguridad de la Información (SGSI) enviará un correo electrónico institucional con un formulario de Microsoft Forms que contendrá una evaluación de conocimientos dirigida a los funcionarios administrativos y gestores de conocimiento. Además, se implementará el “Campo Multidimensional de Aprendizaje” a través de un curso en el aula virtual, el cual permitirá dos (2) intentos y requerirá una nota mínima para su aprobación. Estas iniciativa tiene como objetivo fortalecer el conocimiento en seguridad de la información y asegurar su correcta aplicación en las actividades laborales diarias.
J41: RESPONSABLE
J42: =E14 -> Coordinadora del Sistema de Gestión de Seguridad de la Información – SGSI
C45: PERIODO DE EVALUACIÓN
C46: MES | D46: 2023 | E46: 2024 | F46: =IF(J23="MENSUAL","MARZO",IF(J23="TRIMESTRAL","SEPTIEMBRE","")) ->  | G46: =IF(J23="MENSUAL","ABRIL",IF(J23="TRIMESTRAL","DICIEMBRE","")) ->  | H46: =IF(J23="MENSUAL","MAYO","") ->  | I46: =IF(J23="MENSUAL","JUNIO","") ->  | J46: =IF(J23="MENSUAL","JULIO","") ->  | K46: =IF(J23="MENSUAL","AGOSTO","") ->  | L46: =IF(J23="MENSUAL","SEPTIEMBRE","") ->  | M46: =IF(J23="MENSUAL","OCTUBRE","") ->  | N46: =IF(J23="MENSUAL","NOVIEMBRE","") ->  | O46: =IF(J23="MENSUAL","DICIEMBRE","") -> 
C47: =G18 -> Numero de evaluaciones aprobadas*100 | D47: 44 | E47: 348
C48: =G19 -> Numero total de evaluaciones presentadas por los participantes en las jornadas de sensibilizaciones | D48: 48 | E48: 533
C49: VALOR | D49: =IFERROR(IF($E$17=1,D47/D48,IF($E$17=2,D47,"")),"") -> 0.9166666667 | E49: =IFERROR(IF($E$17=1,E47/E48,IF($E$17=2,E47,"")),"") -> 0.6529080675
C50: META PONDERADA | D50: =IF(AND(N23="ANUAL",J23="MENSUAL"),N17/12,IF(AND(N23="ANUAL",J23="TRIMESTRAL"),N17/4,IF(AND(N23="ANUAL",J23="SEMESTRAL"),N17/2,IF(AND(N23="ANUAL",J23="ANUAL"),N17,IF(AND(N23="SEMESTRAL",J23="MENSUAL"),N17/6,IF(AND(N23="SEMESTRAL",J23="TRIMESTRAL"),N17/2,IF(AND(N23="SEMESTRAL",J23="SEMESTRAL"),N17,IF(AND(N23="SEMESTRAL",J23="ANUAL"),"REVISAR FRECUENCIAS",IF(AND(N23="TRIMESTRAL",J23="MENSUAL"),N17/3,IF(AND(N23="TRIMESTRAL",J23="TRIMESTRAL"),N17,IF(AND(N23="TRIMESTRAL",J23="SEMESTRAL"),"REVISAR FRECUENCIAS",IF(AND(N23="TRIMESTRAL",J23="ANUAL"),"REVISAR FRECUENCIAS",IF(AND(N23="MENSUAL",J23="MENSUAL"),N17,IF(AND(N23="MENSUAL",J23="TRIMESTRAL"),"REVISAR FRECUENCIAS",IF(AND(N23="MENSUAL",J23="SEMESTRAL"),"REVISAR FRECUENCIAS",IF(AND(N23="MENSUAL",J23="ANUAL"),"REVISAR FRECUENCIAS","")))))))))))))))) -> 0.7 | E50: 0.7 | F50: =IF(AND(N23="ANUAL",J23="MENSUAL"),N17/12+E50,IF(AND(N23="ANUAL",J23="TRIMESTRAL"),N17/4+E50,IF(AND(N23="SEMESTRAL",J23="MENSUAL"),N17/6+E50,IF(AND(N23="SEMESTRAL",J23="TRIMESTRAL"),N17/2,IF(AND(N23="TRIMESTRAL",J23="MENSUAL"),N17/3+E50,IF(AND(N23="TRIMESTRAL",J23="TRIMESTRAL"),N17,IF(AND(N23="MENSUAL",J23="MENSUAL"),N17,""))))))) ->  | G50: =IF(AND(N23="ANUAL",J23="MENSUAL"),N17/12+F50,IF(AND(N23="ANUAL",J23="TRIMESTRAL"),N17/4+F50,IF(AND(N23="SEMESTRAL",J23="MENSUAL"),N17/6+F50,IF(AND(N23="SEMESTRAL",J23="TRIMESTRAL"),N17/2+F50,IF(AND(N23="TRIMESTRAL",J23="MENSUAL"),N17/3,IF(AND(N23="TRIMESTRAL",J23="TRIMESTRAL"),N17,IF(AND(N23="MENSUAL",J23="MENSUAL"),N17,""))))))) ->  | H50: =IF(AND($N$23="ANUAL",$J$23="MENSUAL"),$N$17/12+G50,IF(AND(N23="SEMESTRAL",J23="MENSUAL"),N17/6+G50,IF(AND(N23="TRIMESTRAL",J23="MENSUAL"),N17/3+G50,IF(AND(N23="MENSUAL",J23="MENSUAL"),N17,"")))) ->  | I50: =IF(AND($N$23="ANUAL",$J$23="MENSUAL"),$N$17/12+H50,IF(AND(N23="SEMESTRAL",J23="MENSUAL"),N17/6+H50,IF(AND(N23="TRIMESTRAL",J23="MENSUAL"),N17/3+H50,IF(AND(N23="MENSUAL",J23="MENSUAL"),N17,"")))) ->  | J50: =IF(AND($N$23="ANUAL",$J$23="MENSUAL"),$N$17/12+I50,IF(AND(N23="SEMESTRAL",J23="MENSUAL"),N17/6,IF(AND(N23="TRIMESTRAL",J23="MENSUAL"),N17/3,IF(AND(N23="MENSUAL",J23="MENSUAL"),N17,"")))) ->  | K50: =IF(AND($N$23="ANUAL",$J$23="MENSUAL"),$N$17/12+J50,IF(AND(N23="SEMESTRAL",J23="MENSUAL"),N17/6+J50,IF(AND(N23="TRIMESTRAL",J23="MENSUAL"),N17/3+J50,IF(AND(N23="MENSUAL",J23="MENSUAL"),N17,"")))) ->  | L50: =IF(AND($N$23="ANUAL",$J$23="MENSUAL"),$N$17/12+K50,IF(AND(N23="SEMESTRAL",J23="MENSUAL"),N17/6+K50,IF(AND(N23="TRIMESTRAL",J23="MENSUAL"),N17/3+K50,IF(AND(N23="MENSUAL",J23="MENSUAL"),N17,"")))) ->  | M50: =IF(AND($N$23="ANUAL",$J$23="MENSUAL"),$N$17/12+L50,IF(AND(N23="SEMESTRAL",J23="MENSUAL"),N17/6+L50,IF(AND(N23="TRIMESTRAL",J23="MENSUAL"),N17/3,IF(AND(N23="MENSUAL",J23="MENSUAL"),N17,"")))) ->  | N50: =IF(AND($N$23="ANUAL",$J$23="MENSUAL"),$N$17/12+M50,IF(AND(N23="SEMESTRAL",J23="MENSUAL"),N17/6+M50,IF(AND(N23="TRIMESTRAL",J23="MENSUAL"),N17/3+M50,IF(AND(N23="MENSUAL",J23="MENSUAL"),N17,"")))) ->  | O50: =IF(AND($N$23="ANUAL",$J$23="MENSUAL"),$N$17/12+N50,IF(AND(N23="SEMESTRAL",J23="MENSUAL"),N17/6+N50,IF(AND(N23="TRIMESTRAL",J23="MENSUAL"),N17/3+N50,IF(AND(N23="MENSUAL",J23="MENSUAL"),N17,"")))) -> 
C52: NIVEL DE SEGREGACIÓN *
C53: UNIDAD SEGREGADA (Ej. Facultad, Programa Académico, Área) | G53: RESULTADO | K53: ANALISIS DE DATOS SEGREGADO
G72: Estratégico | J72: Eficacia
G73: Misional | J73: Eficiencia
G74: Apoyo | J74: Acreditación
G75: Seguimiento, Medición, Análisis y Evaluación | J75: Positiva
G76: Direccionamiento Estratégico | J76: Negativa
G77: Planeación Institucional | J77: Por Unidad Regional
G78: Proyectos Especiales y Relaciones Interinstitucionales | J78: Por Facultad
G79: Sistemas Integrados | J79: Por Programa Académico
G80: Autoevaluación y Acreditación | J80: Por área
G81: Comunicaciones | J81: Por Laboratorio
G82: Formación y Aprendizaje | J82: Otros
G83: Ciencia, Tecnología e Innovación | J83: No Aplica
G84: Interacción Social Universitaria
G85: Bienestar Universitario
G86: Admisiones y Registro
G87: Graduados
G88: Dialogando con el Mundo
G89: Talento Humano
G90: Jurídica
G91: Financiera
G92: Sistemas y Tecnología
G93: Bienes y Servicios
G94: Documental
G95: Apoyo Académico
G96: Control Interno
G97: Control Disciplinario
G98: Servicio de Atención al Ciudadano

Sheet SGSI - 4 (2024)
B2: REGRESAR
E5: MACROPROCESO ESTRATÉGICO | M5: CÓDIGO: ESGr027
E6: PROCESO GESTIÓN SISTEMAS INTEGRADOS - CALIDAD | M6: VERSIÓN: 8
E7: MATRIZ DE MEDICIÓN Y SEGUIMIENTO A LOS PROCESOS DE GESTIÓN | M7: VIGENCIA: 2023-07-28
M8: PÁGINA: 10 de 15
C10: FICHA DE INDICADOR
C12: MACROPROCESO | E12: Estratégico | I12: NOMBRE DEL INDICADOR | K12: Gestión de eventos y/o incidentes de seguridad y privacidad de la informacion en la Universidad de Cundinamarca
C13: PROCESO GESTIÓN | E13: Sistemas Integrados
C14: RESPONSABLE DE MEDICIÓN | E14: Coordinadora del Sistema de Gestión de Seguridad de la Información – SGSI
C16: 1. COMPORTAMIENTO DE INDICADOR
C17: CLASIFICACIÓN DE LA MEDICIÓN | E17: 1 | H17: TIPO DE INDICADOR | J17: Eficacia | L17: META | N17: 0.8
C18: FORMULA | E18: NUMERADOR | G18: Número total de incidentes atendidos y cerrados durante el semestre*100 | L18: UNIDAD DE MEDIDA | N18: Porcentual
E19: DENOMINADOR | G19: Número total de incidentes que fueron reportados durante el semestre
C20: TENDENCIA | E20: Positiva | H20: NIVEL DE SEGREGACIÓN * | J20: No Aplica | L20: ESCALA
L21: Deficiente | M21: Aceptable | N21: Bueno | O21: Excelente
L22: 0.5 | M22: 0.6 | N22: 0.7 | O22: 80% - En adelante
C23: ORIGEN DE DATOS NUMERADOR | E23: Consolidado de eventos y/o incidentes de seguridad y privacidad de la informacion en estado cerrado | H23: FRECUENCIA DE LA MEDICIÓN | J23: SEMESTRAL | L23: FRECUENCIA DE RESULTADO | N23: SEMESTRAL
C24: ORIGEN DE DATOS DENOMINADOR | E24: Consolidado de eventos y/o incidentes de seguridad y privacidad reportados
C26: RESULTADOS
J27: ANÁLISIS DE DATOS
J28: VIGENCIA 2024 I SEMESTRE: Para el primer semestre del 2024, se reportaron 39 eventos de seguridad de la información en la Universidad de Cundinamarca, en donde el Equipo de Respuesta a Eventos y/o Incidentes de Seguridad de la información – CSIRT, actuó acorde al procedimiento ESG-SSI-P09 "Gestión de incidentes de seguridad de la información", y atendió los eventos reportados de acuerdo con las etapas del ciclo vida de la gestión de eventos y/o incidentes de seguridad de la información, Preparación, Detención, Evaluación y Análisis y de ser necesario realizar las etapas de Contención, Erradicación y Recuperación, esto con el fin de dar cierre a los casos presentados. Como resultado de la gestión realizada, el Sistema de Gestión de Seguridad de la Información – SGSI, en articulación con el Área de Servicios Tecnológicos, realizó el seguimiento, verificación, tratamiento y cierre a 38 eventos de seguridad y privacidad de la información reportados por funcionarios (Administrativos y Docentes) de la Universidad de Cundinamarca. De igual manera, se encuentra en seguimiento un (01) evento de Seguridad de la Información por “riesgo estructural” en el Sistema de Gestión de Seguridad de la Información. Obteniendo un 97% de nivel de cumplimiento y evitando así la posible materialización de un riesgo por perdida de Confidencialidad, Integridad y Disponibilidad de la información en los diferentes activos de información de la Universidad de Cundinamarca. VIGENCIA 2024 II SEMESTRE: Para el segundo semestre del 2024, se reportaron 80 eventos de seguridad de la información en la Universidad de Cundinamarca, en donde el Equipo de Respuesta a Eventos y/o Incidentes de Seguridad de la información – CSIRT, actuó acorde al procedimiento ESG-SSI-P09 "Gestión de incidentes de seguridad de la información", y atendió los eventos reportados de acuerdo con las etapas del ciclo vida de la gestión de eventos y/o incidentes de seguridad de la información, Preparación, Detención, Evaluación y Análisis y de ser necesario realizar las etapas de Contención, Erradicación y Recuperación, esto con el fin de dar cierre a los casos presentados. Como resultado de la gestión realizada, el Sistema de Gestión de Seguridad de la Información – SGSI, en articulación con el Área de Servicios Tecnológicos, realizó el seguimiento, verificación, tratamiento y cierre a 79 eventos de seguridad de la información reportados por funcionarios (Administrativos y Gestores de Conocimiento) de la Universidad de Cundinamarca, dejando un evento de Seguridad de la Información, uno (1) por “riesgo estructural”. Obteniendo un 99% de nivel de cumplimiento y evitando así la posible materialización de un riesgo por perdida de Confidencialidad, Integridad y Disponibilidad de la información en los diferentes activos de información de la Universidad de Cundinamarca.
J34: ACCIÓN FORMULADA
J35: Para la vigencia 2025, se continuará con la gestión de eventos e incidentes de seguridad y privacidad de la información, con el objetivo de prevenir la materialización de riesgos que puedan afectar la confidencialidad, integridad y disponibilidad de los activos de información de la Universidad de Cundinamarca. Se analizarán las vulnerabilidades identificadas en los eventos reportados utilizando software especializado. Asimismo, se implementará un modelo de respuesta que garantice a los usuarios estar informados en cada etapa del proceso de gestión de eventos e incidentes. Además, se desarrollará una mesa de servicios “a un clic” para que los funcionarios administrativos y docentes puedan reportar de manera rápida y eficiente cualquier irregularidad relacionada con la seguridad y privacidad de la información.
J41: RESPONSABLE
J42: =E14 -> Coordinadora del Sistema de Gestión de Seguridad de la Información – SGSI
C45: PERIODO DE EVALUACIÓN
C46: MES | D46: =IF(J23="MENSUAL","ENERO",IF(J23="TRIMESTRAL","MARZO",IF(J23="SEMESTRAL","JUNIO",IF(J23="ANUAL",YEAR(TODAY()),"")))) -> JUNIO | E46: DICIEMBRE | F46: =IF(J23="MENSUAL","MARZO",IF(J23="TRIMESTRAL","SEPTIEMBRE","")) ->  | G46: =IF(J23="MENSUAL","ABRIL",IF(J23="TRIMESTRAL","DICIEMBRE","")) ->  | H46: =IF(J23="MENSUAL","MAYO","") ->  | I46: =IF(J23="MENSUAL","JUNIO","") ->  | J46: =IF(J23="MENSUAL","JULIO","") ->  | K46: =IF(J23="MENSUAL","AGOSTO","") ->  | L46: =IF(J23="MENSUAL","SEPTIEMBRE","") ->  | M46: =IF(J23="MENSUAL","OCTUBRE","") ->  | N46: =IF(J23="MENSUAL","NOVIEMBRE","") ->  | O46: =IF(J23="MENSUAL","DICIEMBRE","") -> 
C47: =G18 -> Número total de incidentes atendidos y cerrados durante el semestre*100 | D47: 38 | E47: 79
C48: =G19 -> Número total de incidentes que fueron reportados durante el semestre | D48: 39 | E48: 80
C49: VALOR | D49: =IFERROR(IF($E$17=1,D47/D48,IF($E$17=2,D47,"")),"") -> 0.9743589744 | E49: =IFERROR(IF($E$17=1,E47/E48,IF($E$17=2,E47,"")),"") -> 0.9875
C50: META PONDERADA | D50: =IF(AND(N23="ANUAL",J23="MENSUAL"),N17/12,IF(AND(N23="ANUAL",J23="TRIMESTRAL"),N17/4,IF(AND(N23="ANUAL",J23="SEMESTRAL"),N17/2,IF(AND(N23="ANUAL",J23="ANUAL"),N17,IF(AND(N23="SEMESTRAL",J23="MENSUAL"),N17/6,IF(AND(N23="SEMESTRAL",J23="TRIMESTRAL"),N17/2,IF(AND(N23="SEMESTRAL",J23="SEMESTRAL"),N17,IF(AND(N23="SEMESTRAL",J23="ANUAL"),"REVISAR FRECUENCIAS",IF(AND(N23="TRIMESTRAL",J23="MENSUAL"),N17/3,IF(AND(N23="TRIMESTRAL",J23="TRIMESTRAL"),N17,IF(AND(N23="TRIMESTRAL",J23="SEMESTRAL"),"REVISAR FRECUENCIAS",IF(AND(N23="TRIMESTRAL",J23="ANUAL"),"REVISAR FRECUENCIAS",IF(AND(N23="MENSUAL",J23="MENSUAL"),N17,IF(AND(N23="MENSUAL",J23="TRIMESTRAL"),"REVISAR FRECUENCIAS",IF(AND(N23="MENSUAL",J23="SEMESTRAL"),"REVISAR FRECUENCIAS",IF(AND(N23="MENSUAL",J23="ANUAL"),"REVISAR FRECUENCIAS","")))))))))))))))) -> 0.8 | E50: =IF(AND(N23="ANUAL",J23="MENSUAL"),N17/12,IF(AND(N23="ANUAL",J23="TRIMESTRAL"),N17/4,IF(AND(N23="ANUAL",J23="SEMESTRAL"),N17/2,IF(AND(N23="ANUAL",J23="ANUAL"),N17,IF(AND(N23="SEMESTRAL",J23="MENSUAL"),N17/6,IF(AND(N23="SEMESTRAL",J23="TRIMESTRAL"),N17/2,IF(AND(N23="SEMESTRAL",J23="SEMESTRAL"),N17,IF(AND(N23="SEMESTRAL",J23="ANUAL"),"REVISAR FRECUENCIAS",IF(AND(N23="TRIMESTRAL",J23="MENSUAL"),N17/3,IF(AND(N23="TRIMESTRAL",J23="TRIMESTRAL"),N17,IF(AND(N23="TRIMESTRAL",J23="SEMESTRAL"),"REVISAR FRECUENCIAS",IF(AND(N23="TRIMESTRAL",J23="ANUAL"),"REVISAR FRECUENCIAS",IF(AND(N23="MENSUAL",J23="MENSUAL"),N17,IF(AND(N23="MENSUAL",J23="TRIMESTRAL"),"REVISAR FRECUENCIAS",IF(AND(N23="MENSUAL",J23="SEMESTRAL"),"REVISAR FRECUENCIAS",IF(AND(N23="MENSUAL",J23="ANUAL"),"REVISAR FRECUENCIAS","")))))))))))))))) -> 0.8 | F50: =IF(AND(N23="ANUAL",J23="MENSUAL"),N17/12+E50,IF(AND(N23="ANUAL",J23="TRIMESTRAL"),N17/4+E50,IF(AND(N23="SEMESTRAL",J23="MENSUAL"),N17/6+E50,IF(AND(N23="SEMESTRAL",J23="TRIMESTRAL"),N17/2,IF(AND(N23="TRIMESTRAL",J23="MENSUAL"),N17/3+E50,IF(AND(N23="TRIMESTRAL",J23="TRIMESTRAL"),N17,IF(AND(N23="MENSUAL",J23="MENSUAL"),N17,""))))))) ->  | G50: =IF(AND(N23="ANUAL",J23="MENSUAL"),N17/12+F50,IF(AND(N23="ANUAL",J23="TRIMESTRAL"),N17/4+F50,IF(AND(N23="SEMESTRAL",J23="MENSUAL"),N17/6+F50,IF(AND(N23="SEMESTRAL",J23="TRIMESTRAL"),N17/2+F50,IF(AND(N23="TRIMESTRAL",J23="MENSUAL"),N17/3,IF(AND(N23="TRIMESTRAL",J23="TRIMESTRAL"),N17,IF(AND(N23="MENSUAL",J23="MENSUAL"),N17,""))))))) ->  | H50: =IF(AND($N$23="ANUAL",$J$23="MENSUAL"),$N$17/12+G50,IF(AND(N23="SEMESTRAL",J23="MENSUAL"),N17/6+G50,IF(AND(N23="TRIMESTRAL",J23="MENSUAL"),N17/3+G50,IF(AND(N23="MENSUAL",J23="MENSUAL"),N17,"")))) ->  | I50: =IF(AND($N$23="ANUAL",$J$23="MENSUAL"),$N$17/12+H50,IF(AND(N23="SEMESTRAL",J23="MENSUAL"),N17/6+H50,IF(AND(N23="TRIMESTRAL",J23="MENSUAL"),N17/3+H50,IF(AND(N23="MENSUAL",J23="MENSUAL"),N17,"")))) ->  | J50: =IF(AND($N$23="ANUAL",$J$23="MENSUAL"),$N$17/12+I50,IF(AND(N23="SEMESTRAL",J23="MENSUAL"),N17/6,IF(AND(N23="TRIMESTRAL",J23="MENSUAL"),N17/3,IF(AND(N23="MENSUAL",J23="MENSUAL"),N17,"")))) ->  | K50: =IF(AND($N$23="ANUAL",$J$23="MENSUAL"),$N$17/12+J50,IF(AND(N23="SEMESTRAL",J23="MENSUAL"),N17/6+J50,IF(AND(N23="TRIMESTRAL",J23="MENSUAL"),N17/3+J50,IF(AND(N23="MENSUAL",J23="MENSUAL"),N17,"")))) ->  | L50: =IF(AND($N$23="ANUAL",$J$23="MENSUAL"),$N$17/12+K50,IF(AND(N23="SEMESTRAL",J23="MENSUAL"),N17/6+K50,IF(AND(N23="TRIMESTRAL",J23="MENSUAL"),N17/3+K50,IF(AND(N23="MENSUAL",J23="MENSUAL"),N17,"")))) ->  | M50: =IF(AND($N$23="ANUAL",$J$23="MENSUAL"),$N$17/12+L50,IF(AND(N23="SEMESTRAL",J23="MENSUAL"),N17/6+L50,IF(AND(N23="TRIMESTRAL",J23="MENSUAL"),N17/3,IF(AND(N23="MENSUAL",J23="MENSUAL"),N17,"")))) ->  | N50: =IF(AND($N$23="ANUAL",$J$23="MENSUAL"),$N$17/12+M50,IF(AND(N23="SEMESTRAL",J23="MENSUAL"),N17/6+M50,IF(AND(N23="TRIMESTRAL",J23="MENSUAL"),N17/3+M50,IF(AND(N23="MENSUAL",J23="MENSUAL"),N17,"")))) ->  | O50: =IF(AND($N$23="ANUAL",$J$23="MENSUAL"),$N$17/12+N50,IF(AND(N23="SEMESTRAL",J23="MENSUAL"),N17/6+N50,IF(AND(N23="TRIMESTRAL",J23="MENSUAL"),N17/3+N50,IF(AND(N23="MENSUAL",J23="MENSUAL"),N17,"")))) -> 
C52: NIVEL DE SEGREGACIÓN *
C53: UNIDAD SEGREGADA (Ej. Facultad, Programa Académico, Área) | G53: RESULTADO | K53: ANALISIS DE DATOS SEGREGADO
G72: Estratégico | J72: Eficacia
G73: Misional | J73: Eficiencia
G74: Apoyo | J74: Acreditación
G75: Seguimiento, Medición, Análisis y Evaluación | J75: Positiva
G76: Direccionamiento Estratégico | J76: Negativa
G77: Planeación Institucional | J77: Por Unidad Regional
G78: Proyectos Especiales y Relaciones Interinstitucionales | J78: Por Facultad
G79: Sistemas Integrados | J79: Por Programa Académico
G80: Autoevaluación y Acreditación | J80: Por área
G81: Comunicaciones | J81: Por Laboratorio
G82: Formación y Aprendizaje | J82: Otros
G83: Ciencia, Tecnología e Innovación | J83: No Aplica
G84: Interacción Social Universitaria
G85: Bienestar Universitario
G86: Admisiones y Registro
G87: Graduados
G88: Dialogando con el Mundo
G89: Talento Humano
G90: Jurídica
G91: Financiera
G92: Sistemas y Tecnología
G93: Bienes y Servicios
G94: Documental
G95: Apoyo Académico
G96: Control Interno
G97: Control Disciplinario
G98: Servicio de Atención al Ciudadano

Sheet SGSI - 5 (2024)
B2: REGRESAR
E5: MACROPROCESO ESTRATÉGICO | M5: CÓDIGO: ESGr027
E6: PROCESO GESTIÓN SISTEMAS INTEGRADOS - CALIDAD | M6: VERSIÓN: 8
E7: MATRIZ DE MEDICIÓN Y SEGUIMIENTO A LOS PROCESOS DE GESTIÓN | M7: VIGENCIA: 2023-07-28
M8: PÁGINA: 11 de 15
C10: FICHA DE INDICADOR
C12: MACROPROCESO | E12: Estratégico | I12: NOMBRE DEL INDICADOR | K12: Porcentaje de Implementacion de los controles del anexo A de la Norma ISO 27001-2022
C13: PROCESO GESTIÓN | E13: Sistemas Integrados
C14: RESPONSABLE DE MEDICIÓN | E14: Coordinadora del Sistema de Gestión de Seguridad de la Información – SGSI
C16: 1. COMPORTAMIENTO DE INDICADOR
C17: CLASIFICACIÓN DE LA MEDICIÓN | E17: 1 | H17: TIPO DE INDICADOR | J17: Eficiencia | L17: META | N17: 0.5
C18: FORMULA | E18: NUMERADOR | G18: Sumatoria del nivel de implementacion de cada una de las categorias del anexo A de la Norma ISO 27001:2022 | L18: UNIDAD DE MEDIDA | N18: Porcentual
E19: DENOMINADOR | G19: Numero total de categorias del anexo A de la Norma ISO 27001:2022*100
C20: TENDENCIA | E20: Positiva | H20: NIVEL DE SEGREGACIÓN * | J20: No Aplica | L20: ESCALA
L21: Deficiente | M21: Aceptable | N21: Bueno | O21: Excelente
L22: 0.2 | M22: 0.3 | N22: 0.4 | O22: 50% - En adelante
C23: ORIGEN DE DATOS NUMERADOR | E23: ESG-SSI-r038 - Herramienta de Diagnostico en Seguridad y Privacidad de la Información. | H23: FRECUENCIA DE LA MEDICIÓN | J23: SEMESTRAL | L23: FRECUENCIA DE RESULTADO | N23: SEMESTRAL
C24: ORIGEN DE DATOS DENOMINADOR | E24: ESG-SSI-r033 - Declaracion de Aplicabilidad
C26: RESULTADOS
J27: ANÁLISIS DE DATOS
J28: VIGENCIA 2024 II SEMESTRE: Para el segundo semestre del 2024, se realizó una verificación y validación del porcentaje de implementación de cada uno de los controles del anexo A de la Norma ISO 27001: 2022, con el propósito de determinar el grado de implementación general del SGSI en la Universidad de Cundinamarca. Para esta medición se toma como referencia las cuatro (4) categorías de controles (Organizacionales, De personas, Físicos y Tecnológicos) del anexo A de la Norma ISO 27001: 2022 y el nivel de valoración de implementación correspondiente, desagregados de la siguiente manera: Controles Organizacionales A.5 57%, Controles De personas A.6 83%, Controles Físicos A.7 50%, Controles Tecnológicos A.8 32%, Sobre el número total de dominios de la Norma ISO 27001: 2013, demostrando así un nivel de implementación del SGSI en la norma ISO 27001:2022 del 56%.
J34: ACCIÓN FORMULADA
J35: Para la primer semestre de la vigencia 2025, se continuará evaluando el nivel de implementación y cumplimiento de las cuatro (4) categorías de controles (Organizacionales, De personas, Físicos y Tecnológicos) del anexo A de la Norma ISO 27001: 2022, en concordancia con los tres frentes que conforman el Sistema de Gestión de Seguridad de la Información – SGSI, seguridad de la Información, protección de la privacidad y ciberseguridad, además, se establecerán estrategias para fortalecer e incrementar el nivel de implementación de los controles según la herramienta de diagnostico en seguridad y privacidad de la información se encuentran en un estado inexistente o inicial.
J41: RESPONSABLE
J42: =E14 -> Coordinadora del Sistema de Gestión de Seguridad de la Información – SGSI
C45: PERIODO DE EVALUACIÓN
C46: MES | D46: DICIEMBRE | F46: =IF(J23="MENSUAL","MARZO",IF(J23="TRIMESTRAL","SEPTIEMBRE","")) ->  | G46: =IF(J23="MENSUAL","ABRIL",IF(J23="TRIMESTRAL","DICIEMBRE","")) ->  | H46: =IF(J23="MENSUAL","MAYO","") ->  | I46: =IF(J23="MENSUAL","JUNIO","") ->  | J46: =IF(J23="MENSUAL","JULIO","") ->  | K46: =IF(J23="MENSUAL","AGOSTO","") ->  | L46: =IF(J23="MENSUAL","SEPTIEMBRE","") ->  | M46: =IF(J23="MENSUAL","OCTUBRE","") ->  | N46: =IF(J23="MENSUAL","NOVIEMBRE","") ->  | O46: =IF(J23="MENSUAL","DICIEMBRE","") -> 
C47: =G18 -> Sumatoria del nivel de implementacion de cada una de las categorias del anexo A de la Norma ISO 27001:2022 | D47: 222
C48: =G19 -> Numero total de categorias del anexo A de la Norma ISO 27001:2022*100 | D48: 4
C49: VALOR | D49: =IFERROR(IF($E$17=1,D47/(D48*100),IF($E$17=2,D47,"")),"") -> 0.555 | E49: =IFERROR(IF($E$17=1,E47/(E48*100),IF($E$17=2,E47,"")),"") ->  | F49: =IFERROR(IF($E$17=1,F47/F48,IF($E$17=2,F47,"")),"") -> 
C50: META PONDERADA | D50: =IF(AND(N23="ANUAL",J23="MENSUAL"),N17/12,IF(AND(N23="ANUAL",J23="TRIMESTRAL"),N17/4,IF(AND(N23="ANUAL",J23="SEMESTRAL"),N17/2,IF(AND(N23="ANUAL",J23="ANUAL"),N17,IF(AND(N23="SEMESTRAL",J23="MENSUAL"),N17/6,IF(AND(N23="SEMESTRAL",J23="TRIMESTRAL"),N17/2,IF(AND(N23="SEMESTRAL",J23="SEMESTRAL"),N17,IF(AND(N23="SEMESTRAL",J23="ANUAL"),"REVISAR FRECUENCIAS",IF(AND(N23="TRIMESTRAL",J23="MENSUAL"),N17/3,IF(AND(N23="TRIMESTRAL",J23="TRIMESTRAL"),N17,IF(AND(N23="TRIMESTRAL",J23="SEMESTRAL"),"REVISAR FRECUENCIAS",IF(AND(N23="TRIMESTRAL",J23="ANUAL"),"REVISAR FRECUENCIAS",IF(AND(N23="MENSUAL",J23="MENSUAL"),N17,IF(AND(N23="MENSUAL",J23="TRIMESTRAL"),"REVISAR FRECUENCIAS",IF(AND(N23="MENSUAL",J23="SEMESTRAL"),"REVISAR FRECUENCIAS",IF(AND(N23="MENSUAL",J23="ANUAL"),"REVISAR FRECUENCIAS","")))))))))))))))) -> 0.5 | E50: 0.5 | F50: =IF(AND(N23="ANUAL",J23="MENSUAL"),N17/12+E50,IF(AND(N23="ANUAL",J23="TRIMESTRAL"),N17/4+E50,IF(AND(N23="SEMESTRAL",J23="MENSUAL"),N17/6+E50,IF(AND(N23="SEMESTRAL",J23="TRIMESTRAL"),N17/2,IF(AND(N23="TRIMESTRAL",J23="MENSUAL"),N17/3+E50,IF(AND(N23="TRIMESTRAL",J23="TRIMESTRAL"),N17,IF(AND(N23="MENSUAL",J23="MENSUAL"),N17,""))))))) ->  | G50: =IF(AND(N23="ANUAL",J23="MENSUAL"),N17/12+F50,IF(AND(N23="ANUAL",J23="TRIMESTRAL"),N17/4+F50,IF(AND(N23="SEMESTRAL",J23="MENSUAL"),N17/6+F50,IF(AND(N23="SEMESTRAL",J23="TRIMESTRAL"),N17/2+F50,IF(AND(N23="TRIMESTRAL",J23="MENSUAL"),N17/3,IF(AND(N23="TRIMESTRAL",J23="TRIMESTRAL"),N17,IF(AND(N23="MENSUAL",J23="MENSUAL"),N17,""))))))) ->  | H50: =IF(AND($N$23="ANUAL",$J$23="MENSUAL"),$N$17/12+G50,IF(AND(N23="SEMESTRAL",J23="MENSUAL"),N17/6+G50,IF(AND(N23="TRIMESTRAL",J23="MENSUAL"),N17/3+G50,IF(AND(N23="MENSUAL",J23="MENSUAL"),N17,"")))) ->  | I50: =IF(AND($N$23="ANUAL",$J$23="MENSUAL"),$N$17/12+H50,IF(AND(N23="SEMESTRAL",J23="MENSUAL"),N17/6+H50,IF(AND(N23="TRIMESTRAL",J23="MENSUAL"),N17/3+H50,IF(AND(N23="MENSUAL",J23="MENSUAL"),N17,"")))) ->  | J50: =IF(AND($N$23="ANUAL",$J$23="MENSUAL"),$N$17/12+I50,IF(AND(N23="SEMESTRAL",J23="MENSUAL"),N17/6,IF(AND(N23="TRIMESTRAL",J23="MENSUAL"),N17/3,IF(AND(N23="MENSUAL",J23="MENSUAL"),N17,"")))) ->  | K50: =IF(AND($N$23="ANUAL",$J$23="MENSUAL"),$N$17/12+J50,IF(AND(N23="SEMESTRAL",J23="MENSUAL"),N17/6+J50,IF(AND(N23="TRIMESTRAL",J23="MENSUAL"),N17/3+J50,IF(AND(N23="MENSUAL",J23="MENSUAL"),N17,"")))) ->  | L50: =IF(AND($N$23="ANUAL",$J$23="MENSUAL"),$N$17/12+K50,IF(AND(N23="SEMESTRAL",J23="MENSUAL"),N17/6+K50,IF(AND(N23="TRIMESTRAL",J23="MENSUAL"),N17/3+K50,IF(AND(N23="MENSUAL",J23="MENSUAL"),N17,"")))) ->  | M50: =IF(AND($N$23="ANUAL",$J$23="MENSUAL"),$N$17/12+L50,IF(AND(N23="SEMESTRAL",J23="MENSUAL"),N17/6+L50,IF(AND(N23="TRIMESTRAL",J23="MENSUAL"),N17/3,IF(AND(N23="MENSUAL",J23="MENSUAL"),N17,"")))) ->  | N50: =IF(AND($N$23="ANUAL",$J$23="MENSUAL"),$N$17/12+M50,IF(AND(N23="SEMESTRAL",J23="MENSUAL"),N17/6+M50,IF(AND(N23="TRIMESTRAL",J23="MENSUAL"),N17/3+M50,IF(AND(N23="MENSUAL",J23="MENSUAL"),N17,"")))) ->  | O50: =IF(AND($N$23="ANUAL",$J$23="MENSUAL"),$N$17/12+N50,IF(AND(N23="SEMESTRAL",J23="MENSUAL"),N17/6+N50,IF(AND(N23="TRIMESTRAL",J23="MENSUAL"),N17/3+N50,IF(AND(N23="MENSUAL",J23="MENSUAL"),N17,"")))) -> 
C52: NIVEL DE SEGREGACIÓN *
C53: UNIDAD SEGREGADA (Ej. Facultad, Programa Académico, Área) | G53: RESULTADO | K53: ANALISIS DE DATOS SEGREGADO
G72: Estratégico | J72: Eficacia
G73: Misional | J73: Eficiencia
G74: Apoyo | J74: Acreditación
G75: Seguimiento, Medición, Análisis y Evaluación | J75: Positiva
G76: Direccionamiento Estratégico | J76: Negativa
G77: Planeación Institucional | J77: Por Unidad Regional
G78: Proyectos Especiales y Relaciones Interinstitucionales | J78: Por Facultad
G79: Sistemas Integrados | J79: Por Programa Académico
G80: Autoevaluación y Acreditación | J80: Por área
G81: Comunicaciones | J81: Por Laboratorio
G82: Formación y Aprendizaje | J82: Otros
G83: Ciencia, Tecnología e Innovación | J83: No Aplica
G84: Interacción Social Universitaria
G85: Bienestar Universitario
G86: Admisiones y Registro
G87: Graduados
G88: Dialogando con el Mundo
G89: Talento Humano
G90: Jurídica
G91: Financiera
G92: Sistemas y Tecnología
G93: Bienes y Servicios
G94: Documental
G95: Apoyo Académico
G96: Control Interno
G97: Control Disciplinario
G98: Servicio de Atención al Ciudadano

Sheet SGSI - 6 (2024)
B2: REGRESAR
E5: MACROPROCESO ESTRATÉGICO | M5: CÓDIGO: ESGr027
E6: PROCESO GESTIÓN SISTEMAS INTEGRADOS - CALIDAD | M6: VERSIÓN: 8
E7: MATRIZ DE MEDICIÓN Y SEGUIMIENTO A LOS PROCESOS DE GESTIÓN | M7: VIGENCIA: 2023-07-28
M8: PÁGINA: 12 de 15
C10: FICHA DE INDICADOR
C12: MACROPROCESO | E12: Estratégico | I12: NOMBRE DEL INDICADOR | K12: Seguimiento a la gestión de Autorizaciones "Aprobadas" para el Tratamiento de Datos Personales
C13: PROCESO GESTIÓN | E13: Sistemas Integrados
C14: RESPONSABLE DE MEDICIÓN | E14: Coordinadora del Sistema de Gestión de Seguridad de la Información - SGSI
C16: 1. COMPORTAMIENTO DE INDICADOR
C17: CLASIFICACIÓN DE LA MEDICIÓN | E17: 1 | H17: TIPO DE INDICADOR | J17: Eficiencia | L17: META | N17: 0.9
C18: FORMULA | E18: NUMERADOR | G18: Numero de Autorizaciones para el Tratamiento de Datos Personales aprobadas que cumplen con los requisitos establecidos*100 | L18: UNIDAD DE MEDIDA | N18: Porcentual
E19: DENOMINADOR | G19: Total de autorizaciones gestionadas (según muestra)de estudiantes activos
C20: TENDENCIA | E20: Positiva | H20: NIVEL DE SEGREGACIÓN * | J20: No Aplica | L20: ESCALA
L21: Deficiente | M21: Aceptable | N21: Bueno | O21: Excelente
L22: 0 - 60% | M22: 61% - 80% | N22: 81% - 90% | O22: 91% - En adelante
C23: ORIGEN DE DATOS NUMERADOR | E23: Muestra del 10% del Aplicativo para la gestión de autorizaciones "Protección de datos" | H23: FRECUENCIA DE LA MEDICIÓN | J23: SEMESTRAL | L23: FRECUENCIA DE RESULTADO | N23: SEMESTRAL
C24: ORIGEN DE DATOS DENOMINADOR | E24: Base de Datos de los estudiantes activos
C26: RESULTADOS
J27: ANÁLISIS DE DATOS
J28: VIGENCIA 2024 I SEMESTRE: Para la verificación de la actividad que cumple con el parametro de estado "APROBADO" en el aplicativo institucional de Protección de Datos, para el primer semestre a corte junio de 2024 se tomaron 177 autorizaciones de 1773, de manera aleatoria que corresponden al 10% de la base de datos de la sede, seccionales y extensiones, desagregados de la siguiente manera: 45 de la Sede Fusagasugá, 30 de la Seccional Ubaté y 23 de la seccional Girardot, 20 de la Extensión Chía, 45 de la Extension Facatativá, 11 de la extension Soacha y 3 de la extensión Zipaquirá, de acuerdo a la poblacion estudiantil de cada sede,seccional y extensión. Se obtuvo como resultado el 90% de autorizaciones en estado "APROBADO" que cumplen con los requisitos establecidos. El 10% de las autorizaciones restantes que no cumplen con los criterios requeridos se constituye de la siguiente manera: El 6,7% corresponde a la sede Fusagasugá , el 35% corresponde a la Seccional Girardot ,el 27% corresponde a la Extension Soacha, el 10% corresponde a la extension Chía y el 04% corresponde a la extensión Facatativá. VIGENCIA 2024 II SEMESTRE: Para la verificación de la actividad que cumple con el parámetro de estado "APROBADO" en el aplicativo institucional de Protección de Datos, para el primer semestre a corte diciembre de 2024 se tomaron 153 autorizaciones de 1529, de manera aleatoria que corresponden al 10% de la base de datos de sede, seccionales y extensiones, desagregados de la siguiente manera: 47 de la Sede Fusagasugá, 16 de la Seccional Ubaté y 17 de la seccional Girardot, 21 de la Extensión Chía, 36 de la Extensión Facatativá, 14 de la extensión Soacha y 2 de la extensión Zipaquirá, de acuerdo a la población estudiantil de cada sede, seccional y extensión. Se obtuvo como resultado que el 95% de las autorizaciones en estado "APROBADO" cumplen con los requisitos establecidos. El 5% de las autorizaciones restantes que no cumplen con los criterios requeridos se constituye de la siguiente manera: El 6% corresponde a la sede Fusagasugá , el 6% corresponde a la Seccional Girardot ,el 14% corresponde a la extensión Soacha, el 5% corresponde a la extensión Chía y el 3% corresponde a la extensión Facatativá.
J34: ACCIÓN FORMULADA
J35: Para la Vigencia 2025, se llevará al Consejo Académico el reporte con las estadísticas del estado de las autorizaciones para el tratamiento de datos personales con el fin de que los Coordinadores de los diferentes programas académicos realicen la gestión pertinente frente a los titulares que no han gestionado la autorización, además se enviará correo a los gestores de Admisiones y Registro de las diferentes sede, seccionales y extensiones indicando el incumplimiento a los lineamientos de aprobación para la autorización con copia a la jefe de la Oficina de Admisiones y Registro.
J41: RESPONSABLE
J42: =E14 -> Coordinadora del Sistema de Gestión de Seguridad de la Información - SGSI
C45: PERIODO DE EVALUACIÓN
C46: MES | D46: =IF(J23="MENSUAL","ENERO",IF(J23="TRIMESTRAL","MARZO",IF(J23="SEMESTRAL","JUNIO",IF(J23="ANUAL",YEAR(TODAY()),"")))) -> JUNIO | E46: DICIEMBRE | F46: =IF(J23="MENSUAL","MARZO",IF(J23="TRIMESTRAL","SEPTIEMBRE","")) ->  | G46: =IF(J23="MENSUAL","ABRIL",IF(J23="TRIMESTRAL","DICIEMBRE","")) ->  | H46: =IF(J23="MENSUAL","MAYO","") ->  | I46: =IF(J23="MENSUAL","JUNIO","") ->  | J46: =IF(J23="MENSUAL","JULIO","") ->  | K46: =IF(J23="MENSUAL","AGOSTO","") ->  | L46: =IF(J23="MENSUAL","SEPTIEMBRE","") ->  | M46: =IF(J23="MENSUAL","OCTUBRE","") ->  | N46: =IF(J23="MENSUAL","NOVIEMBRE","") ->  | O46: =IF(J23="MENSUAL","DICIEMBRE","") -> 
C47: =G18 -> Numero de Autorizaciones para el Tratamiento de Datos Personales aprobadas que cumplen con los requisitos establecidos*100 | D47: 159 | E47: 145
C48: =G19 -> Total de autorizaciones gestionadas (según muestra)de estudiantes activos | D48: 177 | E48: 153
C49: VALOR | D49: =IFERROR(IF($E$17=1,D47/D48,IF($E$17=2,D47,"")),"") -> 0.8983050847 | E49: 0.9477124183
C50: META PONDERADA | D50: =IF(AND(N23="ANUAL",J23="MENSUAL"),N17/12,IF(AND(N23="ANUAL",J23="TRIMESTRAL"),N17/4,IF(AND(N23="ANUAL",J23="SEMESTRAL"),N17/2,IF(AND(N23="ANUAL",J23="ANUAL"),N17,IF(AND(N23="SEMESTRAL",J23="MENSUAL"),N17/6,IF(AND(N23="SEMESTRAL",J23="TRIMESTRAL"),N17/2,IF(AND(N23="SEMESTRAL",J23="SEMESTRAL"),N17,IF(AND(N23="SEMESTRAL",J23="ANUAL"),"REVISAR FRECUENCIAS",IF(AND(N23="TRIMESTRAL",J23="MENSUAL"),N17/3,IF(AND(N23="TRIMESTRAL",J23="TRIMESTRAL"),N17,IF(AND(N23="TRIMESTRAL",J23="SEMESTRAL"),"REVISAR FRECUENCIAS",IF(AND(N23="TRIMESTRAL",J23="ANUAL"),"REVISAR FRECUENCIAS",IF(AND(N23="MENSUAL",J23="MENSUAL"),N17,IF(AND(N23="MENSUAL",J23="TRIMESTRAL"),"REVISAR FRECUENCIAS",IF(AND(N23="MENSUAL",J23="SEMESTRAL"),"REVISAR FRECUENCIAS",IF(AND(N23="MENSUAL",J23="ANUAL"),"REVISAR FRECUENCIAS","")))))))))))))))) -> 0.9 | E50: =IF(AND(N23="ANUAL",J23="MENSUAL"),N17/12,IF(AND(N23="ANUAL",J23="TRIMESTRAL"),N17/4,IF(AND(N23="ANUAL",J23="SEMESTRAL"),N17/2,IF(AND(N23="ANUAL",J23="ANUAL"),N17,IF(AND(N23="SEMESTRAL",J23="MENSUAL"),N17/6,IF(AND(N23="SEMESTRAL",J23="TRIMESTRAL"),N17/2,IF(AND(N23="SEMESTRAL",J23="SEMESTRAL"),N17,IF(AND(N23="SEMESTRAL",J23="ANUAL"),"REVISAR FRECUENCIAS",IF(AND(N23="TRIMESTRAL",J23="MENSUAL"),N17/3,IF(AND(N23="TRIMESTRAL",J23="TRIMESTRAL"),N17,IF(AND(N23="TRIMESTRAL",J23="SEMESTRAL"),"REVISAR FRECUENCIAS",IF(AND(N23="TRIMESTRAL",J23="ANUAL"),"REVISAR FRECUENCIAS",IF(AND(N23="MENSUAL",J23="MENSUAL"),N17,IF(AND(N23="MENSUAL",J23="TRIMESTRAL"),"REVISAR FRECUENCIAS",IF(AND(N23="MENSUAL",J23="SEMESTRAL"),"REVISAR FRECUENCIAS",IF(AND(N23="MENSUAL",J23="ANUAL"),"REVISAR FRECUENCIAS","")))))))))))))))) -> 0.9 | F50: =IF(AND(N23="ANUAL",J23="MENSUAL"),N17/12+E50,IF(AND(N23="ANUAL",J23="TRIMESTRAL"),N17/4+E50,IF(AND(N23="SEMESTRAL",J23="MENSUAL"),N17/6+E50,IF(AND(N23="SEMESTRAL",J23="TRIMESTRAL"),N17/2,IF(AND(N23="TRIMESTRAL",J23="MENSUAL"),N17/3+E50,IF(AND(N23="TRIMESTRAL",J23="TRIMESTRAL"),N17,IF(AND(N23="MENSUAL",J23="MENSUAL"),N17,""))))))) ->  | G50: =IF(AND(N23="ANUAL",J23="MENSUAL"),N17/12+F50,IF(AND(N23="ANUAL",J23="TRIMESTRAL"),N17/4+F50,IF(AND(N23="SEMESTRAL",J23="MENSUAL"),N17/6+F50,IF(AND(N23="SEMESTRAL",J23="TRIMESTRAL"),N17/2+F50,IF(AND(N23="TRIMESTRAL",J23="MENSUAL"),N17/3,IF(AND(N23="TRIMESTRAL",J23="TRIMESTRAL"),N17,IF(AND(N23="MENSUAL",J23="MENSUAL"),N17,""))))))) ->  | H50: =IF(AND($N$23="ANUAL",$J$23="MENSUAL"),$N$17/12+G50,IF(AND(N23="SEMESTRAL",J23="MENSUAL"),N17/6+G50,IF(AND(N23="TRIMESTRAL",J23="MENSUAL"),N17/3+G50,IF(AND(N23="MENSUAL",J23="MENSUAL"),N17,"")))) ->  | I50: =IF(AND($N$23="ANUAL",$J$23="MENSUAL"),$N$17/12+H50,IF(AND(N23="SEMESTRAL",J23="MENSUAL"),N17/6+H50,IF(AND(N23="TRIMESTRAL",J23="MENSUAL"),N17/3+H50,IF(AND(N23="MENSUAL",J23="MENSUAL"),N17,"")))) ->  | J50: =IF(AND($N$23="ANUAL",$J$23="MENSUAL"),$N$17/12+I50,IF(AND(N23="SEMESTRAL",J23="MENSUAL"),N17/6,IF(AND(N23="TRIMESTRAL",J23="MENSUAL"),N17/3,IF(AND(N23="MENSUAL",J23="MENSUAL"),N17,"")))) ->  | K50: =IF(AND($N$23="ANUAL",$J$23="MENSUAL"),$N$17/12+J50,IF(AND(N23="SEMESTRAL",J23="MENSUAL"),N17/6+J50,IF(AND(N23="TRIMESTRAL",J23="MENSUAL"),N17/3+J50,IF(AND(N23="MENSUAL",J23="MENSUAL"),N17,"")))) ->  | L50: =IF(AND($N$23="ANUAL",$J$23="MENSUAL"),$N$17/12+K50,IF(AND(N23="SEMESTRAL",J23="MENSUAL"),N17/6+K50,IF(AND(N23="TRIMESTRAL",J23="MENSUAL"),N17/3+K50,IF(AND(N23="MENSUAL",J23="MENSUAL"),N17,"")))) ->  | M50: =IF(AND($N$23="ANUAL",$J$23="MENSUAL"),$N$17/12+L50,IF(AND(N23="SEMESTRAL",J23="MENSUAL"),N17/6+L50,IF(AND(N23="TRIMESTRAL",J23="MENSUAL"),N17/3,IF(AND(N23="MENSUAL",J23="MENSUAL"),N17,"")))) ->  | N50: =IF(AND($N$23="ANUAL",$J$23="MENSUAL"),$N$17/12+M50,IF(AND(N23="SEMESTRAL",J23="MENSUAL"),N17/6+M50,IF(AND(N23="TRIMESTRAL",J23="MENSUAL"),N17/3+M50,IF(AND(N23="MENSUAL",J23="MENSUAL"),N17,"")))) ->  | O50: =IF(AND($N$23="ANUAL",$J$23="MENSUAL"),$N$17/12+N50,IF(AND(N23="SEMESTRAL",J23="MENSUAL"),N17/6+N50,IF(AND(N23="TRIMESTRAL",J23="MENSUAL"),N17/3+N50,IF(AND(N23="MENSUAL",J23="MENSUAL"),N17,"")))) -> 
C52: NIVEL DE SEGREGACIÓN *
C53: UNIDAD SEGREGADA (Ej. Facultad, Programa Académico, Área) | G53: RESULTADO | K53: ANALISIS DE DATOS SEGREGADO
G72: Estratégico | J72: Eficacia
G73: Misional | J73: Eficiencia
G74: Apoyo | J74: Acreditación
G75: Seguimiento, Medición, Análisis y Evaluación | J75: Positiva
G76: Direccionamiento Estratégico | J76: Negativa
G77: Planeación Institucional | J77: Por Unidad Regional
G78: Proyectos Especiales y Relaciones Interinstitucionales | J78: Por Facultad
G79: Sistemas Integrados | J79: Por Programa Académico
G80: Autoevaluación y Acreditación | J80: Por área
G81: Comunicaciones | J81: Por Laboratorio
G82: Formación y Aprendizaje | J82: Otros
G83: Ciencia, Tecnología e Innovación | J83: No Aplica
G84: Interacción Social Universitaria
G85: Bienestar Universitario
G86: Admisiones y Registro
G87: Graduados
G88: Dialogando con el Mundo
G89: Talento Humano
G90: Jurídica
G91: Financiera
G92: Sistemas y Tecnología
G93: Bienes y Servicios
G94: Documental
G95: Apoyo Académico
G96: Control Interno
G97: Control Disciplinario
G98: Servicio de Atención al Ciudadano

Sheet SGSI - 7 (2024)
B2: REGRESAR
E5: MACROPROCESO ESTRATÉGICO | M5: CÓDIGO: ESGr027
E6: PROCESO GESTIÓN SISTEMAS INTEGRADOS - CALIDAD | M6: VERSIÓN: 8
E7: MATRIZ DE MEDICIÓN Y SEGUIMIENTO A LOS PROCESOS DE GESTIÓN | M7: VIGENCIA: 2023-07-28
M8: PÁGINA: 13 de 15
C10: FICHA DE INDICADOR
C12: MACROPROCESO | E12: Estratégico | I12: NOMBRE DEL INDICADOR | K12: Seguimiento a las Autorizaciones "Rechazadas" para el Tratamiento de Datos Personales
C13: PROCESO GESTIÓN | E13: Sistemas Integrados
C14: RESPONSABLE DE MEDICIÓN | E14: Coordinadora del Sistema de Gestión de Seguridad de la Información - SGSI
C16: 1. COMPORTAMIENTO DE INDICADOR
C17: CLASIFICACIÓN DE LA MEDICIÓN | E17: 1 | H17: TIPO DE INDICADOR | J17: Eficiencia | L17: META | N17: 0.7
C18: FORMULA | E18: NUMERADOR | G18: Estudiantes que gestionaron su autorizacion para el tratamiento de datos personales*100 | L18: UNIDAD DE MEDIDA | N18: Porcentual
E19: DENOMINADOR | G19: Total de estudiantes en estado rechazado durante el semestre
C20: TENDENCIA | E20: Positiva | H20: NIVEL DE SEGREGACIÓN * | J20: No Aplica | L20: ESCALA
L21: Deficiente | M21: Aceptable | N21: Bueno | O21: Excelente
L22: 0 - 30% | M22: 30% - 40% | N22: 50% - 60% | O22: 70% en adelante
C23: ORIGEN DE DATOS NUMERADOR | E23: Aplicativo para la gestión de autorizaciones "Protección de datos" | H23: FRECUENCIA DE LA MEDICIÓN | J23: SEMESTRAL | L23: FRECUENCIA DE RESULTADO | N23: SEMESTRAL
C24: ORIGEN DE DATOS DENOMINADOR | E24: Base de Datos de los titulares activos en estado "RECHAZADO" comienzo de vigencia 2024 l
C26: RESULTADOS
J27: ANÁLISIS DE DATOS
J28: VIGENCIA 2024 I SEMESTRE: Producto de la revisión de autorizaciones para el Tratamiento de Datos Personales de los titulares de la Universidad de Cundinamarca el día 21 de marzo de 2024 se enlista un total de 884 estudiantes en estado de "RECHAZADO" en el aplicativo, discriminados de la siguiente forma: Sede Fusagasugá 392, Seccional Ubaté 36, Extensión Zipaquirá 7, Extensión Soacha 119, Extensión Facatativá 148, Extensión Chía 117, Seccional Girardot 65. Se implementaron estrategias como la impresión y envío físico de los formularios a cada sede, seccional y extensión para el diligenciamiento y gestión de la autorización por parte de cada estudiante; el envío del listado de estudiantes sin autorización a la Vicerrectoría Académica, decanos, directores y/o coordinadores de programa, y a las oficinas de Admisiones y Registro; y de igual manera se les notifico vía Teams a los estudiantes que no han gestionado la autorización. Como resultado de la revisión a corte del 13 de Junio de 2024 se obtienen que de las 884, se gestionaron y pasaron a un estado "APROBADO", un valor de 457 autorizaciones las cuales correspondiente a un 52% quedando por gestionar 427 autorizaciones en estado "Rechazado" desagregado de la siguiente manera: 129 Sede Fusagasugá, 11 en Seccional Ubaté ,58 en Seccional Girardot, 84 en Extensión Soacha, 58 en Extensión a Facatativá ,84 en Extensión Chía y 03 en Extensión Zipaquirá. VIGENCIA 2024 II SEMESTRE: Producto de la revisión de autorizaciones para el Tratamiento de Datos Personales de los titulares de la Universidad de Cundinamarca el día 15 de septiembre de 2024 se enlista un total de 607 estudiantes en estado de "RECHAZADO" en el aplicativo, discriminados de la siguiente forma: Sede Fusagasugá 228, Seccional Ubaté 34, Seccional Girardot 68, Extensión Zipaquirá 5, Extensión Soacha 75, Extensión Facatativá 40, Extensión Chía 157, Se implementó la estrategia de enviar un acta a cada programa académico de las diferentes facultades, en donde indicaba el número de Autorizaciones para el Tratamiento de Datos Personales de los titulares (estudiantes) sin gestionar y se hacía entrega de los formatos ESG-SSI-r004, ESG-SSI-r005 y ESG-SSI-r001 ya diligenciados, en donde el estudiante debe firmar. Esta estrategia se aplico en las diferentes sede, seccionales y extensiones. Como resultado de la revisión a corte del 2 de diciembre de 2024 se obtienen que de las 607, se gestionaron y pasaron a un estado "APROBADO", un valor de 403 autorizaciones las cuales correspondiente a un 66% quedando por gestionar 204 autorizaciones en estado "Rechazado" desagregado de la siguiente manera: 28 Sede Fusagasugá, 13 en Seccional Ubaté ,53 en Seccional Girardot, 55 en Extensión Soacha, 40 en Extensión a Facatativá ,45 en Extensión Chía y 0 en Extensión Zipaquirá.
J34: ACCIÓN FORMULADA
J35: Para la Vigencia 2025, se llevará al Consejo Académico el reporte con las estadisticas del estado de las autorizaciones para el tratamiento de datos personales con el fin de que los Coordinadores de los diferentes programas académicos realicen la gestión pertinente frente a los titulares que no han gestionado la autorización.
J41: RESPONSABLE
J42: =E14 -> Coordinadora del Sistema de Gestión de Seguridad de la Información - SGSI
C45: PERIODO DE EVALUACIÓN
C46: MES | D46: JUNIO | E46: DICIEMBRE | F46: =IF(J23="MENSUAL","MARZO",IF(J23="TRIMESTRAL","SEPTIEMBRE","")) ->  | G46: =IF(J23="MENSUAL","ABRIL",IF(J23="TRIMESTRAL","DICIEMBRE","")) ->  | H46: =IF(J23="MENSUAL","MAYO","") ->  | I46: =IF(J23="MENSUAL","JUNIO","") ->  | J46: =IF(J23="MENSUAL","JULIO","") ->  | K46: =IF(J23="MENSUAL","AGOSTO","") ->  | L46: =IF(J23="MENSUAL","SEPTIEMBRE","") ->  | M46: =IF(J23="MENSUAL","OCTUBRE","") ->  | N46: =IF(J23="MENSUAL","NOVIEMBRE","") ->  | O46: =IF(J23="MENSUAL","DICIEMBRE","") -> 
C47: =G18 -> Estudiantes que gestionaron su autorizacion para el tratamiento de datos personales*100 | D47: 457 | E47: 403
C48: =G19 -> Total de estudiantes en estado rechazado durante el semestre | D48: 884 | E48: 607
C49: VALOR | D49: =IFERROR(IF($E$17=1,D47/D48,IF($E$17=2,D47,"")),"") -> 0.5169683258 | E49: 0.6639209226
C50: META PONDERADA | D50: =IF(AND(N23="ANUAL",J23="MENSUAL"),N17/12,IF(AND(N23="ANUAL",J23="TRIMESTRAL"),N17/4,IF(AND(N23="ANUAL",J23="SEMESTRAL"),N17/2,IF(AND(N23="ANUAL",J23="ANUAL"),N17,IF(AND(N23="SEMESTRAL",J23="MENSUAL"),N17/6,IF(AND(N23="SEMESTRAL",J23="TRIMESTRAL"),N17/2,IF(AND(N23="SEMESTRAL",J23="SEMESTRAL"),N17,IF(AND(N23="SEMESTRAL",J23="ANUAL"),"REVISAR FRECUENCIAS",IF(AND(N23="TRIMESTRAL",J23="MENSUAL"),N17/3,IF(AND(N23="TRIMESTRAL",J23="TRIMESTRAL"),N17,IF(AND(N23="TRIMESTRAL",J23="SEMESTRAL"),"REVISAR FRECUENCIAS",IF(AND(N23="TRIMESTRAL",J23="ANUAL"),"REVISAR FRECUENCIAS",IF(AND(N23="MENSUAL",J23="MENSUAL"),N17,IF(AND(N23="MENSUAL",J23="TRIMESTRAL"),"REVISAR FRECUENCIAS",IF(AND(N23="MENSUAL",J23="SEMESTRAL"),"REVISAR FRECUENCIAS",IF(AND(N23="MENSUAL",J23="ANUAL"),"REVISAR FRECUENCIAS","")))))))))))))))) -> 0.7 | E50: 0.7 | F50: =IF(AND(N23="ANUAL",J23="MENSUAL"),N17/12+E50,IF(AND(N23="ANUAL",J23="TRIMESTRAL"),N17/4+E50,IF(AND(N23="SEMESTRAL",J23="MENSUAL"),N17/6+E50,IF(AND(N23="SEMESTRAL",J23="TRIMESTRAL"),N17/2,IF(AND(N23="TRIMESTRAL",J23="MENSUAL"),N17/3+E50,IF(AND(N23="TRIMESTRAL",J23="TRIMESTRAL"),N17,IF(AND(N23="MENSUAL",J23="MENSUAL"),N17,""))))))) ->  | G50: =IF(AND(N23="ANUAL",J23="MENSUAL"),N17/12+F50,IF(AND(N23="ANUAL",J23="TRIMESTRAL"),N17/4+F50,IF(AND(N23="SEMESTRAL",J23="MENSUAL"),N17/6+F50,IF(AND(N23="SEMESTRAL",J23="TRIMESTRAL"),N17/2+F50,IF(AND(N23="TRIMESTRAL",J23="MENSUAL"),N17/3,IF(AND(N23="TRIMESTRAL",J23="TRIMESTRAL"),N17,IF(AND(N23="MENSUAL",J23="MENSUAL"),N17,""))))))) ->  | H50: =IF(AND($N$23="ANUAL",$J$23="MENSUAL"),$N$17/12+G50,IF(AND(N23="SEMESTRAL",J23="MENSUAL"),N17/6+G50,IF(AND(N23="TRIMESTRAL",J23="MENSUAL"),N17/3+G50,IF(AND(N23="MENSUAL",J23="MENSUAL"),N17,"")))) ->  | I50: =IF(AND($N$23="ANUAL",$J$23="MENSUAL"),$N$17/12+H50,IF(AND(N23="SEMESTRAL",J23="MENSUAL"),N17/6+H50,IF(AND(N23="TRIMESTRAL",J23="MENSUAL"),N17/3+H50,IF(AND(N23="MENSUAL",J23="MENSUAL"),N17,"")))) ->  | J50: =IF(AND($N$23="ANUAL",$J$23="MENSUAL"),$N$17/12+I50,IF(AND(N23="SEMESTRAL",J23="MENSUAL"),N17/6,IF(AND(N23="TRIMESTRAL",J23="MENSUAL"),N17/3,IF(AND(N23="MENSUAL",J23="MENSUAL"),N17,"")))) ->  | K50: =IF(AND($N$23="ANUAL",$J$23="MENSUAL"),$N$17/12+J50,IF(AND(N23="SEMESTRAL",J23="MENSUAL"),N17/6+J50,IF(AND(N23="TRIMESTRAL",J23="MENSUAL"),N17/3+J50,IF(AND(N23="MENSUAL",J23="MENSUAL"),N17,"")))) ->  | L50: =IF(AND($N$23="ANUAL",$J$23="MENSUAL"),$N$17/12+K50,IF(AND(N23="SEMESTRAL",J23="MENSUAL"),N17/6+K50,IF(AND(N23="TRIMESTRAL",J23="MENSUAL"),N17/3+K50,IF(AND(N23="MENSUAL",J23="MENSUAL"),N17,"")))) ->  | M50: =IF(AND($N$23="ANUAL",$J$23="MENSUAL"),$N$17/12+L50,IF(AND(N23="SEMESTRAL",J23="MENSUAL"),N17/6+L50,IF(AND(N23="TRIMESTRAL",J23="MENSUAL"),N17/3,IF(AND(N23="MENSUAL",J23="MENSUAL"),N17,"")))) ->  | N50: =IF(AND($N$23="ANUAL",$J$23="MENSUAL"),$N$17/12+M50,IF(AND(N23="SEMESTRAL",J23="MENSUAL"),N17/6+M50,IF(AND(N23="TRIMESTRAL",J23="MENSUAL"),N17/3+M50,IF(AND(N23="MENSUAL",J23="MENSUAL"),N17,"")))) ->  | O50: =IF(AND($N$23="ANUAL",$J$23="MENSUAL"),$N$17/12+N50,IF(AND(N23="SEMESTRAL",J23="MENSUAL"),N17/6+N50,IF(AND(N23="TRIMESTRAL",J23="MENSUAL"),N17/3+N50,IF(AND(N23="MENSUAL",J23="MENSUAL"),N17,"")))) -> 
C52: NIVEL DE SEGREGACIÓN *
C53: UNIDAD SEGREGADA (Ej. Facultad, Programa Académico, Área) | G53: RESULTADO | K53: ANALISIS DE DATOS SEGREGADO
G72: Estratégico | J72: Eficacia
G73: Misional | J73: Eficiencia
G74: Apoyo | J74: Acreditación
G75: Seguimiento, Medición, Análisis y Evaluación | J75: Positiva
G76: Direccionamiento Estratégico | J76: Negativa
G77: Planeación Institucional | J77: Por Unidad Regional
G78: Proyectos Especiales y Relaciones Interinstitucionales | J78: Por Facultad
G79: Sistemas Integrados | J79: Por Programa Académico
G80: Autoevaluación y Acreditación | J80: Por área
G81: Comunicaciones | J81: Por Laboratorio
G82: Formación y Aprendizaje | J82: Otros
G83: Ciencia, Tecnología e Innovación | J83: No Aplica
G84: Interacción Social Universitaria
G85: Bienestar Universitario
G86: Admisiones y Registro
G87: Graduados
G88: Dialogando con el Mundo
G89: Talento Humano
G90: Jurídica
G91: Financiera
G92: Sistemas y Tecnología
G93: Bienes y Servicios
G94: Documental
G95: Apoyo Académico
G96: Control Interno
G97: Control Disciplinario
G98: Servicio de Atención al Ciudadano

Sheet SGSI - 8 (2024)
B2: REGRESAR
E5: MACROPROCESO ESTRATÉGICO | M5: CÓDIGO: ESGr027
E6: PROCESO GESTIÓN SISTEMAS INTEGRADOS - CALIDAD | M6: VERSIÓN: 8
E7: MATRIZ DE MEDICIÓN Y SEGUIMIENTO A LOS PROCESOS DE GESTIÓN | M7: VIGENCIA: 2023-07-28
M8: PÁGINA: 14 de 15
C10: FICHA DE INDICADOR
C12: MACROPROCESO | E12: Estratégico | I12: NOMBRE DEL INDICADOR | K12: Seguimiento a las Autorizaciones "No Gestionadas" para el Tratamiento de Datos Personales
C13: PROCESO GESTIÓN | E13: Sistemas Integrados
C14: RESPONSABLE DE MEDICIÓN | E14: Coordinadora del Sistema de Gestión de Seguridad de la Información – SGSI
C16: 1. COMPORTAMIENTO DE INDICADOR
C17: CLASIFICACIÓN DE LA MEDICIÓN | E17: 1 | H17: TIPO DE INDICADOR | J17: Eficacia | L17: META | N17: 0.01
C18: FORMULA | E18: NUMERADOR | G18: Estudiantes que no han gestionado la autorizacion*100 | L18: UNIDAD DE MEDIDA | N18: Porcentual
E19: DENOMINADOR | G19: Total de estudiantes activos durante el semestre
C20: TENDENCIA | E20: Positiva | H20: NIVEL DE SEGREGACIÓN * | J20: No Aplica | L20: ESCALA
L21: Deficiente | M21: Aceptable | N21: Bueno | O21: Excelente
L22: 5% en adelante | M22: 3% - 4% | N22: 0.02 | O22: 1% o menos
C23: ORIGEN DE DATOS NUMERADOR | E23: Base de datos de los estudiantes activos pendientes por gestionar la autorización | H23: FRECUENCIA DE LA MEDICIÓN | J23: SEMESTRAL | L23: FRECUENCIA DE RESULTADO | N23: SEMESTRAL
C24: ORIGEN DE DATOS DENOMINADOR | E24: Base de datos del total de estudiantes activos a vigencia 2024
C26: RESULTADOS
J27: ANÁLISIS DE DATOS
J28: VIGENCIA 2024 I SEMESTRE: Para este indicador se tomó la base de datos de todos los estudiantes activos de la sede, seccionales y extensiones, durante la vigencia 2024 I, posteriormente la base de datos de estudiantes pendientes por gestionar autorización; donde se halló un total de 11976 estudiantes activos y un consolidado de 299 estudiantes que nunca han realizado la autorización de tratamiento de datos personales, discriminados de la siguiente forma: Sede Fusagasugá 70, Seccional Ubaté 22 y Girardot 65, Extensiones Soacha 37, Facatativá 39, Chía 63 y Zipaquirá 3. Como resultado de esta verificación se obtuvo que el procentaje de abstinencia a la realización de la autorización por parte de los estudiantes de la sede Fusagasugá fue de un 2,16%, extensión Facatativá 1,35%, seccional Girardot 5,39%, extensión Chía 3,75%, extensión Soacha 2,49%, seccional Ubaté 1,78% y extensión Zipaquirá 1,32%. Para un procentaje general de abstinencia a realizar la autorización para el tratamiento de datos personales del 2%. VIGENCIA 2024 II SEMESTRE: Para medir el indicador se tomó la base de datos de todos los estudiantes activos en sede, seccionales y extensiones de la Universidad de Cundinamarca, durante la vigencia 2024 II, posteriormente la base de datos de estudiantes pendientes por gestionar autorización; donde se halló un total de 11694 estudiantes activos y un consolidado de 386 estudiantes que no han realizado la autorización de tratamiento de datos personales, discriminados de la siguiente forma: Sede Fusagasugá 47, Seccional Ubaté 29 y Girardot 88, Extensiones Soacha 86, Facatativá 29, Chía 107 y Zipaquirá 0. Como resultado de esta verificación se obtuvo que el porcentaje de abstinencia a la realización de la autorización por parte de los estudiantes de la sede Fusagasugá fue de un 1,63%, seccional Ubaté 2,36%, seccional Girardot 6,99%, extensión Soacha 5,61%, extensión Facatativá 1,02%, extensión chía 6,14% y extensión Zipaquirá 0%. Para un porcentaje general de abstinencia a realizar la autorización para el tratamiento de datos personales del 3%.
J34: ACCIÓN FORMULADA
J35: Para la Vigencia 2025, se llevará al Consejo Académico el reporte con las estadisticas del estado de las autorizaciones para el tratamiento de datos personales con el fin de que los Coordinadores de los diferentes programas académicos realicen la gestión pertinente frente a los titulares que no han gestionado la autorización.
J41: RESPONSABLE
J42: =E14 -> Coordinadora del Sistema de Gestión de Seguridad de la Información – SGSI
C45: PERIODO DE EVALUACIÓN
C46: MES | D46: =IF(J23="MENSUAL","ENERO",IF(J23="TRIMESTRAL","MARZO",IF(J23="SEMESTRAL","JUNIO",IF(J23="ANUAL",YEAR(TODAY()),"")))) -> JUNIO | E46: DICIEMBRE | F46: =IF(J23="MENSUAL","MARZO",IF(J23="TRIMESTRAL","SEPTIEMBRE","")) ->  | G46: =IF(J23="MENSUAL","ABRIL",IF(J23="TRIMESTRAL","DICIEMBRE","")) ->  | H46: =IF(J23="MENSUAL","MAYO","") ->  | I46: =IF(J23="MENSUAL","JUNIO","") ->  | J46: =IF(J23="MENSUAL","JULIO","") ->  | K46: =IF(J23="MENSUAL","AGOSTO","") ->  | L46: =IF(J23="MENSUAL","SEPTIEMBRE","") ->  | M46: =IF(J23="MENSUAL","OCTUBRE","") ->  | N46: =IF(J23="MENSUAL","NOVIEMBRE","") ->  | O46: =IF(J23="MENSUAL","DICIEMBRE","") -> 
C47: =G18 -> Estudiantes que no han gestionado la autorizacion*100 | D47: 299 | E47: 386
C48: =G19 -> Total de estudiantes activos durante el semestre | D48: 11976 | E48: 11694
C49: VALOR | D49: =IFERROR(IF($E$17=1,D47/D48,IF($E$17=2,D47,"")),"") -> 0.02496659987 | E49: 0.03300838037
C50: META PONDERADA | D50: 0.01 | E50: 0.01 | F50: =IF(AND(N23="ANUAL",J23="MENSUAL"),N17/12+E50,IF(AND(N23="ANUAL",J23="TRIMESTRAL"),N17/4+E50,IF(AND(N23="SEMESTRAL",J23="MENSUAL"),N17/6+E50,IF(AND(N23="SEMESTRAL",J23="TRIMESTRAL"),N17/2,IF(AND(N23="TRIMESTRAL",J23="MENSUAL"),N17/3+E50,IF(AND(N23="TRIMESTRAL",J23="TRIMESTRAL"),N17,IF(AND(N23="MENSUAL",J23="MENSUAL"),N17,""))))))) ->  | G50: =IF(AND(N23="ANUAL",J23="MENSUAL"),N17/12+F50,IF(AND(N23="ANUAL",J23="TRIMESTRAL"),N17/4+F50,IF(AND(N23="SEMESTRAL",J23="MENSUAL"),N17/6+F50,IF(AND(N23="SEMESTRAL",J23="TRIMESTRAL"),N17/2+F50,IF(AND(N23="TRIMESTRAL",J23="MENSUAL"),N17/3,IF(AND(N23="TRIMESTRAL",J23="TRIMESTRAL"),N17,IF(AND(N23="MENSUAL",J23="MENSUAL"),N17,""))))))) ->  | H50: =IF(AND($N$23="ANUAL",$J$23="MENSUAL"),$N$17/12+G50,IF(AND(N23="SEMESTRAL",J23="MENSUAL"),N17/6+G50,IF(AND(N23="TRIMESTRAL",J23="MENSUAL"),N17/3+G50,IF(AND(N23="MENSUAL",J23="MENSUAL"),N17,"")))) ->  | I50: =IF(AND($N$23="ANUAL",$J$23="MENSUAL"),$N$17/12+H50,IF(AND(N23="SEMESTRAL",J23="MENSUAL"),N17/6+H50,IF(AND(N23="TRIMESTRAL",J23="MENSUAL"),N17/3+H50,IF(AND(N23="MENSUAL",J23="MENSUAL"),N17,"")))) ->  | J50: =IF(AND($N$23="ANUAL",$J$23="MENSUAL"),$N$17/12+I50,IF(AND(N23="SEMESTRAL",J23="MENSUAL"),N17/6,IF(AND(N23="TRIMESTRAL",J23="MENSUAL"),N17/3,IF(AND(N23="MENSUAL",J23="MENSUAL"),N17,"")))) ->  | K50: =IF(AND($N$23="ANUAL",$J$23="MENSUAL"),$N$17/12+J50,IF(AND(N23="SEMESTRAL",J23="MENSUAL"),N17/6+J50,IF(AND(N23="TRIMESTRAL",J23="MENSUAL"),N17/3+J50,IF(AND(N23="MENSUAL",J23="MENSUAL"),N17,"")))) ->  | L50: =IF(AND($N$23="ANUAL",$J$23="MENSUAL"),$N$17/12+K50,IF(AND(N23="SEMESTRAL",J23="MENSUAL"),N17/6+K50,IF(AND(N23="TRIMESTRAL",J23="MENSUAL"),N17/3+K50,IF(AND(N23="MENSUAL",J23="MENSUAL"),N17,"")))) ->  | M50: =IF(AND($N$23="ANUAL",$J$23="MENSUAL"),$N$17/12+L50,IF(AND(N23="SEMESTRAL",J23="MENSUAL"),N17/6+L50,IF(AND(N23="TRIMESTRAL",J23="MENSUAL"),N17/3,IF(AND(N23="MENSUAL",J23="MENSUAL"),N17,"")))) ->  | N50: =IF(AND($N$23="ANUAL",$J$23="MENSUAL"),$N$17/12+M50,IF(AND(N23="SEMESTRAL",J23="MENSUAL"),N17/6+M50,IF(AND(N23="TRIMESTRAL",J23="MENSUAL"),N17/3+M50,IF(AND(N23="MENSUAL",J23="MENSUAL"),N17,"")))) ->  | O50: =IF(AND($N$23="ANUAL",$J$23="MENSUAL"),$N$17/12+N50,IF(AND(N23="SEMESTRAL",J23="MENSUAL"),N17/6+N50,IF(AND(N23="TRIMESTRAL",J23="MENSUAL"),N17/3+N50,IF(AND(N23="MENSUAL",J23="MENSUAL"),N17,"")))) -> 
C52: NIVEL DE SEGREGACIÓN *
C53: UNIDAD SEGREGADA (Ej. Facultad, Programa Académico, Área) | G53: RESULTADO | K53: ANALISIS DE DATOS SEGREGADO
G72: Estratégico | J72: Eficacia
G73: Misional | J73: Eficiencia
G74: Apoyo | J74: Acreditación
G75: Seguimiento, Medición, Análisis y Evaluación | J75: Positiva
G76: Direccionamiento Estratégico | J76: Negativa
G77: Planeación Institucional | J77: Por Unidad Regional
G78: Proyectos Especiales y Relaciones Interinstitucionales | J78: Por Facultad
G79: Sistemas Integrados | J79: Por Programa Académico
G80: Autoevaluación y Acreditación | J80: Por área
G81: Comunicaciones | J81: Por Laboratorio
G82: Formación y Aprendizaje | J82: Otros
G83: Ciencia, Tecnología e Innovación | J83: No Aplica
G84: Interacción Social Universitaria
G85: Bienestar Universitario
G86: Admisiones y Registro
G87: Graduados
G88: Dialogando con el Mundo
G89: Talento Humano
G90: Jurídica
G91: Financiera
G92: Sistemas y Tecnología
G93: Bienes y Servicios
G94: Documental
G95: Apoyo Académico
G96: Control Interno
G97: Control Disciplinario
G98: Servicio de Atención al Ciudadano

Sheet SGSI - 9 (2024)
B2: REGRESAR
E5: MACROPROCESO ESTRATÉGICO | M5: CÓDIGO: ESGr027
E6: PROCESO GESTIÓN SISTEMAS INTEGRADOS - CALIDAD | M6: VERSIÓN: 8
E7: MATRIZ DE MEDICIÓN Y SEGUIMIENTO A LOS PROCESOS DE GESTIÓN | M7: VIGENCIA: 2023-07-28
M8: PÁGINA: 14 de 15
C10: FICHA DE INDICADOR
C12: MACROPROCESO | E12: Estratégico | I12: NOMBRE DEL INDICADOR | K12: Gestión de cumplimiento en la implementación de la Ley de Protección de datos a través de lo indicado en la Guía de Responsabilidad Demostrada
C13: PROCESO GESTIÓN | E13: Sistemas Integrados
C14: RESPONSABLE DE MEDICIÓN | E14: Coordinadora del Sistema de Gestión de Seguridad de la Información – SGSI
C16: 1. COMPORTAMIENTO DE INDICADOR
C17: CLASIFICACIÓN DE LA MEDICIÓN | E17: 1 | H17: TIPO DE INDICADOR | J17: Eficacia | L17: META | N17: 0.9
C18: FORMULA | E18: NUMERADOR | G18: ∑Estado de cumplimiento de la guía de responsabilidad demostrada | L18: UNIDAD DE MEDIDA | N18: Porcentual
E19: DENOMINADOR | G19: Nro. Total de controles de PDP implementados *100
C20: TENDENCIA | E20: Positiva | H20: NIVEL DE SEGREGACIÓN * | J20: No Aplica | L20: ESCALA
L21: Deficiente | M21: Aceptable | N21: Bueno | O21: Excelente
L22: 0-60% | M22: 61-80% | N22: 81%-90% | O22: 91%-En adelante
C23: ORIGEN DE DATOS NUMERADOR | E23: Herramienta diagnostico implementación guía de responsabilidad demostrada | H23: FRECUENCIA DE LA MEDICIÓN | J23: ANUAL | L23: FRECUENCIA DE RESULTADO | N23: ANUAL
C24: ORIGEN DE DATOS DENOMINADOR | E24: Herramienta diagnostico implementación guía de responsabilidad demostrada
C26: RESULTADOS
J27: ANÁLISIS DE DATOS
J28: VIGENCIA 2024: La Guía para la implementación del Principio de Responsabilidad Demostrada (Accountability) de la Superintendencia de Industria y Comercio – SIC mide el nivel de implementación del Programa Integral de Gestión de Datos Personales –PIGDP y el nivel de riesgo jurídico en el que se encuentra la Universidad de Cundinamarca. Se aplicó la herramienta diagnóstica para medir el avance en la implementación del Principio de Responsabilidad Demostrada, la cual fue enviada a cada Seccional y Extensión para su respectivo diligenciamiento. Al Sistema de Gestión de Seguridad de la Información – SGSI fueron allegada las herramientas diligenciadas obteniendo los siguientes resultados: sede Fusagasugá: 78%, seccional Ubaté: 65%, seccional Girardot: 55%, extensión chía: 100%, extensión Soacha: 62%, extensión Facatativá: 67%, extensión Zipaquirá: 77% y la Oficina de Bogotá: 66%.
J34: ACCIÓN FORMULADA
J35: Para la Vigencia 2025, se implementaran diferentes estrategias para fortalecer e incrementar el nivel de implementación de los controles que según la herramienta de diagnostico para el prinicipio de responsabilidad demostrada se encuentran en un estado inexistente, desconocido o parcial.
J41: RESPONSABLE
J42: =E14 -> Coordinadora del Sistema de Gestión de Seguridad de la Información – SGSI
C45: PERIODO DE EVALUACIÓN
C46: MES | D46: 2024 | F46: =IF(J23="MENSUAL","MARZO",IF(J23="TRIMESTRAL","SEPTIEMBRE","")) ->  | G46: =IF(J23="MENSUAL","ABRIL",IF(J23="TRIMESTRAL","DICIEMBRE","")) ->  | H46: =IF(J23="MENSUAL","MAYO","") ->  | I46: =IF(J23="MENSUAL","JUNIO","") ->  | J46: =IF(J23="MENSUAL","JULIO","") ->  | K46: =IF(J23="MENSUAL","AGOSTO","") ->  | L46: =IF(J23="MENSUAL","SEPTIEMBRE","") ->  | M46: =IF(J23="MENSUAL","OCTUBRE","") ->  | N46: =IF(J23="MENSUAL","NOVIEMBRE","") ->  | O46: =IF(J23="MENSUAL","DICIEMBRE","") -> 
C47: =G18 -> ∑Estado de cumplimiento de la guía de responsabilidad demostrada | D47: 72
C48: =G19 -> Nro. Total de controles de PDP implementados *100 | D48: 102
C49: VALOR | D49: =IFERROR(IF($E$17=1,D47/D48,IF($E$17=2,D47,"")),"") -> 0.7058823529
C50: META PONDERADA | D50: 0.9 | F50: =IF(AND(N23="ANUAL",J23="MENSUAL"),N17/12+E50,IF(AND(N23="ANUAL",J23="TRIMESTRAL"),N17/4+E50,IF(AND(N23="SEMESTRAL",J23="MENSUAL"),N17/6+E50,IF(AND(N23="SEMESTRAL",J23="TRIMESTRAL"),N17/2,IF(AND(N23="TRIMESTRAL",J23="MENSUAL"),N17/3+E50,IF(AND(N23="TRIMESTRAL",J23="TRIMESTRAL"),N17,IF(AND(N23="MENSUAL",J23="MENSUAL"),N17,""))))))) ->  | G50: =IF(AND(N23="ANUAL",J23="MENSUAL"),N17/12+F50,IF(AND(N23="ANUAL",J23="TRIMESTRAL"),N17/4+F50,IF(AND(N23="SEMESTRAL",J23="MENSUAL"),N17/6+F50,IF(AND(N23="SEMESTRAL",J23="TRIMESTRAL"),N17/2+F50,IF(AND(N23="TRIMESTRAL",J23="MENSUAL"),N17/3,IF(AND(N23="TRIMESTRAL",J23="TRIMESTRAL"),N17,IF(AND(N23="MENSUAL",J23="MENSUAL"),N17,""))))))) ->  | H50: =IF(AND($N$23="ANUAL",$J$23="MENSUAL"),$N$17/12+G50,IF(AND(N23="SEMESTRAL",J23="MENSUAL"),N17/6+G50,IF(AND(N23="TRIMESTRAL",J23="MENSUAL"),N17/3+G50,IF(AND(N23="MENSUAL",J23="MENSUAL"),N17,"")))) ->  | I50: =IF(AND($N$23="ANUAL",$J$23="MENSUAL"),$N$17/12+H50,IF(AND(N23="SEMESTRAL",J23="MENSUAL"),N17/6+H50,IF(AND(N23="TRIMESTRAL",J23="MENSUAL"),N17/3+H50,IF(AND(N23="MENSUAL",J23="MENSUAL"),N17,"")))) ->  | J50: =IF(AND($N$23="ANUAL",$J$23="MENSUAL"),$N$17/12+I50,IF(AND(N23="SEMESTRAL",J23="MENSUAL"),N17/6,IF(AND(N23="TRIMESTRAL",J23="MENSUAL"),N17/3,IF(AND(N23="MENSUAL",J23="MENSUAL"),N17,"")))) ->  | K50: =IF(AND($N$23="ANUAL",$J$23="MENSUAL"),$N$17/12+J50,IF(AND(N23="SEMESTRAL",J23="MENSUAL"),N17/6+J50,IF(AND(N23="TRIMESTRAL",J23="MENSUAL"),N17/3+J50,IF(AND(N23="MENSUAL",J23="MENSUAL"),N17,"")))) ->  | L50: =IF(AND($N$23="ANUAL",$J$23="MENSUAL"),$N$17/12+K50,IF(AND(N23="SEMESTRAL",J23="MENSUAL"),N17/6+K50,IF(AND(N23="TRIMESTRAL",J23="MENSUAL"),N17/3+K50,IF(AND(N23="MENSUAL",J23="MENSUAL"),N17,"")))) ->  | M50: =IF(AND($N$23="ANUAL",$J$23="MENSUAL"),$N$17/12+L50,IF(AND(N23="SEMESTRAL",J23="MENSUAL"),N17/6+L50,IF(AND(N23="TRIMESTRAL",J23="MENSUAL"),N17/3,IF(AND(N23="MENSUAL",J23="MENSUAL"),N17,"")))) ->  | N50: =IF(AND($N$23="ANUAL",$J$23="MENSUAL"),$N$17/12+M50,IF(AND(N23="SEMESTRAL",J23="MENSUAL"),N17/6+M50,IF(AND(N23="TRIMESTRAL",J23="MENSUAL"),N17/3+M50,IF(AND(N23="MENSUAL",J23="MENSUAL"),N17,"")))) ->  | O50: =IF(AND($N$23="ANUAL",$J$23="MENSUAL"),$N$17/12+N50,IF(AND(N23="SEMESTRAL",J23="MENSUAL"),N17/6+N50,IF(AND(N23="TRIMESTRAL",J23="MENSUAL"),N17/3+N50,IF(AND(N23="MENSUAL",J23="MENSUAL"),N17,"")))) -> 
C52: NIVEL DE SEGREGACIÓN *
C53: UNIDAD SEGREGADA (Ej. Facultad, Programa Académico, Área) | G53: RESULTADO | K53: ANALISIS DE DATOS SEGREGADO
G74: Estratégico | J74: Eficacia
G75: Misional | J75: Eficiencia
G76: Apoyo | J76: Acreditación
G77: Seguimiento, Medición, Análisis y Evaluación | J77: Positiva
G78: Direccionamiento Estratégico | J78: Negativa
G79: Planeación Institucional | J79: Por Unidad Regional
G80: Proyectos Especiales y Relaciones Interinstitucionales | J80: Por Facultad
G81: Sistemas Integrados | J81: Por Programa Académico
G82: Autoevaluación y Acreditación | J82: Por área
G83: Comunicaciones | J83: Por Laboratorio
G84: Formación y Aprendizaje | J84: Otros
G85: Ciencia, Tecnología e Innovación | J85: No Aplica
G86: Interacción Social Universitaria
G87: Bienestar Universitario
G88: Admisiones y Registro
G89: Graduados
G90: Dialogando con el Mundo
G91: Talento Humano
G92: Jurídica
G93: Financiera
G94: Sistemas y Tecnología
G95: Bienes y Servicios
G96: Documental
G97: Apoyo Académico
G98: Control Interno
G99: Control Disciplinario
G100: Servicio de Atención al Ciudadano

Sheet ACTUALIZACIONES
C2: MACROPROCESO ESTRATÉGICO | E2: CÓDIGO: ESGr027
C3: PROCESO GESTIÓN SISTEMAS INTEGRADOS - CALIDAD | E3: VERSIÓN: 8
C4: MATRIZ DE MEDICIÓN Y SEGUIMIENTO A LOS PROCESOS DE GESTIÓN | E4: VIGENCIA: 2023-07-28
E5: PÁGINA: 15 de 15
B7: CONTROL DE ACTUALÑIZACIONES
B8: FECHA | C8: DESCRIPCIÓN DE LA ACTUALIZACIÓN | D8: RESPONSABLE | E8: CARGO
B9: 2021-09-30 | C9: Formulación y medición de los indicadores SGSI-1, SGSI-2 y SGSI 3 | D9: María del Pilar Delgado Rodríguez Omaira Judith Velasquez Suarez | E9: Profesional Universitario I Técnico
B10: 2022-12-14 | C10: Se realizó la medición de los indicadores para la vigencia 2022 y se hizo la inclusión de dos indicadores.SGSI 4 y SGSI 5 | D10: María del Pilar Delgado Rodríguez Lesly Daniela Reyes Perez Omaira Judith Velasquez Suarez | E10: Profesional Universitario I Auxiliar de oficina OPS
B11: 2023-06-22 | C11: Se organizo los indicadores del Sistema de Gestión de Seguridad de la Información - SGSI, estableciendo como primero los de Seguridad de la Información y en seguida los de Protección de Datos Personales. adicionalmente, se realizó la medición de los indicadores SGSI 1, SGSI 6, SGSI 7, y se hizo la inclusión de tres indicadores nuevos SGSI 4, SGSI 5 y SGSI 8 para la vigencia.2023. | D11: María del Pilar Delgado Rodríguez Fabian Libardo Parra Gutierrez Gustavo Adolfo Dominguez Sierra Juan Diego Burrell Tovar Omaira Judith Velasquez Suarez | E11: Profesional Universitario I Tecnico Tecnico Tecnico OPS
B12: 2023-12-01 | C12: Se realizo la medición de los indicadores de seguridad de la información, SGSI - 1, SGSI 2, SGSI 3, SGSI 4 y SGSI 5 y de los indicadores de protección de datos, SGSI 6, SGSI 7 y SGSI 8 para el cuarto trimestre de la vigencia 2023. De igual forma, se incluyeron los objetivos generales y específicos para cada indicador, fecha de ejecución de actividades y apartado de evidencia para cada indicador. | D12: María del Pilar Delgado Rodríguez Fabian Libardo Parra Gutierrez Gustavo Adolfo Dominguez Sierra Juan Diego Burrell Tovar | E12: Profesional Universitario I Tecnico Tecnico Tecnico
C26: Diagonal 18 No. 20-23 Fusagasugá - Cundinamarca Teléfono (601) 8281483 Linea Gratuita 018000180414 www.ucundinamarca.edu.co E-mail: Info@ucundinamarca.edu.co NIT: 890.680.062-2
D29: Documento controlado por el Sistema de Gestion de la Calidad Asegúrese que corresponde a la última versión consultando el Portal Institucional

Sheet ITEM (hidden)
A1: MENSUAL | C1: NÚMERO
A2: TRIMESTRAL | C2: PORCENTAJE
A3: SEMESTRAL
A4: ANUAL
